Workbook

Sheet AMCA License Information
E2: M.K. Plastics Corporation certifies that the model shown herein
E3: is licensed to bear the AMCA Seal. The ratings shown are based
E4: on tests and procedures performed in accordance with AMCA
E5: Publication 211 and AMCA Publication 311 and comply with the
E6: requirements of the AMCA Certified Ratings Program.
E8: Performance certified is for installation type D: ducted inlet,
E9: ducted outlet. Power rating (BHP) does not include transmission
E10: losses. Performance ratings do not include the effects of
E11: appurtenances (accessories). The sound power level ratings
E12: shown are in decibels, referred to 10(-12) watts calculated per
E13: AMCA Standard 301. Values shown are for inlet Lwi
E14: sound power levels for installation type D: ducted inlet,
E15: ducted outlet. Ratings do not include the effects of duct
E16: end correction. The A-weighted sound ratings shown have
E17: been calculated per AMCA Standard 301.
E19: The Fan Energy Index (FEI) values are calculated in accordance with
E20: ANSI/AMCA standard 208, are using a total pressure basis.
E21: There are two FEI calculation methods in this program. User can select either
E22: FEI calculation based on default motor efficiencies or FEI calculation
E23: based on four-pole TEFC motors and VFD of same capacity.

Sheet Optimize Size
G4: .
A5: Representative | G5: .
A6: . | G6: .
A7: . | G7: . | L7: JOB # | M7: .
A9: Date | B9: . | J9: FEIT Based on
F10: CFM = | G10: 807 | J10: Default Motor Efficiencies
A11: Sys. No. | F11: SP = | G11: 2.944 | J11: Regulated Motor Efficiencies
B12: . | F12: T = | G12: 70 | H12: [ oF ]
B13: . | F13: ALT = | G13: 0 | H13: [ feet ]
A14: Drawing | B14: . | C14: A
A15: Revision | B15: . | F15: BELT DRIVE
F16: DIRECT DRIVE
B18: Options: ( For DIRECT DRIVE selection only )
B19: 1: Allow selections for | E19: 0.85 | F19: to | G19: 1.15 | H19: of the requested CFM.
B20: 2: Motor Speed: | D20: UNKNOWN | F20: 60 HZ | G20: or be specified | I20: 1800
D21: UNKNOWN | F21: 50 HZ
A24: SIZE | B24: CFM | C24: SP | D24: BHP | E24: HP | F24: RPM | G24: OV | H24: TS | I24: S.E | J24: FEIT
A25: 125 | B25: 807 | C25: 2.944 | D25: 2.941593885 | E25: 5 | F25: 2503 | G25: 7336.363636 | H25: 13433.31925 | I25: 0.1273249091 | J25: 0.5969636828
A26: 160 | B26: 807 | C26: 2.944 | D26: 1.332159996 | E26: 2 | F26: 1682 | G26: 4292.553191 | H26: 9027.104663 | I26: 0.2811510444 | J26: 0.8638378252
A27: 200 | B27: 807 | C27: 2.944 | D27: 0.8711799383 | E27: 1 | F27: 1355 | G27: 2628.664495 | H27: 7272.132472 | I27: 0.4299205683 | J27: 1.083016508
A28: 250 | B28: 807 | C28: 2.944 | D28: 0.7032945752 | E28: 1 | F28: 1222 | G28: 1684.759916 | H28: 6558.336444 | I28: 0.5325480778 | J28: 1.230049701
A36: SIZE | B36: OB1 | C36: OB2 | D36: OB3 | E36: OB4 | F36: OB5 | G36: OB6 | H36: OB7 | I36: OB8 | J36: LwA | K36: dBA | L36: Sones
A37: 125 | B37: 120.3089508 | C37: 97.16142383 | D37: 92.50787642 | E37: 107.7408784 | F37: 89.52173358 | G37: 81.81532883 | H37: 77.77767483 | I37: 73.02318789 | J37: 105.1303985 | K37: 93.65099839 | L37: 43.36
A38: 160 | B38: 92.2520728 | C38: 88.81848686 | D38: 93.25152795 | E38: 87.36746561 | F38: 80.25921091 | G38: 75.11074382 | H38: 68.17009496 | I38: 61.58006715 | J38: 88.65654535 | K38: 77.17714527 | L38: 27.23
A39: 200 | B39: 90.81390051 | C39: 89.27231515 | D39: 92.06244527 | E39: 86.71221464 | F39: 80.2252182 | G39: 74.93487506 | H39: 69.11894857 | I39: 63.40483644 | J39: 87.98282925 | K39: 76.50342917 | L39: 26.435
A40: 250 | B40: 90.38088095 | C40: 93.14017651 | D40: 96.47075366 | E40: 90.42918517 | F40: 82.84343891 | G40: 77.83514418 | H40: 73.45518968 | I40: 69.37242654 | J40: 91.76426496 | K40: 80.28486487 | L40: 32.94
A48: NOTES: | B48: OV: Outlet Velocity
B49: S.E: Static Efficiency of Fan.
B50: dBA at 5 feet from Fan.
B51: The AMCA Certified Ratings Seal does not apply to Sones

Sheet Performance
H1: PRVS | I1: =G10 -> 125
E4: Customer | F4: ='Optimize Size'!G4 -> .
A5: Representative | E5: Project | F5: ='Optimize Size'!G5 -> .
A6: ='Optimize Size'!A6 -> . | E6: Engineer | F6: ='Optimize Size'!G6 -> .
A7: ='Optimize Size'!A7 -> . | E7: P.O. # | F7: ='Optimize Size'!G7 -> . | I7: JOB # | J7: ='Optimize Size'!M7 -> .
A9: Date | B9: ='Optimize Size'!B9 -> . | F9: Model | G9: PRVS
F10: Fan Size | G10: =Data!N2 -> 125
A11: Sys. No. | B11: ='Optimize Size'!B11 -> 0 | F11: Dia.[in] | G11: =VLOOKUP(G10,Data!M14:R20,3) -> 20.5 | H11: T = | I11: 70 | J11: [ oF ]
B12: ='Optimize Size'!B12 -> . | F12: CFM | G12: 807 | H12: ALT = | I12: 0 | J12: [ feet ]
B13: ='Optimize Size'!B13 -> . | F13: SP | G13: 2.944
A14: Drawing | B14: ='Optimize Size'!B14 -> . | C14: A | D14: FEIT Based on | F14: BHP | G14: 2.941593885 | H14: OV = | I14: =G12/Data!D3 -> 7336.363636 | J14: [ fpm ]
A15: Revision | B15: ='Optimize Size'!B15 -> . | C15: Default Motor Efficiencies | F15: RPM | G15: 2503 | H15: TS = | I15: =G11*G15*0.262 -> 13443.613 | J15: [ fpm ]
C16: Regulated Motor Efficiencies
A17: Air performance | D17: FEIT = | E17: 0.5969636828
A40: Sound power level | C40: The sound power level ratings shown are in decibels, referred to 10-12 Watts calaulated
C41: per AMCA standrad 301. Values shown are for (inlet Lwi ) sound power levels for installation
C42: Type D: Ducted inlet, Ducted outlet. Ratings include the duct end correction.
A43: RPM | E43: Hz | J43: LwA
B44: 63 | C44: 125 | D44: 250 | E44: 500 | F44: 1000 | G44: 2000 | H44: 4000 | I44: 8000
A45: ='Sound calculation'!B37 -> 2503 | B45: ='Sound calculation'!D37 -> 120.3089508 | C45: ='Sound calculation'!E37 -> 97.16142383 | D45: ='Sound calculation'!F37 -> 92.50787642 | E45: ='Sound calculation'!G37 -> 107.7408784 | F45: ='Sound calculation'!H37 -> 89.52173358 | G45: ='Sound calculation'!I37 -> 81.81532883 | H45: ='Sound calculation'!J37 -> 77.77767483 | I45: ='Sound calculation'!K37 -> 73.02318789 | J45: ='Sound calculation'!L37 -> 105.1303985
A47: Sound pressure level variation | D47: Values shown are calculated based on a free-field over reflecting plane conditions.
D48: (ASHRAE Fundamentals Handbook). dBA levels are not licensed by AMCA international
A49: Feet | B49: 1 | C49: 3 | D49: 5 | E49: 10 | F49: 15 | G49: 50 | H49: 100 | I49: 150
A50: dB(A) | B50: =$J$45-20*LOG10(B49)+2.5 -> 107.6303985 | C50: 98.08797338 | D50: 93.65099839 | E50: 87.63039848 | F50: 84.1085733 | G50: 73.65099839 | H50: 67.63039848 | I50: 64.1085733
A53: Comments :

Sheet PRVS Arr. 10
I1: =Performance!H1 -> PRVS | J1: =Performance!G10 -> 125
I2: Technical Data
E4: Customer | F4: =Performance!F4 -> .
E5: Project | F5: =Performance!F5 -> .
A6: Drawing | B6: =Performance!B14 -> . | C6: B | E6: Engineer | F6: =Performance!F6 -> .
A7: Revision | B7: =Performance!B15 -> . | E7: P.O. # | F7: =Performance!F7 -> . | J7: JOB # | K7: =Performance!J7 -> .
I11: 70
I12: 0
E30: Arrangement 10
H31: =Data!C93 -> Maximum motor frame 256T
A32: Quantity | B32: 1
A33: Sys. No. | B33: =Performance!B11 -> 0
B34: =Performance!B12 -> .
B35: =Performance!B13 -> .
A36: Materials
A37: Casing | B37: FRP
A38: Impeller | B38: FRP
A39: Stand | B39: 4-6 mils epoxy coated steel
A40: Shaft | B40: C-1045 Carbon steel
A41: Hardware | B41: 304 stainless steel | J41: Note: * Drawings required
E42: Additional information
A43: Motor | E43: 20' stack extension c/w veliocity cone
A44: Type | B44: PREM
A45: Enclosure | B45: TEFC
A46: HP | B46: =Data!G72 -> 5 | E46: Revisions
A47: V/Ph/Hz | B47: 460/3/60 | E47: No. Description | J47: Date | K47: Approved by
A48: RPM | B48: 1800
A50: Weight | B50: [ Lb ]
A51: Fan | B51: =IF(B46>10, VLOOKUP(J1,Data!C83:E88,3), VLOOKUP(J1,Data!C83:E88,2)) -> 278 | I51: Released by | J51: Checked by | K51: Approved by
A52: Motor | B52: =VLOOKUP(B46,Data!G73:I94,2) -> 110 | G52: Initial
A53: Total | B53: =SUM(B51:B52) -> 388 | G53: Date

Sheet PRVS Arr. 4
I1: =Performance!H1 -> PRVS | J1: =Performance!G10 -> 125
I2: Technical Data
E4: Customer | F4: =Performance!F4 -> .
E5: Project | F5: =Performance!F5 -> .
A6: Drawing | B6: =Performance!B14 -> . | C6: B | E6: Engineer | F6: =Performance!F6 -> .
A7: Revision | B7: =Performance!B15 -> . | E7: P.O. # | F7: =Performance!F7 -> . | J7: JOB # | K7: =Performance!J7 -> .
I11: 70
I12: 0
E30: Arrangement 4
H31: =Data!C93 -> Maximum motor frame 256T
A32: Quantity | B32: 2
A33: Sys. No. | B33: =Performance!B11 -> 0
B34: =Performance!B12 -> .
B35: =Performance!B13 -> .
A36: Materials
A37: Casing | B37: FRP
A38: Impeller | B38: FRP
A39: Stand | B39: 4-6 mils epoxy coated steel
A40: Hardware | B40: 316 stainless steel
J41: Note: * Drawings required
E42: Additional information
A43: Motor
A44: Type | B44: TEFC
A45: Enclosure | B45: TEFC
A46: HP | B46: =Data!G72 -> 5 | E46: Revisions
A47: V/Ph/Hz | B47: 120/1/60 | E47: No. Description | J47: Date | K47: Approved by
A48: RPM | B48: 1800
A50: Weight | B50: [ Lb ]
A51: Fan | B51: =VLOOKUP(J1,Data!C102:D107,2) -> 183 | I51: Released by | J51: Checked by | K51: Approved by
A52: Motor | B52: =VLOOKUP(B46,Data!G73:I94,2) -> 110 | G52: Initial
A53: Total | B53: =SUM(B51:B52) -> 293 | G53: Date

Sheet Vibration isolators
K1: Vibration isolators
A5: Representative
A6: =Performance!A6 -> . | F6: Drawing | G6: =Performance!B14&"C" -> .C | I6: Sys. No. | J6: =Performance!B11 -> 0 | M6: JOB # | N6: =Performance!J7 -> .
A7: =Performance!A7 -> . | F7: Revision | G7: =Performance!B15 -> . | J7: =Performance!B12 -> .
J8: =Performance!B13 -> .
A9: Rubber in shear (RIS) vibration isolator
F10: Type | G10: Max. | H10: Deflect. | L10: Dimensions
G11: load(lb) | H11: (in) | I11: A | J11: B | K11: C | L11: D | M11: E | N11: F | O11: G
F12: RVD1A | G12: 45 | H12: 0.38
F13: RVD1B | G13: 110 | H13: 0.38 | I13: 1.875 | J13: 1.875 | K13: 3.25 | L13: 1.375 | M13: 2.5 | N13: 0.3125 | O13: 0.375-16
F14: RVD1C | G14: 210 | H14: 0.38
F15: RVD1D | G15: 340 | H15: 0.38
F16: RVD2A | G16: 130 | H16: 0.43
F17: RVD2B | G17: 230 | H17: 0.43 | I17: 2.125 | J17: 2.5 | K17: 4.25 | L17: 1.875 | M17: 3.25 | N17: 0.435 | O17: 0.5-13
F18: RVD2C | G18: 380 | H18: 0.43
F19: RVD2D | G19: 700 | H19: 0.43
F20: RVD3A | G20: 550 | H20: 0.48
F21: RVD3B | G21: 930 | H21: 0.48
F22: RVD3C | G22: 1540 | H22: 0.48 | I22: 2.375 | J22: 3.5 | K22: 6 | L22: 2.875 | M22: 4.625 | N22: 0.563 | O22: 0.5-13
F23: RVD3D | G23: 1920 | H23: 0.48
F24: RVD3E | G24: 2400 | H24: 0.48
A25: Spring isolator for 1" deflection
I28: Type | K28: Rated
K29: load(lb)
I30: CALE-1C-50 | K30: 50
I31: CALE-1C-100 | K31: 100
I32: CALE-1C-150 | K32: 150
I33: CALE-1C-250 | K33: 250
I34: CALE-1C-300 | K34: 300
I35: CALE-1C-370 | K35: 370
I36: CALE-1C-520 | K36: 520
A40: Seismically restrained spring isolator for 1" and 2" deflection
F42: Type | J42: Dimensions | O42: Anch.dia
G43: L | H43: W | I43: H | J43: B | K43: E | L43: F | M43: G | N43: J | O43: Xemb.(in)
F44: AMSR-1C-
F45: 50-520 | G45: 6 | H45: 3 | I45: 4.625 | J45: 0.75 | K45: 0.625 | L45: 1 | M45: 0.5 | N45: 0.25 | O45: 0.50X2.25
F46: AMSR-1E-
F47: 195-530
F48: 650-1200 | G48: 7.625 | H48: 6 | I48: 6.25 | J48: 1.125 | K48: 0.875 | L48: 1.5 | M48: 0.625 | N48: 0.375 | O48: 0.75X3.25
F49: 1400-2330
F50: 2575-3250
F51: AMSR-2D-
F52: 75-355 | G52: 7.625 | H52: 6 | I52: 7.25 | J52: 1.125 | K52: 0.875 | L52: 1.5 | M52: 0.625 | N52: 0.375 | O52: 0.75X3.25
F53: 435-845
F54: 1000-1640

Sheet Data (hidden)
O1: M.K. 2026 Version 14.1 | V1: Copyright M.K. Plastics July 06, 2026
F2: DERIVED SPEEDS AND FAN SIZES | M2: 3 | N2: =VLOOKUP(M2,L14:M19,2) -> 125
B3: =VLOOKUP(Performance!G10,$M$14:$R$20,2) -> 2600 | C3: =VLOOKUP(Performance!G10,$M$14:$R$20,3) -> 20.5 | D3: =VLOOKUP(Performance!G10,$M$14:$R$20,5) -> 0.11 | N3: Testing data by AMCA
B4: No. | C4: CFM | D4: SP | E4: BHP | F4: No. | G4: CFM | H4: SP-CFM | I4: BHP-CFM | N4: CFM | X4: SP | AH4: BHP (Shaft Power)
N5: 1 | O5: =N5+1 -> 2 | P5: =O5+1 -> 3 | Q5: 4 | R5: 5 | S5: 6 | T5: 7 | U5: 8 | V5: 9 | W5: 10 | X5: 11 | Y5: 12 | Z5: 13 | AA5: 14 | AB5: 15 | AC5: 16 | AD5: 17 | AE5: 18 | AF5: =AE5+1 -> 19 | AG5: 20 | AH5: 21 | AI5: 22 | AJ5: 23 | AK5: 24 | AL5: 25 | AM5: 26 | AN5: 27 | AO5: 28 | AP5: 29 | AQ5: 30
B6: 1 | C6: =VLOOKUP(Performance!G10,$M$6:$AR$12,2) -> 924 | D6: =VLOOKUP(Performance!G10,$M$6:$AR$12,12) -> 0.001 | E6: =VLOOKUP(Performance!G10,$M$6:$AR$12,22) -> 3.6055 | F6: 1 | G6: =C6*(Performance!G15/Data!$B$3)*(Performance!G11/Data!$C$3)^3 -> 889.5276923 | H6: =D6*(Performance!G15/Data!$B$3)^2*(Performance!G11/Data!$C$3)^2*($AB$17/$AB$19) -> 0.0009258057668 | I6: =E6*(Performance!G15/Data!$B$3)^3*(Performance!G11/Data!$C$3)^5*($AB$17/$AB$19) -> 3.213459888 | M6: 63 | N6: 221 | O6: 199 | P6: 183 | Q6: 155 | R6: 138 | S6: 125 | T6: 102 | U6: 71 | V6: 33 | W6: 0 | X6: 0.005 | Y6: 2.303 | Z6: 3.861 | AA6: 6.376 | AB6: 7.984 | AC6: 9.151 | AD6: 10.813 | AE6: 12.426 | AF6: 13.452 | AG6: 13.458 | AH6: 1.173 | AI6: 1.129 | AJ6: 1.094 | AK6: 1.037 | AL6: 0.99 | AM6: 0.96 | AN6: 0.892 | AO6: 0.802 | AP6: 0.647 | AQ6: 0.583
B7: 2 | C7: =VLOOKUP(Performance!G10,$M$6:$AR$12,3) -> 833 | D7: =VLOOKUP(Performance!G10,$M$6:$AR$12,13) -> 3.386 | E7: =VLOOKUP(Performance!G10,$M$6:$AR$12,23) -> 3.2817 | F7: 2 | G7: =C7*(Performance!G15/Data!$B$3)*(Performance!G11/Data!$C$3)^3 -> 801.9226923 | H7: =D7*(Performance!G15/Data!$B$3)^2*(Performance!G11/Data!$C$3)^2*($AB$17/$AB$19) -> 3.134778327 | I7: =E7*(Performance!G15/Data!$B$3)^3*(Performance!G11/Data!$C$3)^5*($AB$17/$AB$19) -> 2.924867928 | M7: 90 | N7: 332 | O7: 297 | P7: 259 | Q7: 222 | R7: 187 | S7: 150 | T7: 112 | U7: 74 | V7: 46 | W7: 0 | X7: 0.003 | Y7: 2.011 | Z7: 4.096 | AA7: 6.002 | AB7: 8.002 | AC7: 9.825 | AD7: 10.909 | AE7: 11.596 | AF7: 11.999 | AG7: 11.975 | AH7: 1.4687 | AI7: 1.3801 | AJ7: 1.3029 | AK7: 1.2208 | AL7: 1.1463 | AM7: 1.0599 | AN7: 0.92935 | AO7: 0.80862 | AP7: 0.71373 | AQ7: 0.61977
B8: 3 | C8: =VLOOKUP(Performance!G10,$M$6:$AR$12,4) -> 744 | D8: =VLOOKUP(Performance!G10,$M$6:$AR$12,14) -> 6.219 | E8: =VLOOKUP(Performance!G10,$M$6:$AR$12,24) -> 3.056 | F8: 3 | G8: =C8*(Performance!G15/Data!$B$3)*(Performance!G11/Data!$C$3)^3 -> 716.2430769 | H8: =D8*(Performance!G15/Data!$B$3)^2*(Performance!G11/Data!$C$3)^2*($AB$17/$AB$19) -> 5.757586064 | I8: =E8*(Performance!G15/Data!$B$3)^3*(Performance!G11/Data!$C$3)^5*($AB$17/$AB$19) -> 2.723709172 | M8: 125 | N8: 924 | O8: 833 | P8: 744 | Q8: 653 | R8: 560 | S8: 463 | T8: 374 | U8: 281 | V8: 155 | W8: 0 | X8: 0.001 | Y8: 3.386 | Z8: 6.219 | AA8: 9.235 | AB8: 11.911 | AC8: 14.181 | AD8: 15.391 | AE8: 15.981 | AF8: 15.92 | AG8: 15.043 | AH8: 3.6055 | AI8: 3.2817 | AJ8: 3.056 | AK8: 2.8028 | AL8: 2.5241 | AM8: 2.2269 | AN8: 1.9064 | AO8: 1.5636 | AP8: 1.18 | AQ8: 0.88409
B9: 4 | C9: =VLOOKUP(Performance!G10,$M$6:$AR$12,5) -> 653 | D9: =VLOOKUP(Performance!G10,$M$6:$AR$12,15) -> 9.235 | E9: =VLOOKUP(Performance!G10,$M$6:$AR$12,25) -> 2.8028 | F9: 4 | G9: =C9*(Performance!G15/Data!$B$3)*(Performance!G11/Data!$C$3)^3 -> 628.6380769 | H9: =D9*(Performance!G15/Data!$B$3)^2*(Performance!G11/Data!$C$3)^2*($AB$17/$AB$19) -> 8.549816257 | I9: =E9*(Performance!G15/Data!$B$3)^3*(Performance!G11/Data!$C$3)^5*($AB$17/$AB$19) -> 2.498040598 | M9: 160 | N9: 1506 | O9: 1351 | P9: 1215 | Q9: 1068 | R9: 910 | S9: 768 | T9: 633 | U9: 495 | V9: 269 | W9: 0 | X9: 0.004 | Y9: 3.377 | Z9: 6.204 | AA9: 8.882 | AB9: 11.445 | AC9: 13.499 | AD9: 14.565 | AE9: 15.31 | AF9: 14.596 | AG9: 14.332 | AH9: 5.166 | AI9: 4.757 | AJ9: 4.42 | AK9: 4.03 | AL9: 3.596 | AM9: 3.194 | AN9: 2.771 | AO9: 2.352 | AP9: 1.67 | AQ9: 1.35
B10: 5 | C10: =VLOOKUP(Performance!G10,$M$6:$AR$12,6) -> 560 | D10: =VLOOKUP(Performance!G10,$M$6:$AR$12,16) -> 11.911 | E10: =VLOOKUP(Performance!G10,$M$6:$AR$12,26) -> 2.5241 | F10: 5 | G10: =C10*(Performance!G15/Data!$B$3)*(Performance!G11/Data!$C$3)^3 -> 539.1076923 | H10: =D10*(Performance!G15/Data!$B$3)^2*(Performance!G11/Data!$C$3)^2*($AB$17/$AB$19) -> 11.02727249 | I10: =E10*(Performance!G15/Data!$B$3)^3*(Performance!G11/Data!$C$3)^5*($AB$17/$AB$19) -> 2.249644738 | M10: 200 | N10: 2292 | O10: 2077 | P10: 1854 | Q10: 1621 | R10: 1491 | S10: 1281 | T10: 930 | U10: 689 | V10: 217 | W10: 0 | X10: 0.005 | Y10: 3.077 | Z10: 5.935 | AA10: 8.657 | AB10: 10.026 | AC10: 11.846 | AD10: 14.135 | AE10: 15.198 | AF10: 15.277 | AG10: 16.022 | AH10: 7.67 | AI10: 7.121 | AJ10: 6.524 | AK10: 5.867 | AL10: 5.483 | AM10: 4.903 | AN10: 4.028 | AO10: 3.355 | AP10: 1.78 | AQ10: 1.518
B11: 6 | C11: =VLOOKUP(Performance!G10,$M$6:$AR$12,7) -> 463 | D11: =VLOOKUP(Performance!G10,$M$6:$AR$12,17) -> 14.181 | E11: =VLOOKUP(Performance!G10,$M$6:$AR$12,27) -> 2.2269 | F11: 6 | G11: =C11*(Performance!G15/Data!$B$3)*(Performance!G11/Data!$C$3)^3 -> 445.7265385 | H11: =D11*(Performance!G15/Data!$B$3)^2*(Performance!G11/Data!$C$3)^2*($AB$17/$AB$19) -> 13.12885158 | I11: =E11*(Performance!G15/Data!$B$3)^3*(Performance!G11/Data!$C$3)^5*($AB$17/$AB$19) -> 1.984760456 | M11: 250 | N11: 3237 | O11: 2940 | P11: 2616 | Q11: 2292 | R11: 1967 | S11: 1645 | T11: 1368 | U11: 948 | V11: 207 | W11: 0 | X11: 0.002 | Y11: 3.106 | Z11: 5.969 | AA11: 8.421 | AB11: 10.529 | AC11: 12.401 | AD11: 13.647 | AE11: 14.856 | AF11: 15.111 | AG11: 15.731 | AH11: 9.968 | AI11: 9.363 | AJ11: 8.641 | AK11: 7.857 | AL11: 6.998 | AM11: 6.01 | AN11: 5.239 | AO11: 4.213 | AP11: 3.443 | AQ11: 2.849
B12: 7 | C12: =VLOOKUP(Performance!G10,$M$6:$AR$12,8) -> 374 | D12: =VLOOKUP(Performance!G10,$M$6:$AR$12,18) -> 15.391 | E12: =VLOOKUP(Performance!G10,$M$6:$AR$12,28) -> 1.9064 | F12: 7 | G12: =C12*(Performance!G15/Data!$B$3)*(Performance!G11/Data!$C$3)^3 -> 360.0469231 | H12: =D12*(Performance!G15/Data!$B$3)^2*(Performance!G11/Data!$C$3)^2*($AB$17/$AB$19) -> 14.24907656 | I12: =E12*(Performance!G15/Data!$B$3)^3*(Performance!G11/Data!$C$3)^5*($AB$17/$AB$19) -> 1.699109674
B13: 8 | C13: =VLOOKUP(Performance!G10,$M$6:$AR$12,9) -> 281 | D13: =VLOOKUP(Performance!G10,$M$6:$AR$12,19) -> 15.981 | E13: =VLOOKUP(Performance!G10,$M$6:$AR$12,29) -> 1.5636 | F13: 8 | G13: =C13*(Performance!G15/Data!$B$3)*(Performance!G11/Data!$C$3)^3 -> 270.5165385 | H13: =D13*(Performance!G15/Data!$B$3)^2*(Performance!G11/Data!$C$3)^2*($AB$17/$AB$19) -> 14.79530196 | I13: =E13*(Performance!G15/Data!$B$3)^3*(Performance!G11/Data!$C$3)^5*($AB$17/$AB$19) -> 1.393583659 | N13: T | O13: T | P13: A | Q13: OA
B14: 9 | C14: =VLOOKUP(Performance!G10,$M$6:$AR$12,10) -> 155 | D14: =VLOOKUP(Performance!G10,$M$6:$AR$12,20) -> 15.92 | E14: =VLOOKUP(Performance!G10,$M$6:$AR$12,30) -> 1.18 | F14: 9 | G14: =C14*(Performance!G15/Data!$B$3)*(Performance!G11/Data!$C$3)^3 -> 149.2173077 | H14: =D14*(Performance!G15/Data!$B$3)^2*(Performance!G11/Data!$C$3)^2*($AB$17/$AB$19) -> 14.73882781 | I14: =E14*(Performance!G15/Data!$B$3)^3*(Performance!G11/Data!$C$3)^5*($AB$17/$AB$19) -> 1.051693986 | L14: 1 | M14: 63 | N14: 2500 | O14: 20.5 | P14: 20.5 | Q14: 0.035 | S14: AMCA TEST 02/25/06 - 22638-A1 | X14: =Performance!I12 -> 0 | Y14: =X14/100 -> 0 | AA14: M= | AB14: 28.965
B15: 10 | C15: =VLOOKUP(Performance!G10,$M$6:$AR$12,11) -> 0 | D15: =VLOOKUP(Performance!G10,$M$6:$AR$12,21) -> 15.043 | E15: =VLOOKUP(Performance!G10,$M$6:$AR$12,31) -> 0.88409 | F15: 10 | G15: =C15*(Performance!G15/Data!$B$3)*(Performance!G11/Data!$C$3)^3 -> 0 | H15: =D15*(Performance!G15/Data!$B$3)^2*(Performance!G11/Data!$C$3)^2*($AB$17/$AB$19) -> 13.92689615 | I15: =E15*(Performance!G15/Data!$B$3)^3*(Performance!G11/Data!$C$3)^5*($AB$17/$AB$19) -> 0.7879594377 | L15: 2 | M15: 90 | N15: 2400 | O15: 20.5 | P15: 20.5 | Q15: 0.057 | S15: AMCA TEST 09/11/22 - 39029-A1 | X15: =Performance!I11 -> 70 | Y15: =X15+459.67 -> 529.67 | AA15: R= | AB15: 21.84
L16: 3 | M16: 125 | N16: 2600 | O16: 20.5 | P16: 20.5 | Q16: 0.11 | S16: AMCA TEST 03/06/2026 - 44759-A1
B17: Operating Point | L17: 4 | M17: 160 | N17: 2500 | O17: 20.5 | P17: 20.5 | Q17: 0.188 | S17: AMCA TEST 02/27/06 - 22641-A1 | Y17: =29.922-0.1084*Y14+1.635*10^(-4)*Y14^2-1.348*10^(-7)*Y14^3 -> 29.922 | AB17: =AB14*Y17/AB15/Y15 -> 0.07492144445
B18: SP | C18: =Performance!G12 -> 807 | D18: =Performance!G13 -> 2.944 | F18: BHP | G18: =Performance!G12 -> 807 | H18: =Performance!G14 -> 2.941593885 | L18: 5 | M18: 200 | N18: 2500 | O18: 20.5 | P18: 20.5 | Q18: 0.307 | S18: AMCA -22642 -A1 02/27/2006
L19: 6 | M19: 250 | N19: 2500 | O19: 20.5 | P19: 20.5 | Q19: 0.479 | S19: AMCA - 22637-A1 02/27/2006 | AA19: SRO= | AB19: 0.075
B21: 1 | C21: =B21+1 -> 2 | D21: =C21+1 -> 3 | E21: 4 | F21: 5 | G21: 6 | H21: 7 | I21: 8 | J21: 9 | K21: 10 | L21: 11 | M21: 12 | N21: 13 | O21: 14 | P21: 15 | Q21: 16 | R21: 17 | S21: 18 | T21: =S21+1 -> 19 | U21: =T21+1 -> 20 | AA21: CORR.= | AB21: =AB19/AB17 -> 1.001048506
A22: SIZE | B22: =B27 -> A | C22: B | D22: D | E22: E | F22: F | G22: G | H22: J | I22: N | J22: P | K22: H | L22: NB | M22: BCD | N22: AD | O22: Q | P22: X1 | Q22: X2 | R22: X3 | S22: X4 | T22: X5 | U22: X6
A23: =VLOOKUP(Performance!G10,$A$28:$V35,1) -> 125 | B23: =VLOOKUP($A$23,$A$28:$V35,2) -> 4.94 | C23: =VLOOKUP($A$23,$A$28:$V35,3) -> 6.44 | D23: =VLOOKUP($A$23,$A$28:$V35,4) -> 7.25 | E23: =VLOOKUP($A$23,$A$28:$V35,5) -> 12.54 | F23: =VLOOKUP($A$23,$A$28:$V35,6) -> 11.38 | G23: =VLOOKUP($A$23,$A$28:$V35,7) -> 17.72 | H23: =VLOOKUP($A$23,$A$28:$V35,8) -> 6 | I23: =VLOOKUP($A$23,$A$28:$V35,9) -> 23.5 | J23: =VLOOKUP($A$23,$A$28:$V35,10) -> 4.56 | K23: =VLOOKUP($A$23,$A$28:$V35,11) -> 9.75 | L23: =VLOOKUP($A$23,$A$28:$V35,12) -> 6 | M23: =VLOOKUP($A$23,$A$28:$V35,13) -> 10.9375 | N23: =VLOOKUP($A$23,$A$28:$V35,14) -> 3 | O23: =VLOOKUP($A$23,$A$28:$V35,15) -> 35.8125 | P23: =VLOOKUP($A$23,$A$28:$V35,16) -> 3 | Q23: =VLOOKUP($A$23,$A$28:$V35,17) -> 16.5 | R23: =VLOOKUP($A$23,$A$28:$V35,18) -> 35.0625 | S23: =VLOOKUP($A$23,$A$28:$V35,19) -> 22.5 | T23: =VLOOKUP($A$23,$A$28:$V35,20) -> 27 | U23: =VLOOKUP($A$23,$A$28:$V35,21) -> 41.8125
A25: 2
B26: 1 | C26: =B26+1 -> 2 | D26: =C26+1 -> 3 | E26: 4 | F26: 5 | G26: 6 | H26: 7 | I26: 8 | J26: 9 | K26: 10 | L26: 11 | M26: 12 | N26: 13 | O26: 14 | P26: 15 | Q26: 16 | R26: 17 | S26: 18 | T26: =S26+1 -> 19 | U26: =T26+1 -> 20
A27: Size | B27: A | C27: B | D27: D | E27: E | F27: F | G27: G | H27: J | I27: N | J27: P | K27: H | L27: NB | M27: BCD | N27: AD | O27: Q | P27: X1 | Q27: X2 | R27: X3 | S27: X4 | T27: X5 | U27: X6 | X27: 804 | Y27: 0.003 | Z27: 3.191
A28: 63 | B28: 2.5 | C28: 6.27 | D28: 4.75 | E28: 11.81 | F28: 10.83 | G28: 14 | H28: 3.5 | I28: 23.5 | J28: 2.25 | K28: 9.25 | L28: 4 | M28: 10.4375 | N28: 3 | O28: 35.5625 | P28: 3 | Q28: 16.5 | R28: 34.563 | S28: 22.5 | T28: 27 | U28: =O28+6 -> 41.5625 | X28: 728 | Y28: 3.267 | Z28: 3.005
A29: 90 | B29: 3.56 | C29: 6.24 | D29: 5.88 | E29: 12.16 | F29: 11.06 | G29: 15.75 | H29: 4.56 | I29: 23.5 | J29: 3.16 | K29: 9.5 | L29: 4 | M29: 10.6875 | N29: 3 | O29: 35.6875 | P29: 3 | Q29: 16.5 | R29: 34.8125 | S29: 22.5 | T29: 27 | U29: 41.6875 | X29: 649 | Y29: 6.325 | Z29: 2.822
A30: 125 | B30: 4.94 | C30: 6.44 | D30: 7.25 | E30: 12.54 | F30: 11.38 | G30: 17.72 | H30: 6 | I30: 23.5 | J30: 4.56 | K30: 9.75 | L30: 6 | M30: 10.9375 | N30: 3 | O30: 35.8125 | P30: 3 | Q30: 16.5 | R30: 35.0625 | S30: 22.5 | T30: 27 | U30: 41.8125 | X30: 568 | Y30: 9.246 | Z30: 2.608
A31: 160 | B31: 6.31 | C31: 6.65 | D31: 8.63 | E31: 12.98 | F31: 11.73 | G31: 19.69 | H31: 7.38 | I31: 23.5 | J31: 6 | K31: 10.06 | L31: 6 | M31: 11.25 | N31: 3 | O31: 35.96875 | P31: 3 | Q31: 16.5 | R31: 35.375 | S31: 22.5 | T31: 27 | U31: 41.96875 | X31: 491 | Y31: 11.582 | Z31: 2.387
A32: 200 | B32: 7.88 | C32: 6.59 | D32: 10.25 | E32: 13.44 | F32: 12.13 | G32: 22 | H32: 9 | I32: 23.5 | J32: 7.5 | K32: 10.38 | L32: 8 | M32: 11.5625 | N32: 3 | O32: 36.125 | P32: 3 | Q32: 16.5 | R32: 35.6875 | S32: 22.5 | T32: 27 | U32: 42.125 | X32: 408 | Y32: 13.529 | Z32: 2.148
A33: 250 | B33: 9.88 | C33: 7.06 | D33: 12.75 | E33: 13.84 | F33: 12.5 | G33: 24.75 | H33: 11.5 | I33: 23.5 | J33: 9.38 | K33: 10.81 | L33: 8 | M33: 12 | N33: 3 | O33: 36.375 | P33: 3 | Q33: 16.5 | R33: 36.125 | S33: 22.5 | T33: 27 | U33: 42.375 | X33: 327 | Y33: 14.68 | Z33: 1.865
X34: 250 | Y34: 15.214 | Z34: 1.591
X35: 155 | Y35: 15.323 | Z35: 1.277
X36: 0 | Y36: 14.628 | Z36: 0.765
B38: Min | C38: Max | D38: min | E38: max | F38: min | G38: max
B39: cfm | C39: cfm | D39: sp | E39: sp | F39: rpm | G39: rpm
B40: 1 | C40: =B40+1 -> 2 | D40: =C40+1 -> 3 | E40: =D40+1 -> 4 | F40: =E40+1 -> 5 | G40: =F40+1 -> 6
A41: SIZE | B41: =B46 -> A | C41: B | D41: D | E41: E | F41: F | G41: G
A42: =VLOOKUP(Performance!G10,$A$47:$G$52,1) -> 125 | B42: =VLOOKUP(A42,$A$47:$G$52,2) -> 10 | C42: =VLOOKUP(A42,$A$47:$G$52,3) -> 1300 | D42: =VLOOKUP(A42,$A$47:$G$52,4) -> 0.1 | E42: =VLOOKUP(A42,$A$47:$G$52,5) -> 26 | F42: =VLOOKUP(A42,$A$47:$G$52,6) -> 10 | G42: =VLOOKUP(A42,$A$47:$G$52,7) -> 3540
B45: 1 | C45: =B45+1 -> 2 | D45: =C45+1 -> 3 | E45: =D45+1 -> 4 | F45: =E45+1 -> 5 | G45: =F45+1 -> 6
A46: Size | B46: A | C46: B | D46: D | E46: E | F46: F | G46: G
A47: 63 | B47: 10 | C47: 320 | D47: 0.1 | E47: 24 | F47: 10 | G47: 3540
A48: 90 | B48: 10 | C48: 690 | D48: 0.1 | E48: 24 | F48: 10 | G48: 3540
A49: 125 | B49: 10 | C49: 1300 | D49: 0.1 | E49: 26 | F49: 10 | G49: 3540
A50: 160 | B50: 10 | C50: 2500 | D50: 0.1 | E50: 27 | F50: 10 | G50: 3540
A51: 200 | B51: 10 | C51: 2900 | D51: 0.1 | E51: 27 | F51: 10 | G51: 3540
A52: 250 | B52: 10 | C52: 5800 | D52: 0.1 | E52: 24 | F52: 10 | G52: 3540
A55: Arr.9
B56: 1 | C56: =B56+1 -> 2 | D56: =C56+1 -> 3 | E56: 4 | F56: 5 | G56: 6 | H56: 7 | I56: 8 | J56: 9 | K56: 10 | L56: 11 | M56: 12 | N56: 13 | O56: 14 | P56: 15 | Q56: 16 | R56: 17 | S56: 18 | T56: =S56+1 -> 19 | U56: =T56+1 -> 20
A57: SIZE | B57: =B62 -> A | C57: B | D57: D | E57: E | F57: F | G57: G | H57: J | I57: N | J57: P | K57: H | L57: NB | M57: BCD | N57: AD | O57: Q | P57: X1 | Q57: X2 | R57: X3 | S57: X4 | T57: X5 | U57: X6
A58: =VLOOKUP(Performance!G10,$A$63:$V68,1) -> 125 | B58: =VLOOKUP($A$58,$A$63:$V68,2) -> 4.94 | C58: =VLOOKUP($A$58,$A$63:$V68,3) -> 4.56 | D58: =VLOOKUP($A$58,$A$63:$V68,4) -> 7.25 | E58: =VLOOKUP($A$58,$A$63:$V68,5) -> 11.38 | F58: =VLOOKUP($A$58,$A$63:$V68,6) -> 12.56 | G58: =VLOOKUP($A$58,$A$63:$V68,7) -> 12.06 | H58: =VLOOKUP($A$58,$A$63:$V68,8) -> 17.75 | I58: =VLOOKUP($A$58,$A$63:$V68,9) -> 13 | J58: =VLOOKUP($A$58,$A$63:$V68,10) -> 9.13 | K58: =VLOOKUP($A$58,$A$63:$V68,11) -> 21 | L58: =VLOOKUP($A$58,$A$63:$V68,12) -> 6 | M58: =VLOOKUP($A$58,$A$63:$V68,13) -> 6 | N58: =VLOOKUP($A$58,$A$63:$V68,14) -> 3 | O58: =VLOOKUP($A$58,$A$63:$V68,15) -> 22.97 | P58: =VLOOKUP($A$58,$A$63:$V68,16) -> 0 | Q58: =VLOOKUP($A$58,$A$63:$V68,17) -> 0 | R58: =VLOOKUP($A$58,$A$63:$V68,18) -> 0 | S58: =VLOOKUP($A$58,$A$63:$V68,19) -> 0 | T58: =VLOOKUP($A$58,$A$63:$V68,20) -> 0 | U58: =VLOOKUP($A$58,$A$63:$V68,21) -> 0
B61: 1 | C61: =B61+1 -> 2 | D61: =C61+1 -> 3 | E61: 4 | F61: 5 | G61: 6 | H61: 7 | I61: 8 | J61: 9 | K61: 10 | L61: 11 | M61: 12 | N61: 13 | O61: 14 | P61: 15 | Q61: 16 | R61: 17 | S61: 18 | T61: =S61+1 -> 19 | U61: =T61+1 -> 20
A62: Size | B62: A | C62: B | D62: D | E62: E | F62: F | G62: G | H62: J | I62: N | J62: P | K62: H | L62: NB | M62: BCD | N62: AD | O62: Q | P62: X1 | Q62: X2 | R62: X3 | S62: X4 | T62: X5 | U62: X6
A63: 63 | B63: 2.5 | C63: 2.25 | D63: 4.75 | E63: 10.81 | F63: 11.81 | G63: 11.65 | H63: 13.97 | I63: 11.88 | J63: 9 | K63: 21 | L63: 4 | M63: 3.63 | N63: 3 | O63: 22.97
A64: 90 | B64: 3.53 | C64: 3.16 | D64: 5.88 | E64: 11.06 | F64: 12.16 | G64: 11.94 | H64: 15.75 | I64: 12.38 | J64: 9 | K64: 21 | L64: 4 | M64: 4.75 | N64: 3 | O64: 22.84
A65: 125 | B65: 4.94 | C65: 4.56 | D65: 7.25 | E65: 11.38 | F65: 12.56 | G65: 12.06 | H65: 17.75 | I65: 13 | J65: 9.13 | K65: 21 | L65: 6 | M65: 6 | N65: 3 | O65: 22.97 | X65: System Curve
A66: 160 | B66: 6.31 | C66: 5.94 | D66: 8.63 | E66: 11.75 | F66: 13 | G66: 12.28 | H66: 19.69 | I66: 13.69 | J66: 9.25 | K66: 21 | L66: 6 | M66: 7.5 | N66: 3 | O66: 23.38 | V66: 1 | W66: 1037.571411 | X66: 4.866612129
A67: 200 | B67: 7.88 | C67: 7.5 | D67: 10.25 | E67: 12.13 | F67: 13.44 | G67: 13.47 | H67: 22 | I67: 14.38 | J67: 9.44 | K67: 21 | L67: 8 | M67: 9 | N67: 3 | O67: 23.34 | V67: 2 | W67: 922.2857056 | X67: 3.845224405
A68: 250 | B68: 9.88 | C68: 9.38 | D68: 12.75 | E68: 12.5 | F68: 13.84 | G68: 13.84 | H68: 24.75 | I68: 15.19 | J68: 9.63 | K68: 21 | L68: 8 | M68: 11.5 | N68: 3 | O68: 23.16 | V68: 3 | W68: 807 | X68: 2.944000006
V69: 4 | W69: 691.7142944 | X69: 2.162938692
V70: 5 | W70: 576.4285889 | X70: 1.502040758
B71: Fan Weight | D71: Arr.9 | F71: Motor Weight | V71: 6 | W71: 461.1428528 | X71: 0.9613060853
D72: [Lb] | F72: 9 | G72: =VLOOKUP(F72,F73:G91,2) -> 5 | H72: [Lb] | V72: 7 | W72: 345.8571472 | X72: 0.540734673
C73: 63 | D73: 225 | F73: 1 | G73: 0.25 | H73: 18 | V73: 8 | W73: 230.5714264 | X73: 0.2403265213
C74: 90 | D74: 225 | F74: 2 | G74: 0.33 | H74: 20 | V74: 9 | W74: 115.2857132 | X74: 0.06008163033
C75: 125 | D75: 230 | F75: 3 | G75: 0.5 | H75: 22 | V75: 10 | W75: 0 | X75: 0
C76: 160 | D76: 240 | F76: 4 | G76: 0.75 | H76: 26
C77: 200 | D77: 245 | F77: 5 | G77: 1 | H77: 38
C78: 250 | D78: 255 | F78: 6 | G78: 1.5 | H78: 35
F79: 7 | G79: 2 | H79: 42
F80: 8 | G80: 3 | H80: 96
C81: MOD.STAND | D81: SHORT | E81: LONG | F81: 9 | G81: 5 | H81: 110
D82: [Lb] | E82: [Lb] | F82: 10 | G82: 7.5 | H82: 158
C83: 63 | D83: 270 | E83: 270 | F83: 11 | G83: 10 | H83: 196
C84: 90 | D84: 276 | E84: 276 | F84: 12 | G84: 15 | H84: 266
C85: 125 | D85: 278 | E85: 278 | F85: 13 | G85: 20 | H85: 290
C86: 160 | D86: 281 | E86: 281 | F86: 14 | G86: 25 | H86: 380
C87: 200 | D87: 286 | E87: 286 | F87: 15 | G87: 30 | H87: 422
C88: 250 | D88: 290 | E88: 290 | F88: 16 | G88: 40 | H88: 462
F89: 17 | G89: 50 | H89: 588
F90: 18 | G90: 60 | H90: 834
F91: 19 | G91: 75 | H91: 912
B93: =N2 -> 125 | C93: =VLOOKUP(B93,B94:E99,2) -> Maximum motor frame 256T
B94: 63 | C94: Maximum motor frame 256T
B95: 90 | C95: Maximum motor frame 256T
B96: 125 | C96: Maximum motor frame 256T
B97: 160 | C97: Maximum motor frame 256T
B98: 200 | C98: Maximum motor frame 256T
B99: 250 | C99: Maximum motor frame 256T
C101: ARR 4 WEIGHTS | D101: LBS
C102: 63 | D102: 177
C103: 90 | D103: 180
C104: 125 | D104: 183
C105: 160 | D105: 187
C106: 200 | D106: 190
C107: 250 | D107: 192
A120: Belt drive loss
A121: 0 | B121: 0.25 | D121: 0.25
A122: 0.3 | B122: 0.23 | D122: 0.33
A123: 0.4 | B123: 0.2 | D123: 0.5
A124: 0.6 | B124: 0.17 | D124: 0.75
A125: 0.8 | B125: 0.15 | D125: 1
A126: 1 | B126: 0.138 | D126: 1.5
A127: 2 | B127: 0.12 | D127: 2
A128: 3 | B128: 0.1 | D128: 3
A129: 4 | B129: 0.092 | D129: 5
A130: 6 | B130: 0.085 | D130: 7.5
A131: 8 | B131: 0.08 | D131: 10
A132: 10 | B132: 0.075 | D132: 15
A133: 20 | B133: 0.07 | D133: 20
A134: 30 | B134: 0.066 | D134: 25
A135: 40 | B135: 0.064 | D135: 30
A136: 60 | B136: 0.061 | D136: 40
A137: 80 | B137: 0.06 | D137: 50
A138: 100 | B138: 0.06 | D138: 60
A139: 200 | B139: 0.06 | D139: 75
A140: 600 | B140: 0.06 | D140: 100
D141: 125
D142: 150
A143: 2.941593885 | B143: 0.1011681259 | C143: =A143*(1+B143) -> 3.239189426 | D143: 200
D144: 250
D145: 300
D146: 350
D147: 400
D148: 450
D149: 500
A155: DIRECT DRIVE SIZES
B157: 1 | C157: =B157+1 -> 2 | D157: 3 | E157: 4 | F157: 5 | G157: 6 | H157: 7 | I157: 8 | J157: 9 | K157: 10 | L157: 11 | M157: 12 | N157: 13 | O157: 14
A158: SIZE | B158: =B163 -> A | C158: =C163 -> B | D158: C | E158: D | F158: E | G158: F4 | H158: G | I158: H4 | J158: L | K158: U4 | L158: Z | M158: AA | N158: AB | O158: AC
A159: =VLOOKUP(Performance!G10,A164:N169,1) -> 125 | B159: =VLOOKUP($A$159,A164:S169,2) -> 4.94 | C159: =VLOOKUP($A$159,A164:O169,3) -> 4.56 | D159: =VLOOKUP($A$159,A164:O169,4) -> 7.25 | E159: =VLOOKUP($A$159,A164:O169,5) -> 11.38 | F159: =VLOOKUP($A$159,A164:O169,6) -> 12.5 | G159: =VLOOKUP($A$159,A164:O169,7) -> 24.78 | H159: =VLOOKUP($A$159,A164:O169,8) -> 6.49 | I159: =VLOOKUP($A$159,A164:O169,9) -> 20.13 | J159: =VLOOKUP($A$159,A164:O169,10) -> 17.75 | K159: =VLOOKUP($A$159,A164:O169,11) -> 8.75 | L159: =VLOOKUP($A$159,A164:O169,12) -> 6 | M159: =VLOOKUP($A$159,A164:O169,13) -> 6 | N159: =VLOOKUP($A$159,A164:O169,14) -> 3 | O159: =VLOOKUP($A$159,A164:O169,15) -> 29.75
A161: 2
B162: 1 | C162: =B162+1 -> 2 | D162: 3 | E162: 4 | F162: 5 | G162: 6 | H162: 7 | I162: 8 | J162: 9 | K162: 10 | L162: 11 | M162: 12 | N162: 13 | O162: 14
A163: Size | B163: A | C163: B | D163: C | E163: D | F163: E | G163: F4 | H163: G | I163: H4 | J163: L | K163: U4 | L163: Z | M163: AA | N163: AB | O163: AC
A164: 63 | B164: 2.5 | C164: 2.25 | D164: 4.75 | E164: 10.81 | F164: 11.81 | G164: 24.53 | H164: 6.31 | I164: 20.13 | J164: 14 | K164: 8.25 | L164: 4 | M164: 3.5 | N164: 3 | O164: 29.25
A165: 90 | B165: 3.5 | C165: 3.16 | D165: 5.88 | E165: 11.06 | F165: 12.13 | G165: 24.66 | H165: 6.3 | I165: 20.13 | J165: 15.75 | K165: 8.56 | L165: 4 | M165: 4.56 | N165: 3 | O165: 29.5
A166: 125 | B166: 4.94 | C166: 4.56 | D166: 7.25 | E166: 11.38 | F166: 12.5 | G166: 24.78 | H166: 6.49 | I166: 20.13 | J166: 17.75 | K166: 8.75 | L166: 6 | M166: 6 | N166: 3 | O166: 29.75
A167: 160 | B167: 6.31 | C167: 5.94 | D167: 8.63 | E167: 11.75 | F167: 13 | G167: 24.94 | H167: 6.71 | I167: 20.13 | J167: 19.69 | K167: 9.06 | L167: 6 | M167: 7.38 | N167: 3 | O167: 30.06
A168: 200 | B168: 7.88 | C168: 7.5 | D168: 10.25 | E168: 12.13 | F168: 13.44 | G168: 25.09 | H168: 6.66 | I168: 20.13 | J168: 22 | K168: 9.38 | L168: 8 | M168: 9 | N168: 3 | O168: 30.38
A169: 250 | B169: 9.88 | C169: 9.38 | D169: 12.75 | E169: 12.5 | F169: 13.88 | G169: 25.31 | H169: 6.61 | I169: 20.13 | J169: 24.75 | K169: 9.81 | L169: 8 | M169: 11.5 | N169: 3 | O169: 30.81

Sheet Data1 (hidden)
F2: DERIVED SPEEDS AND FAN SIZES | M2: 6 | N2: =VLOOKUP(M2,L14:M19,2) -> 250 | O2: =CONCATENATE("PRVS ",N2) -> PRVS 250 | S2: M.K. 2026 Version 14.1 | V2: Copyright M.K. Plastics July 06, 2026
B3: =VLOOKUP($N$2,$M$14:$R$20,2) -> 2500 | C3: =VLOOKUP($N$2,$M$14:$R$20,3) -> 20.5 | D3: =VLOOKUP($N$2,$M$14:$R$20,5) -> 0.479 | G3: =N2 -> 250 | H3: =VLOOKUP(G3,M14:Q19,3) -> 20.5 | I3: 1222
B4: No. | C4: CFM | D4: SP | E4: BHP | F4: No. | G4: CFM | H4: SP-CFM | I4: BHP-CFM | N4: CFM | X4: SP | AH4: BHP
N5: 1 | O5: =N5+1 -> 2 | P5: 3 | Q5: 4 | R5: 5 | S5: 6 | T5: 7 | U5: 8 | V5: 9 | W5: 10 | X5: 11 | Y5: 12 | Z5: 13 | AA5: 14 | AB5: 15 | AC5: 16 | AD5: 17 | AE5: 18 | AF5: 19 | AG5: 20 | AH5: 21 | AI5: 22 | AJ5: 23 | AK5: 24 | AL5: 25 | AM5: 26 | AN5: 27 | AO5: 28 | AP5: 29 | AQ5: 30
B6: 1 | C6: =VLOOKUP($N$2,$M$6:$AR$12,2) -> 3237 | D6: =VLOOKUP($N$2,$M$6:$AR$12,12) -> 0.002 | E6: =VLOOKUP($N$2,$M$6:$AR$12,22) -> 9.968 | F6: 1 | G6: =C6*($I$3/$B$3)*($H$3/$C$3)^3 -> 1582.2456 | H6: =D6*($I$3/$B$3)^2*($H$3/$C$3)^2*($AB$17/$AB$19) -> 0.0004773503755 | I6: =E6*($I$3/$B$3)^3*($H$3/$C$3)^5*($AB$17/$AB$19) -> 1.162911056 | M6: 63 | N6: 221 | O6: 199 | P6: 183 | Q6: 155 | R6: 138 | S6: 125 | T6: 102 | U6: 71 | V6: 33 | W6: 0 | X6: 0.005 | Y6: 2.303 | Z6: 3.861 | AA6: 6.376 | AB6: 7.984 | AC6: 9.151 | AD6: 10.813 | AE6: 12.426 | AF6: 13.452 | AG6: 13.458 | AH6: 1.173 | AI6: 1.129 | AJ6: 1.094 | AK6: 1.037 | AL6: 1.011 | AM6: 0.996 | AN6: 0.892 | AO6: 0.802 | AP6: 0.647 | AQ6: 0.583
B7: 2 | C7: =VLOOKUP($N$2,$M$6:$AR$12,3) -> 2940 | D7: =VLOOKUP($N$2,$M$6:$AR$12,13) -> 3.106 | E7: =VLOOKUP($N$2,$M$6:$AR$12,23) -> 9.363 | F7: 2 | G7: 1437.072 | H7: 0.7413251332 | I7: 1.092329075 | M7: 90 | N7: 332 | O7: 297 | P7: 259 | Q7: 222 | R7: 187 | S7: 150 | T7: 112 | U7: 74 | V7: 46 | W7: 0 | X7: 0.003 | Y7: 2.011 | Z7: 4.096 | AA7: 6.002 | AB7: 8.002 | AC7: 9.825 | AD7: 10.909 | AE7: 11.596 | AF7: 11.999 | AG7: 11.975 | AH7: 1.4687 | AI7: 1.3801 | AJ7: 1.3029 | AK7: 1.2208 | AL7: 1.1463 | AM7: 1.0599 | AN7: 0.92935 | AO7: 0.80862 | AP7: 0.71373 | AQ7: 0.61977
B8: 3 | C8: =VLOOKUP($N$2,$M$6:$AR$12,4) -> 2616 | D8: =VLOOKUP($N$2,$M$6:$AR$12,14) -> 5.969 | E8: =VLOOKUP($N$2,$M$6:$AR$12,24) -> 8.641 | F8: 3 | G8: 1278.7008 | H8: 1.424652196 | I8: 1.008097355 | M8: 125 | N8: 924 | O8: 833 | P8: 744 | Q8: 653 | R8: 560 | S8: 463 | T8: 374 | U8: 281 | V8: 155 | W8: 0 | X8: 0.001 | Y8: 3.386 | Z8: 6.219 | AA8: 9.235 | AB8: 11.911 | AC8: 14.181 | AD8: 15.391 | AE8: 15.981 | AF8: 15.92 | AG8: 15.043 | AH8: 3.6055 | AI8: 3.2817 | AJ8: 3.056 | AK8: 2.8028 | AL8: 2.5241 | AM8: 2.2269 | AN8: 1.9064 | AO8: 1.5636 | AP8: 1.18 | AQ8: 0.88409
B9: 4 | C9: =VLOOKUP($N$2,$M$6:$AR$12,5) -> 2292 | D9: =VLOOKUP($N$2,$M$6:$AR$12,15) -> 8.421 | E9: =VLOOKUP($N$2,$M$6:$AR$12,25) -> 7.857 | F9: 4 | G9: 1120.3296 | H9: 2.009883756 | I9: 0.9166324404 | M9: 160 | N9: 1506 | O9: 1351 | P9: 1215 | Q9: 1068 | R9: 910 | S9: 768 | T9: 633 | U9: 495 | V9: 269 | W9: 0 | X9: 0.004 | Y9: 3.377 | Z9: 6.204 | AA9: 8.882 | AB9: 11.445 | AC9: 13.499 | AD9: 14.565 | AE9: 15.31 | AF9: 14.596 | AG9: 14.332 | AH9: 5.166 | AI9: 4.757 | AJ9: 4.42 | AK9: 4.03 | AL9: 3.596 | AM9: 3.194 | AN9: 2.771 | AO9: 2.352 | AP9: 1.67 | AQ9: 1.35
B10: 5 | C10: =VLOOKUP($N$2,$M$6:$AR$12,6) -> 1967 | D10: =VLOOKUP($N$2,$M$6:$AR$12,16) -> 10.529 | E10: =VLOOKUP($N$2,$M$6:$AR$12,26) -> 6.998 | F10: 5 | G10: 961.4696 | H10: 2.513011052 | I10: 0.8164176935 | M10: 200 | N10: 2292 | O10: 2077 | P10: 1854 | Q10: 1621 | R10: 1491 | S10: 1281 | T10: 930 | U10: 689 | V10: 217 | W10: 0 | X10: 0.005 | Y10: 3.077 | Z10: 5.935 | AA10: 8.657 | AB10: 10.026 | AC10: 11.846 | AD10: 14.135 | AE10: 15.198 | AF10: 15.277 | AG10: 16.022 | AH10: 7.67 | AI10: 7.121 | AJ10: 6.524 | AK10: 5.867 | AL10: 5.483 | AM10: 4.903 | AN10: 4.028 | AO10: 3.355 | AP10: 1.78 | AQ10: 1.518
B11: 6 | C11: =VLOOKUP($N$2,$M$6:$AR$12,7) -> 1645 | D11: =VLOOKUP($N$2,$M$6:$AR$12,17) -> 12.401 | E11: =VLOOKUP($N$2,$M$6:$AR$12,27) -> 6.01 | F11: 6 | G11: 804.076 | H11: 2.959811003 | I11: 0.701153235 | M11: 250 | N11: 3237 | O11: 2940 | P11: 2616 | Q11: 2292 | R11: 1967 | S11: 1645 | T11: 1368 | U11: 948 | V11: 207 | W11: 0 | X11: 0.002 | Y11: 3.106 | Z11: 5.969 | AA11: 8.421 | AB11: 10.529 | AC11: 12.401 | AD11: 13.647 | AE11: 14.856 | AF11: 15.111 | AG11: 15.731 | AH11: 9.968 | AI11: 9.363 | AJ11: 8.641 | AK11: 7.857 | AL11: 6.998 | AM11: 6.01 | AN11: 5.239 | AO11: 4.213 | AP11: 3.443 | AQ11: 2.849
B12: 7 | C12: =VLOOKUP($N$2,$M$6:$AR$12,8) -> 1368 | D12: =VLOOKUP($N$2,$M$6:$AR$12,18) -> 13.647 | E12: =VLOOKUP($N$2,$M$6:$AR$12,28) -> 5.239 | F12: 7 | G12: 668.6784 | H12: 3.257200287 | I12: 0.6112049581
B13: 8 | C13: =VLOOKUP($N$2,$M$6:$AR$12,9) -> 948 | D13: =VLOOKUP($N$2,$M$6:$AR$12,19) -> 14.856 | E13: =VLOOKUP($N$2,$M$6:$AR$12,29) -> 4.213 | F13: 8 | G13: 463.3824 | H13: 3.545758589 | I13: 0.4915072511 | N13: T | O13: T | P13: A | Q13: OA
B14: 9 | C14: =VLOOKUP($N$2,$M$6:$AR$12,10) -> 207 | D14: =VLOOKUP($N$2,$M$6:$AR$12,20) -> 15.111 | E14: =VLOOKUP($N$2,$M$6:$AR$12,30) -> 3.443 | F14: 9 | G14: 101.1816 | H14: 3.606620762 | I14: 0.4016756386 | L14: 1 | M14: 63 | N14: 2500 | O14: 20.5 | P14: 20.5 | Q14: 0.035 | S14: AMCA TEST 02/25/06 - 22638-A1 | X14: ='Optimize Size'!G13 -> 0 | Y14: =X14/100 -> 0 | AA14: M= | AB14: 28.965
B15: 10 | C15: =VLOOKUP($N$2,$M$6:$AR$12,11) -> 0 | D15: =VLOOKUP($N$2,$M$6:$AR$12,21) -> 15.731 | E15: =VLOOKUP($N$2,$M$6:$AR$12,31) -> 2.849 | F15: 10 | G15: 0 | H15: 3.754599379 | I15: 0.3323769661 | L15: 2 | M15: 90 | N15: 2400 | O15: 20.5 | P15: 20.5 | Q15: 0.057 | S15: AMCA TEST 11/09/22 - 39029-A1 | X15: ='Optimize Size'!G12 -> 70 | Y15: =X15+459.67 -> 529.67 | AA15: R= | AB15: 21.84
B16: Operating Point | E16: vp | I16: =MAX(I6:I15) -> 1.162911056 | L16: 3 | M16: 125 | N16: 2600 | O16: 20.5 | P16: 20.5 | Q16: 0.11 | S16: AMCA TEST 03/06/2026 - 44759-A1
B17: SP | C17: ='Optimize Size'!G10 -> 807 | D17: ='Optimize Size'!G11 -> 2.944 | E17: =(C17/D3/4005)^2 -> 0.1769583262 | F17: BHP | G17: 807 | H17: 0.7032945752 | I17: vp | L17: 4 | M17: 160 | N17: 2500 | O17: 20.5 | P17: 20.5 | Q17: 0.188 | S17: AMCA TEST 02/27/06 - 22641-A1 | Y17: =29.922-0.1084*Y14+1.635*10^(-4)*Y14^2-1.348*10^(-7)*Y14^3 -> 29.922 | AB17: =AB14*Y17/AB15/Y15 -> 0.07492144445
B18: =C17/D3 -> 1684.759916 | C18: =D17 -> 2.944 | D18: =(C17*C18)/(6343.3*H17) -> 0.5325480778 | E18: =(C17*C18+C17*E17)/(6343.3*H17) -> 0.5645585453 | H18: =D17 -> 2.944 | I18: =(G19/D3/4005)^2 -> 0.03271770874 | L18: 5 | M18: 200 | N18: 2500 | O18: 20.5 | P18: 20.5 | Q18: 0.307 | S18: AMCA -22642 -A1 02/27/2006
D19: =H3*I3*0.261799387 -> 6558.336444 | F19: =G19/D3 -> 724.4258873 | G19: 347 | H19: =(G19*H18)/(6343.3*H17) -> 0.2289890743 | I19: =(G19*H18+G19*I18)/(6343.3*H17) -> 0.2315339106 | L19: 6 | M19: 250 | N19: 2500 | O19: 20.5 | P19: 20.5 | Q19: 0.479 | S19: AMCA - 22637-A1 02/27/2006 | AA19: SRO= | AB19: 0.075
A20: CFM | B20: SP | C20: CFM+10 | D20: SP1
A21: =C17 -> 807 | B21: =D17 -> 2.944 | C21: =A21*1.05 -> 847.35 | D21: 9.958202362 | AA21: CORR.= | AB21: =AB19/AB17 -> 1.001048506
A22: Belt drive loss | M22: =VLOOKUP(N22,G23:H28,2) -> 3 | N22: 125
A23: 0 | B23: 0.25 | D23: 0.25 | G23: 63 | H23: 1
A24: 0.3 | B24: 0.23 | D24: 0.33 | G24: 90 | H24: =H23+1 -> 2
A25: 0.4 | B25: 0.2 | D25: 0.5 | G25: 125 | H25: =H24+1 -> 3
A26: 0.6 | B26: 0.17 | D26: 0.75 | G26: 160 | H26: =H25+1 -> 4
A27: 0.8 | B27: 0.15 | D27: 1 | G27: 200 | H27: =H26+1 -> 5
A28: 1 | B28: 0.138 | D28: 1.5 | G28: 250 | H28: 6
A29: 2 | B29: 0.12 | D29: 2
A30: 3 | B30: 0.1 | D30: 3 | K30: OB1 | L30: OB2 | M30: OB3 | N30: OB4 | O30: OB5 | P30: OB6 | Q30: OB7 | R30: OB8 | S30: LwA | T30: dBA | U30: SONES | Z30: FAN SIZES | AA30: T.E
A31: 4 | B31: 0.092 | D31: 5 | K31: ='Sound calculation-1'!D37 -> 90.38088095 | L31: ='Sound calculation-1'!E37 -> 93.14017651 | M31: ='Sound calculation-1'!F37 -> 96.47075366 | N31: ='Sound calculation-1'!G37 -> 90.42918517 | O31: ='Sound calculation-1'!H37 -> 82.84343891 | P31: ='Sound calculation-1'!I37 -> 77.83514418 | Q31: ='Sound calculation-1'!J37 -> 73.45518968 | R31: ='Sound calculation-1'!K37 -> 69.37242654 | S31: ='Sound calculation-1'!L37 -> 91.76426496 | T31: =S31-20*LOG(5)+2.5 -> 80.28486487 | U31: ='loudness index'!K13 -> 32.94 | Z31: ='Optimize Size'!A25 -> 125 | AA31: 0.2724465658
A32: 6 | B32: 0.085 | D32: 7.5 | Z32: ='Optimize Size'!A26 -> 160 | AA32: 0.3908565
A33: 8 | B33: 0.08 | D33: 10 | Z33: ='Optimize Size'!A27 -> 200 | AA33: 0.4928299903
A34: 10 | B34: 0.075 | D34: 15 | Z34: ='Optimize Size'!A28 -> 250 | AA34: 0.5645585453
A35: 20 | B35: 0.07 | D35: 20 | Z35: ='Optimize Size'!A29 -> 
A36: 30 | B36: 0.066 | D36: 25 | Z36: ='Optimize Size'!A30 -> 
A37: 40 | B37: 0.064 | D37: 30 | Z37: ='Optimize Size'!A31 -> 
A38: 60 | B38: 0.061 | D38: 40 | Z38: ='Optimize Size'!A32 -> 
A39: 80 | B39: 0.06 | D39: 50 | Z39: ='Optimize Size'!A33 -> 
A40: 100 | B40: 0.06 | D40: 60 | Z40: ='Optimize Size'!A34 -> 
A41: 200 | B41: 0.06 | D41: 75
A42: 600 | B42: 0.06 | D42: 100
D43: 125
D44: 150
A45: 4.542735577 | B45: 0.05932157859 | C45: =A45*(1+B45) -> 4.812217822 | D45: 200
D46: 250
D47: 300
D48: 350
D49: 400
D50: 450
D51: 500
M65: Min | N65: Max | O65: min | P65: max | Q65: min | R65: max
B66: ='Optimize Size'!E19 -> 0.85 | M66: cfm | N66: cfm | O66: sp | P66: sp | Q66: rpm | R66: rpm
B67: ='Optimize Size'!G19 -> 1.15 | M67: 1 | N67: =M67+1 -> 2 | O67: =N67+1 -> 3 | P67: =O67+1 -> 4 | Q67: =P67+1 -> 5 | R67: =Q67+1 -> 6
L68: SIZE | M68: =M73 -> A | N68: B | O68: D | P68: E | Q68: F | R68: G
L69: =N2 -> 250 | M69: =VLOOKUP(N2,$L$74:$R$79,2) -> 10 | N69: =VLOOKUP($N$2,$L$74:$R$79,3) -> 5800 | O69: =VLOOKUP($N$2,$L$74:$R$79,4) -> 0.1 | P69: =VLOOKUP($N$2,$L$74:$R$79,5) -> 24 | Q69: =VLOOKUP($N$2,$L$74:$R$79,6) -> 10 | R69: =VLOOKUP($N$2,$L$74:$R$79,7) -> 3540
B71: Fan Weight | F71: Motor Weight
D72: [Lb] | F72: 1 | G72: =VLOOKUP(F72,F73:G91,2) -> 0.25 | H72: [Lb] | M72: 1 | N72: =M72+1 -> 2 | O72: =N72+1 -> 3 | P72: =O72+1 -> 4 | Q72: =P72+1 -> 5 | R72: =Q72+1 -> 6
C73: 63 | D73: 225 | F73: 1 | G73: 0.25 | H73: 18 | I73: 1 | J73: =VLOOKUP(K73,G73:I91,3) -> 9 | K73: 5 | L73: Size | M73: A | N73: B | O73: D | P73: E | Q73: F | R73: G
C74: 90 | D74: 225 | F74: 2 | G74: 0.33 | H74: 20 | I74: 2 | L74: 63 | M74: 10 | N74: 320 | O74: 0.1 | P74: 24 | Q74: 10 | R74: 3540
C75: 125 | D75: 230 | F75: 3 | G75: 0.5 | H75: 22 | I75: 3 | L75: 90 | M75: 10 | N75: 690 | O75: 0.1 | P75: 24 | Q75: 10 | R75: 3540
C76: 160 | D76: 240 | F76: 4 | G76: 0.75 | H76: 26 | I76: 4 | L76: 125 | M76: 10 | N76: 1300 | O76: 0.1 | P76: 26 | Q76: 10 | R76: 3540
C77: 200 | D77: 245 | F77: 5 | G77: 1 | H77: 38 | I77: 5 | L77: 160 | M77: 10 | N77: 2500 | O77: 0.1 | P77: 27 | Q77: 10 | R77: 3540
C78: 250 | D78: 255 | F78: 6 | G78: 1.5 | H78: 35 | I78: 6 | L78: 200 | M78: 10 | N78: 2900 | O78: 0.1 | P78: 27 | Q78: 10 | R78: 3540
F79: 7 | G79: 2 | H79: 42 | I79: 7 | L79: 250 | M79: 10 | N79: 5800 | O79: 0.1 | P79: 24 | Q79: 10 | R79: 3540
F80: 8 | G80: 3 | H80: 96 | I80: 8
F81: 9 | G81: 5 | H81: 110 | I81: 9
F82: 10 | G82: 7.5 | H82: 158 | I82: 10
F83: 11 | G83: 10 | H83: 196 | I83: 11
F84: 12 | G84: 15 | H84: 266 | I84: 12
F85: 13 | G85: 20 | H85: 290 | I85: 13
F86: 14 | G86: 25 | H86: 380 | I86: 14
F87: 15 | G87: 30 | H87: 422 | I87: 15
F88: 16 | G88: 40 | H88: 462 | I88: 16
F89: 17 | G89: 50 | H89: 588 | I89: 17
F90: 18 | G90: 60 | H90: 834 | I90: 18
F91: 19 | G91: 75 | H91: 912 | I91: 19
A116: 21 | B116: UNKNOWN
A117: 1 | B117: 690 | C117: 860
A118: 2 | B118: 850 | C118: 1170
A119: 3 | B119: 870 | C119: 1760
A120: 4 | B120: 1140 | C120: 3500
A121: 5 | B121: 1150 | C121: 3450
A122: 6 | B122: 1160
A123: 7 | B123: 1165
A124: 8 | B124: 1170
A125: 9 | B125: 1175
A126: 10 | B126: 1180
A127: 11 | B127: 1725
A128: 12 | B128: 1735
A129: 13 | B129: 1740
A130: 14 | B130: 1745
A131: 15 | B131: 1750
A132: 16 | B132: 1755
A133: 17 | B133: 1760
A134: 18 | B134: 1765
A135: 19 | B135: 1770
A136: 20 | B136: 3450
A137: 21 | B137: UNKNOWN

Sheet AMCA 207 Tables (hidden)
A1: Table A1. EISA 2007 Nominal Motor Effciency
A2: Motor Power (hp) | B2: ODP
B3: 2 | C3: 4 | D3: 6 | E3: 8
A4: 1 | B4: 0.77 | C4: 0.855 | D4: 0.825 | E4: 0.755
A5: 1.5 | B5: 0.84 | C5: 0.865 | D5: 0.865 | E5: 0.77
A6: 2 | B6: 0.855 | C6: 0.865 | D6: 0.875 | E6: 0.865
A7: 3 | B7: 0.855 | C7: 0.895 | D7: 0.885 | E7: 0.875
A8: 5 | B8: 0.865 | C8: 0.895 | D8: 0.895 | E8: 0.885
A9: 7.5 | B9: 0.885 | C9: 0.91 | D9: 0.902 | E9: 0.895
A10: 10 | B10: 0.895 | C10: 0.917 | D10: 0.917 | E10: 0.902
A11: 15 | B11: 0.902 | C11: 0.93 | D11: 0.917 | E11: 0.902
A12: 20 | B12: 0.91 | C12: 0.93 | D12: 0.924 | E12: 0.91
A13: 25 | B13: 0.917 | C13: 0.936 | D13: 0.93 | E13: 0.91
A14: 30 | B14: 0.917 | C14: 0.941 | D14: 0.936 | E14: 0.917
A15: 40 | B15: 0.924 | C15: 0.941 | D15: 0.941 | E15: 0.917
A16: 50 | B16: 0.93 | C16: 0.945 | D16: 0.941 | E16: 0.924
A17: 60 | B17: 0.936 | C17: 0.95 | D17: 0.945 | E17: 0.93
A18: 75 | B18: 0.936 | C18: 0.95 | D18: 0.945 | E18: 0.941
A19: 100 | B19: 0.936 | C19: 0.954 | D19: 0.95 | E19: 0.941
A20: 125 | B20: 0.941 | C20: 0.954 | D20: 0.95 | E20: 0.941
A21: 150 | B21: 0.941 | C21: 0.958 | D21: 0.954 | E21: 0.941
A22: 200 | B22: 0.95 | C22: 0.958 | D22: 0.954 | E22: 0.941
A23: 250 | B23: 0.95 | C23: 0.958 | D23: 0.954 | E23: 0.95
A24: 300 | B24: 0.954 | C24: 0.958
A25: 350 | B25: 0.954 | C25: 0.958
A26: 400 | B26: 0.958 | C26: 0.958
A27: 450 | B27: 0.958 | C27: 0.962
A28: 500 | B28: 0.958 | C28: 0.962
A30: Table A1. EISA 2007 Nominal Motor Effciency
A31: Motor Power (hp) | B31: TEFC
B32: 2 | C32: 4 | D32: 6 | E32: 8
A33: 1 | B33: 0.77 | C33: 0.855 | D33: 0.825 | E33: 0.72
A34: 1.5 | B34: 0.84 | C34: 0.865 | D34: 0.875 | E34: 0.755
A35: 2 | B35: 0.855 | C35: 0.865 | D35: 0.885 | E35: 0.815
A36: 3 | B36: 0.865 | C36: 0.895 | D36: 0.895 | E36: 0.825
A37: 5 | B37: 0.885 | C37: 0.895 | D37: 0.895 | E37: 0.84
A38: 7.5 | B38: 0.895 | C38: 0.917 | D38: 0.91 | E38: 0.84
A39: 10 | B39: 0.902 | C39: 0.917 | D39: 0.91 | E39: 0.875
A40: 15 | B40: 0.91 | C40: 0.924 | D40: 0.917 | E40: 0.875
A41: 20 | B41: 0.91 | C41: 0.93 | D41: 0.917 | E41: 0.885
A42: 25 | B42: 0.917 | C42: 0.936 | D42: 0.93 | E42: 0.885
A43: 30 | B43: 0.917 | C43: 0.936 | D43: 0.93 | E43: 0.902
A44: 40 | B44: 0.924 | C44: 0.941 | D44: 0.941 | E44: 0.902
A45: 50 | B45: 0.93 | C45: 0.945 | D45: 0.941 | E45: 0.91
A46: 60 | B46: 0.936 | C46: 0.95 | D46: 0.945 | E46: 0.91
A47: 75 | B47: 0.936 | C47: 0.954 | D47: 0.945 | E47: 0.924
A48: 100 | B48: 0.941 | C48: 0.954 | D48: 0.95 | E48: 0.924
A49: 125 | B49: 0.95 | C49: 0.954 | D49: 0.95 | E49: 0.93
A50: 150 | B50: 0.95 | C50: 0.958 | D50: 0.958 | E50: 0.93
A51: 200 | B51: 0.954 | C51: 0.962 | D51: 0.958 | E51: 0.936
A52: 250 | B52: 0.958 | C52: 0.962 | D52: 0.958 | E52: 0.941
A53: 300 | B53: 0.958 | C53: 0.962
A54: 350 | B54: 0.958 | C54: 0.962
A55: 400 | B55: 0.958 | C55: 0.962
A56: 450 | B56: 0.958 | C56: 0.962
A57: 500 | B57: 0.958 | C57: 0.962
A59: Table A2. IEC60034-30 Nominal Motor Efficiency
A60: Motor Power (kW) | B60: IE1 | E60: IE2 | H60: IE3
B61: 2 Pole | C61: 4 Pole | D61: 6 Pole | E61: 2 Pole | F61: 4 Pole | G61: 6 Pole | H61: 2 Pole | I61: 4 Pole | J61: 6 Pole
B62: 50 Hz | C62: 50 Hz | D62: 50 Hz | E62: 50 Hz | F62: 50 Hz | G62: 50 Hz | H62: 50 Hz | I62: 50 Hz | J62: 50 Hz
A63: 1 | B63: 72.1 | C63: 72.1 | D63: 70 | E63: 77.4 | F63: 79.6 | G63: 75.9 | H63: 80.7 | I63: 82.5 | J63: 78.9
A64: 1.1 | B64: 75 | C64: 75 | D64: 72.9 | E64: 79.6 | F64: 81.4 | G64: 78.1 | H64: 82.7 | I64: 84.1 | J64: 81
A65: 1.5 | B65: 77.2 | C65: 77.2 | D65: 75.2 | E65: 81.3 | F65: 82.8 | G65: 79.8 | H65: 84.2 | I65: 85.3 | J65: 82.5
A66: 2.2 | B66: 79.7 | C66: 79.7 | D66: 77.7 | E66: 83.2 | F66: 84.3 | G66: 81.8 | H66: 85.9 | I66: 86.7 | J66: 84.3
A67: 3 | B67: 81.5 | C67: 81.5 | D67: 79.7 | E67: 84.6 | F67: 85.5 | G67: 83.3 | H67: 87.1 | I67: 87.7 | J67: 85.6
A68: 4 | B68: 83.1 | C68: 83.1 | D68: 81.4 | E68: 85.8 | F68: 86.6 | G68: 84.6 | H68: 88.1 | I68: 88.6 | J68: 86.8
A69: 5.5 | B69: 84.7 | C69: 84.7 | D69: 83.1 | E69: 87 | F69: 87.7 | G69: 86 | H69: 89.2 | I69: 89.6 | J69: 88
A70: 7.5 | B70: 86 | C70: 86 | D70: 84.7 | E70: 88.1 | F70: 88.7 | G70: 87.2 | H70: 90.1 | I70: 90.4 | J70: 89.1
A71: 11 | B71: 87.6 | C71: 87.6 | D71: 86.4 | E71: 89.4 | F71: 89.8 | G71: 88.7 | H71: 91.2 | I71: 91.4 | J71: 90.3
A72: 15 | B72: 88.7 | C72: 88.7 | D72: 87.7 | E72: 90.3 | F72: 90.6 | G72: 89.7 | H72: 91.9 | I72: 92.1 | J72: 91.2
A73: 18.5 | B73: 89.3 | C73: 89.3 | D73: 88.6 | E73: 90.9 | F73: 91.2 | G73: 90.4 | H73: 92.4 | I73: 92.6 | J73: 91.7
A74: 22 | B74: 89.9 | C74: 89.9 | D74: 89.2 | E74: 91.3 | F74: 91.6 | G74: 90.9 | H74: 92.7 | I74: 93 | J74: 92.2
A75: 30 | B75: 90.7 | C75: 90.7 | D75: 90.2 | E75: 92 | F75: 92.3 | G75: 91.7 | H75: 93.3 | I75: 93.6 | J75: 92.9
A76: 37 | B76: 91.2 | C76: 91.2 | D76: 90.8 | E76: 92.5 | F76: 92.7 | G76: 92.2 | H76: 93.7 | I76: 93.9 | J76: 93.3
A77: 45 | B77: 91.7 | C77: 91.7 | D77: 91.4 | E77: 92.9 | F77: 93.1 | G77: 92.7 | H77: 94 | I77: 94.2 | J77: 93.7
A78: 55 | B78: 92.1 | C78: 92.1 | D78: 91.9 | E78: 93.2 | F78: 93.5 | G78: 93.1 | H78: 94.3 | I78: 94.6 | J78: 94.1
A79: 75 | B79: 92.7 | C79: 92.7 | D79: 92.6 | E79: 93.8 | F79: 94 | G79: 93.7 | H79: 94.7 | I79: 95 | J79: 94.6
A80: 90 | B80: 93 | C80: 93 | D80: 92.9 | E80: 94.1 | F80: 94.2 | G80: 94 | H80: 95 | I80: 95.2 | J80: 94.9
A81: 110 | B81: 93.3 | C81: 93.3 | D81: 93.3 | E81: 94.3 | F81: 94.5 | G81: 94.3 | H81: 95.2 | I81: 95.4 | J81: 95.1
A82: 132 | B82: 93.5 | C82: 93.5 | D82: 93.5 | E82: 94.6 | F82: 94.7 | G82: 94.6 | H82: 95.4 | I82: 95.6 | J82: 95.4
A83: 160 | B83: 93.8 | C83: 93.8 | D83: 93.8 | E83: 94.8 | F83: 94.9 | G83: 94.8 | H83: 95.6 | I83: 95.8 | J83: 95.6
A84: 200 | B84: 94 | C84: 94 | D84: 94 | E84: 95 | F84: 95.1 | G84: 95 | H84: 95.8 | I84: 96 | J84: 95.8
A85: 220 | B85: 94 | C85: 94 | D85: 94 | E85: 95 | F85: 95.1 | G85: 95 | H85: 95.8 | I85: 96 | J85: 95.8
A86: 250 | B86: 94 | C86: 94 | D86: 94 | E86: 95 | F86: 95.1 | G86: 95 | H86: 95.8 | I86: 96 | J86: 95.8
A87: 300 | B87: 94 | C87: 94 | D87: 94 | E87: 95 | F87: 95.1 | G87: 95 | H87: 95.8 | I87: 96 | J87: 95.8
A88: 330 | B88: 94 | C88: 94 | D88: 94 | E88: 95 | F88: 95.1 | G88: 95 | H88: 95.8 | I88: 96 | J88: 95.8
A89: 375 | B89: 94 | C89: 94 | D89: 94 | E89: 95 | F89: 95.1 | G89: 95 | H89: 95.8 | I89: 96 | J89: 95.8
A91: Table A3. GB 18613-2012 Nominal Motor Efficiency
A92: Motor Power (kW) | B92: Grade 1 | E92: Grade 2 | H92: Grade 3
B93: 2 Pole | C93: 4 Pole | D93: 6 Pole | E93: 2 Pole | F93: 4 Pole | G93: 6 Pole | H93: 2 Pole | I93: 4 Pole | J93: 6 Pole
A94: 1 | B94: 84.9 | C94: 85.6 | D94: 83.1 | E94: 80.7 | F94: 82.5 | G94: 78.9 | H94: 77.4 | I94: 79.6 | J94: 75.9
A95: 1.1 | B95: 86.7 | C95: 87.4 | D95: 84.1 | E95: 82.7 | F95: 84.1 | G95: 81 | H95: 79.6 | I95: 81.4 | J95: 78.1
A96: 1.5 | B96: 87.5 | C96: 88.1 | D96: 86.2 | E96: 84.2 | F96: 85.3 | G96: 82.5 | H96: 81.3 | I96: 82.8 | J96: 79.8
A97: 2.2 | B97: 89.1 | C97: 89.7 | D97: 87.1 | E97: 85.9 | F97: 86.7 | G97: 84.3 | H97: 83.2 | I97: 84.3 | J97: 81.8
A98: 3 | B98: 89.7 | C98: 90.3 | D98: 88.7 | E98: 87.1 | F98: 87.7 | G98: 85.6 | H98: 84.6 | I98: 85.5 | J98: 83.3
A99: 4 | B99: 90.3 | C99: 90.9 | D99: 89.7 | E99: 88.1 | F99: 88.6 | G99: 86.8 | H99: 85.8 | I99: 86.6 | J99: 84.6
A100: 5.5 | B100: 91.5 | C100: 92.1 | D100: 89.5 | E100: 89.2 | F100: 89.6 | G100: 88 | H100: 87 | I100: 87.7 | J100: 86
A101: 7.5 | B101: 92.1 | C101: 92.6 | D101: 90.2 | E101: 90.1 | F101: 90.4 | G101: 89.1 | H101: 88.1 | I101: 88.7 | J101: 87.2
A102: 11 | B102: 93 | C102: 93.6 | D102: 91.5 | E102: 91.2 | F102: 91.4 | G102: 90.3 | H102: 89.4 | I102: 89.8 | J102: 88.7
A103: 15 | B103: 93.4 | C103: 94 | D103: 92.5 | E103: 91.9 | F103: 92.1 | G103: 91.2 | H103: 90.3 | I103: 90.6 | J103: 89.7
A104: 18.5 | B104: 93.8 | C104: 94.3 | D104: 93.1 | E104: 92.4 | F104: 92.6 | G104: 91.7 | H104: 90.9 | I104: 91.2 | J104: 90.4
A105: 22 | B105: 94.4 | C105: 94.7 | D105: 93.9 | E105: 92.7 | F105: 93 | G105: 92.2 | H105: 91.3 | I105: 91.6 | J105: 90.9
A106: 30 | B106: 94.5 | C106: 95 | D106: 94.3 | E106: 93.3 | F106: 93.6 | G106: 92.9 | H106: 92 | I106: 92.3 | J106: 91.7
A107: 37 | B107: 94.8 | C107: 95.3 | D107: 94.6 | E107: 93.7 | F107: 93.9 | G107: 93.3 | H107: 92.5 | I107: 92.7 | J107: 92.2
A108: 45 | B108: 95.1 | C108: 95.6 | D108: 94.9 | E108: 94 | F108: 94.2 | G108: 93.7 | H108: 92.9 | I108: 93.1 | J108: 92.7
A109: 55 | B109: 95.4 | C109: 95.8 | D109: 95.2 | E109: 94.3 | F109: 94.6 | G109: 94.1 | H109: 93.2 | I109: 93.5 | J109: 93.1
A110: 75 | B110: 95.6 | C110: 96 | D110: 95.4 | E110: 94.7 | F110: 95 | G110: 94.6 | H110: 93.8 | I110: 94 | J110: 93.7
A111: 90 | B111: 95.8 | C111: 96.2 | D111: 95.6 | E111: 95 | F111: 95.2 | G111: 94.9 | H111: 94.1 | I111: 94.2 | J111: 94
A112: 110 | B112: 96 | C112: 96.4 | D112: 95.6 | E112: 95.2 | F112: 95.4 | G112: 95.1 | H112: 94.6 | I112: 94.5 | J112: 94.3
A113: 132 | B113: 95 | C113: 96.5 | D113: 95.8 | E113: 95.4 | F113: 95.6 | G113: 95.4 | H113: 94.6 | I113: 94.7 | J113: 94.6
A114: 160 | B114: 96.2 | C114: 96.5 | D114: 96 | E114: 95.6 | F114: 95.8 | G114: 95.6 | H114: 94.8 | I114: 94.9 | J114: 94.8
A115: 200 | B115: 96.3 | C115: 96.6 | D115: 96.1 | E115: 95.8 | F115: 96 | G115: 95.8 | H115: 95 | I115: 95.1 | J115: 95
A116: 250 | B116: 96.4 | C116: 96.7 | D116: 96.1 | E116: 95.8 | F116: 96 | G116: 95.8 | H116: 95 | I116: 95.1 | J116: 95
A117: 315 | B117: 96.5 | C117: 96.8 | D117: 96.1 | E117: 95.8 | F117: 96 | G117: 95.8 | H117: 95 | I117: 95.1 | J117: 95
A118: 355 | B118: 96.6 | C118: 96.8 | D118: 96.1 | E118: 95.8 | F118: 96 | G118: 95.8 | H118: 95 | I118: 95.1 | J118: 95
A119: 375 | B119: 96.6 | C119: 96.8 | D119: 96.1 | E119: 95.8 | F119: 96 | G119: 95.8 | H119: 95 | I119: 95.1 | J119: 95
A121: Table B1. Polyphase Induction Motor Coefficients, VFD Driven (hp)
A122: HP | B122: 2 POLE | E122: 4 POLE | H122: 6 POLE | K122: 8 POLE
B123: a | C123: b | D123: c | E123: a | F123: b | G123: c | H123: a | I123: b | J123: c | K123: a | L123: b | M123: c
A124: 1 | B124: 1.029058709 | C124: 0.01701058158 | D124: =1-(B124/(C124+1)) -> -0.01184660968 | E124: 1.03744 | F124: 0.03337 | G124: =1-(E124/(F124+1)) -> -0.003938569922 | H124: 1.0905913 | I124: 0.06456925259 | J124: =1-(H124/(I124+1)) -> -0.02444373351 | K124: 1.0905913 | L124: 0.06456925259 | M124: =1-(K124/(L124+1)) -> -0.02444373351
A125: 1.5 | B125: 1.029977133 | C125: 0.01610317847 | D125: =1-(B125/(C125+1)) -> -0.01365408061 | E125: 1.03812 | F125: 0.03119670754 | G125: =1-(E125/(F125+1)) -> -0.006713842677 | H125: 1.084843844 | I125: 0.05902774502 | J125: =1-(H125/(I125+1)) -> -0.02437716959 | K125: 1.084843844 | L125: 0.05902774502 | M125: =1-(K125/(L125+1)) -> -0.02437716959
A126: 2 | B126: 1.030895557 | C126: 0.01519577537 | D126: -0.01546478264 | E126: 1.0388 | F126: 0.02902048985 | G126: -0.009503707892 | H126: 1.079096388 | I126: 0.05348623744 | J126: -0.02430990538 | K126: 1.079096388 | L126: 0.05348623744 | M126: -0.02430990538
A127: 3 | B127: 1.032732406 | C127: 0.01338096915 | D127: -0.01909591475 | E127: 1.04016 | F127: 0.02466805448 | G127: -0.01511898947 | H127: 1.067601477 | I127: 0.04240322229 | J127: -0.02417323148 | K127: 1.067601477 | L127: 0.04240322229 | M127: -0.02417323148
A128: 5 | B128: 1.036406103 | C128: 0.009751356732 | D128: -0.02639733595 | E128: 1.04288 | F128: 0.01596318373 | G128: -0.02649388945 | H128: 1.044611654 | I128: 0.02023719198 | J128: -0.02389097541 | K128: 1.044611654 | L128: 0.02023719198 | M128: -0.02389097541
A129: 7.5 | B129: 1.034892242 | C129: 0.008916167604 | D129: -0.02574651386 | E129: 1.04077 | F129: 0.01446346728 | G129: -0.0259314737 | H129: 1.04242939 | I129: 0.01798081369 | J129: -0.02401673575 | K129: 1.04242939 | L129: 0.01798081369 | M129: -0.02401673575
A130: 10 | B130: 1.033378381 | C130: 0.008080978477 | D130: -0.02509461336 | E130: 1.03866 | F130: 0.01296375083 | G130: -0.02536739261 | H130: 1.040247126 | I130: 0.0157244354 | J130: -0.02414305482 | K130: 1.040247126 | L130: 0.0157244354 | M130: -0.02414305482
A131: 15 | B131: 1.030350659 | C131: 0.006410600222 | D131: -0.02378756641 | E131: 1.03443 | F131: 0.00996431794 | G131: -0.0242243034 | H131: 1.035882599 | I131: 0.01121167881 | J131: -0.02439738415 | K131: 1.035882599 | L131: 0.01121167881 | M131: -0.02439738415
A132: 20 | B132: 1.027322938 | C132: 0.004740221967 | D132: -0.02247617354 | E132: 1.03021 | F132: 0.006964885047 | G132: -0.02308433521 | H132: 1.031518071 | I132: 0.006698922229 | J132: -0.02465399365 | K132: 1.031518071 | L132: 0.006698922229 | M132: -0.02465399365
A133: 25 | B133: 1.0265368 | C133: 0.004758012192 | D133: -0.0216756546 | E133: 1.02882 | F133: 0.006421183383 | G133: -0.02225590735 | H133: 1.029774386 | I133: 0.006223126419 | J133: -0.02340560335 | K133: 1.029774386 | L133: 0.006223126419 | M133: -0.02340560335
A134: 30 | B134: 1.025750662 | C134: 0.004775802417 | D134: -0.020875164 | E134: 1.02742 | F134: 0.005877481719 | G134: -0.02141664236 | H134: 1.028030701 | I134: 0.005747330609 | J134: -0.02215603188 | K134: 1.028030701 | L134: 0.005747330609 | M134: -0.02215603188
A135: 40 | B135: 1.024178387 | C135: 0.004811382867 | D135: -0.01927426785 | E135: 1.02464 | F135: 0.004790078391 | G135: -0.01975529221 | H135: 1.02454333 | I135: 0.00479573899 | J135: -0.01965333871 | K135: 1.02454333 | L135: 0.00479573899 | M135: -0.01965333871
A136: 50 | B136: 1.022606111 | C136: 0.004846963317 | D136: -0.01767348506 | E136: 1.02185 | F136: 0.003702675063 | G136: -0.01808037917 | H136: 1.021055959 | I136: 0.003844147371 | J136: -0.01714590071 | K136: 1.021055959 | L136: 0.003844147371 | M136: -0.01714590071
A137: 60 | B137: 1.022259272 | C137: 0.004488778563 | D137: -0.01769108246 | E137: 1.021 | F137: 0.003499895607 | G137: -0.01743906947 | H137: 1.020572713 | I137: 0.003986054991 | J137: -0.01652080566 | K137: 1.020572713 | L137: 0.003986054991 | M137: -0.01652080566
A138: 75 | B138: 1.021739014 | C138: 0.003951501432 | D138: -0.01771750211 | E138: 1.01972 | F138: 0.003195726423 | G138: -0.01647163474 | H138: 1.019847845 | I138: 0.004198916421 | J138: -0.01558349434 | K138: 1.019847845 | L138: 0.004198916421 | M138: -0.01558349434
A139: 100 | B139: 1.020871917 | C139: 0.003056039548 | D139: -0.01776159775 | E139: 1.01758 | F139: 0.002688777784 | G139: -0.0148512904 | H139: 1.01863973 | I139: 0.004553685471 | J139: -0.01402219153 | K139: 1.01863973 | L139: 0.004553685471 | M139: -0.01402219153
A140: 125 | B140: 1.019970936 | C140: 0.002992966176 | D140: -0.01692730697 | E140: 1.01725 | F140: 0.002857560252 | G140: -0.01435142967 | H140: 1.019555448 | I140: 0.004585554345 | J140: -0.01490156212 | K140: 1.019555448 | L140: 0.004585554345 | M140: -0.01490156212
A141: 150 | B141: 1.019069955 | C141: 0.002929892804 | D141: -0.01609291125 | E141: 1.01692 | F141: 0.003026342719 | G141: -0.01385173718 | H141: 1.020471167 | I141: 0.004617423219 | J141: -0.01578087692 | K141: 1.020471167 | L141: 0.004617423219 | M141: -0.01578087692
A142: 200 | B142: 1.017267992 | C142: 0.00280374606 | D142: -0.01442380492 | E142: 1.01626 | F142: 0.00336 | G142: -0.01285680115 | H142: 1.022302605 | I142: 0.004681160967 | J142: -0.01753933917 | K142: 1.022302605 | L142: 0.004681160967 | M142: -0.01753933917
A143: 250 | B143: 1.017267992 | C143: 0.00280374606 | D143: -0.01442380492 | E143: 1.01626 | F143: 0.00336 | G143: -0.01285680115 | H143: 1.022302605 | I143: 0.004681160967 | J143: -0.01753933917 | K143: 1.022302605 | L143: 0.004681160967 | M143: -0.01753933917
A144: 300 | B144: 1.017267992 | C144: 0.00280374606 | D144: -0.01442380492 | E144: 1.01626 | F144: 0.00336 | G144: -0.01285680115 | H144: 1.022302605 | I144: 0.004681160967 | J144: -0.01753933917 | K144: 1.022302605 | L144: 0.004681160967 | M144: -0.01753933917
A145: 350 | B145: 1.017267992 | C145: 0.00280374606 | D145: -0.01442380492 | E145: 1.01626 | F145: 0.00336 | G145: -0.01285680115 | H145: 1.022302605 | I145: 0.004681160967 | J145: -0.01753933917 | K145: 1.022302605 | L145: 0.004681160967 | M145: -0.01753933917
A146: 400 | B146: 1.017267992 | C146: 0.00280374606 | D146: -0.01442380492 | E146: 1.01626 | F146: 0.00336 | G146: -0.01285680115 | H146: 1.022302605 | I146: 0.004681160967 | J146: -0.01753933917 | K146: 1.022302605 | L146: 0.004681160967 | M146: -0.01753933917
A147: 450 | B147: 1.017267992 | C147: 0.00280374606 | D147: -0.01442380492 | E147: 1.01626 | F147: 0.00336 | G147: -0.01285680115 | H147: 1.022302605 | I147: 0.004681160967 | J147: -0.01753933917 | K147: 1.022302605 | L147: 0.004681160967 | M147: -0.01753933917
A148: 500 | B148: 1.017267992 | C148: 0.00280374606 | D148: -0.01442380492 | E148: 1.01626 | F148: 0.00336 | G148: -0.01285680115 | H148: 1.022302605 | I148: 0.004681160967 | J148: -0.01753933917 | K148: 1.022302605 | L148: 0.004681160967 | M148: -0.01753933917
A150: Table B2. Polyphase Induction Motor Coefficients, VFD Driven (kW)
A151: kW | B151: 2 POLE | E151: 4 POLE | H151: 6 POLE | K151: 8 POLE
B152: a | C152: b | D152: c | E152: a | F152: b | G152: c | H152: a | I152: b | J152: c | K152: a | L152: b | M152: c
A153: 1 | B153: 1.029684124 | C153: 0.01639267169 | D153: =1-(B153/(C153+1)) -> -0.01307708382 | E153: 1.037907038 | F153: 0.03189099683 | G153: =1-(E153/(F153+1)) -> -0.005830112717 | H153: 1.086677483 | I153: 0.06079567907 | J153: =1-(H153/(I153+1)) -> -0.02439848134 | K153: 1.086677483 | L153: 0.06079567907 | M153: =1-(K153/(L153+1)) -> -0.02439848134
A154: 1.1 | B154: 1.02993035 | C154: 0.01614940008 | D154: =1-(B154/(C154+1)) -> -0.01356193301 | E154: 1.038089217 | F154: 0.03130756045 | G154: =1-(E154/(F154+1)) -> -0.006575784822 | H154: 1.08513661 | I154: 0.0593100202 | J154: =1-(H154/(I154+1)) -> -0.02438057708 | K154: 1.08513661 | L154: 0.0593100202 | M154: =1-(K154/(L154+1)) -> -0.02438057708
A155: 1.5 | B155: 1.030915255 | C155: 0.01517631364 | D155: -0.01550365353 | E155: 1.038817935 | F155: 0.02897381494 | G155: -0.009566929282 | H155: 1.078973118 | I155: 0.05336738473 | J155: -0.02430845497 | K155: 1.078973118 | L155: 0.05336738473 | M155: -0.02430845497
A156: 2.2 | B156: 1.03263884 | C156: 0.01347341237 | D156: -0.01891063658 | E156: 1.04009319 | F156: 0.0248897603 | G156: -0.01483421024 | H156: 1.068187008 | I156: 0.04296777266 | J156: -0.02418026364 | K156: 1.068187008 | L156: 0.04296777266 | M156: -0.02418026364
A157: 3 | B157: 1.03460865 | C157: 0.01152723949 | D157: -0.02281837795 | E157: 1.041550626 | F157: 0.02022226928 | G157: -0.02090559779 | H157: 1.055860026 | I157: 0.03108250171 | J157: -0.02403059285 | K157: 1.055860026 | L157: 0.03108250171 | M157: -0.02403059285
A158: 3.7 | B158: 1.036332235 | C158: 0.009824338215 | D158: -0.02625000746 | E158: 1.042825882 | F158: 0.01613821464 | G158: -0.02626381577 | H158: 1.045073916 | I158: 0.02068288964 | J158: -0.02389677158 | K158: 1.045073916 | L158: 0.02068288964 | M158: -0.02389677158
A159: 4 | B159: 1.036186938 | C159: 0.009630444633 | D159: -0.02630318171 | E159: 1.042574762 | F159: 0.0157460666 | G159: -0.02641279734 | H159: 1.044295723 | I159: 0.01991053132 | J159: -0.02390914755 | K159: 1.044295723 | L159: 0.01991053132 | M159: -0.02390914755
A160: 5.5 | B160: 1.034969355 | C160: 0.00895871075 | D160: -0.0257796917 | E160: 1.040876019 | F160: 0.01453986034 | G160: -0.02595872214 | H160: 1.042540551 | I160: 0.01809574985 | J160: -0.02401031625 | K160: 1.042540551 | L160: 0.01809574985 | M160: -0.02401031625
A161: 7.5 | B161: 1.033345912 | C161: 0.008063065573 | D161: -0.02508061975 | E161: 1.038611028 | F161: 0.01293158533 | G161: -0.02535160632 | H161: 1.040200322 | I161: 0.01567604122 | J161: -0.02414577022 | K161: 1.040200322 | L161: 0.01567604122 | M161: -0.02414577022
A162: 11 | B162: 1.030504886 | C162: 0.006495686514 | D162: -0.02385425008 | E162: 1.034647295 | F162: 0.01011710407 | G162: -0.02428450172 | H162: 1.03610492 | I162: 0.01144155113 | J162: -0.02438437417 | K162: 1.03610492 | L162: 0.01144155113 | M162: -0.02438437417
A163: 15 | B163: 1.027306077 | C163: 0.004740603527 | D163: -0.02245900394 | E163: 1.030178044 | F163: 0.006953223885 | G163: -0.0230644483 | H163: 1.031480673 | I163: 0.006688717493 | J163: -0.02462723091 | K163: 1.031480673 | L163: 0.006688717493 | M163: -0.02462723091
A164: 18.5 | B164: 1.026568414 | C164: 0.004757296767 | D164: -0.0217078465 | E164: 1.028871291 | F164: 0.006443048061 | G164: -0.02228466189 | H164: 1.029844507 | I164: 0.006242260299 | J164: -0.0234558295 | K164: 1.029844507 | L164: 0.006242260299 | M164: -0.0234558295
A165: 22 | B165: 1.025830751 | C165: 0.004773990008 | D165: -0.02095671403 | E165: 1.027564538 | F165: 0.005932872237 | G165: -0.02150408453 | H165: 1.028208341 | I165: 0.005795803105 | J165: -0.02228338815 | K165: 1.028208341 | L165: 0.005795803105 | M165: -0.02228338815
A166: 30 | B166: 1.024144665 | C166: 0.004812145986 | D166: -0.01923993351 | E166: 1.024577673 | F166: 0.004766756067 | G166: -0.01971693108 | H166: 1.024468534 | I166: 0.004775329518 | J166: -0.01959960972 | K166: 1.024468534 | L166: 0.004775329518 | M166: -0.01959960972
A167: 37 | B167: 1.022669339 | C167: 0.004845532467 | D167: -0.01773785752 | E167: 1.021964166 | F167: 0.003746404419 | G167: -0.01814976546 | H167: 1.021196202 | I167: 0.00388241513 | J167: -0.01724682775 | K167: 1.021196202 | L167: 0.00388241513 | M167: -0.01724682775
A168: 45 | B168: 1.022248114 | C168: 0.004477255193 | D168: -0.01769164881 | E168: 1.020970696 | F168: 0.003493371871 | G168: -0.01741648199 | H168: 1.020557167 | I168: 0.003990620383 | J168: -0.01650069829 | K168: 1.020557167 | L168: 0.003990620383 | M168: -0.01650069829
A169: 55 | B169: 1.021783183 | C169: 0.003997114772 | D169: -0.01771525806 | E169: 1.019825939 | F169: 0.003221549544 | G169: -0.01655106971 | H169: 1.019909384 | I169: 0.004180845075 | J169: -0.01566305403 | K169: 1.019909384 | L169: 0.004180845075 | M169: -0.01566305403
A170: 75 | B170: 1.020852593 | C170: 0.003054686768 | D170: -0.01774370522 | E170: 1.017575115 | F170: 0.002692397783 | G170: -0.01484275447 | H170: 1.01865937 | I170: 0.004554368986 | J170: -0.01404105261 | K170: 1.01865937 | L170: 0.004554368986 | M170: -0.01404105261
A171: 90 | B171: 1.020127943 | C171: 0.003003957514 | D171: -0.01707270031 | E171: 1.017308818 | F171: 0.002828147757 | G171: -0.01443983228 | H171: 1.019395873 | I171: 0.004580000788 | J171: -0.01474832461 | K171: 1.019395873 | L171: 0.004580000788 | M171: -0.01474832461
A172: 110 | B172: 1.019161744 | C172: 0.00293631851 | D172: -0.01617792151 | E172: 1.016953756 | F172: 0.003009147723 | G172: -0.01390277234 | H172: 1.020377877 | I172: 0.004614176524 | J172: -0.0156912978 | K172: 1.020377877 | L172: 0.004614176524 | M172: -0.0156912978
A173: 132 | B173: 1.018098924 | C173: 0.002861915604 | D173: -0.01519352542 | E173: 1.016563187 | F173: 0.003208247685 | G173: -0.01331223024 | H173: 1.021458081 | I173: 0.004651769834 | J173: -0.01672849422 | K173: 1.021458081 | L173: 0.004651769834 | M173: -0.01672849422
A174: 150 | B174: 1.017267992 | C174: 0.00280374606 | D174: -0.01442380492 | E174: 1.016257833 | F174: 0.003363907655 | G174: -0.01285069693 | H174: 1.022302605 | I174: 0.004681160967 | J174: -0.01753933917 | K174: 1.022302605 | L174: 0.004681160967 | M174: -0.01753933917
A175: 160 | B175: 1.017267992 | C175: 0.00280374606 | D175: -0.01442380492 | E175: 1.016257833 | F175: 0.003363907655 | G175: -0.01285069693 | H175: 1.022302605 | I175: 0.004681160967 | J175: -0.01753933917 | K175: 1.022302605 | L175: 0.004681160967 | M175: -0.01753933917
A176: 185 | B176: 1.017267992 | C176: 0.00280374606 | D176: -0.01442380492 | E176: 1.016257833 | F176: 0.003363907655 | G176: -0.01285069693 | H176: 1.022302605 | I176: 0.004681160967 | J176: -0.01753933917 | K176: 1.022302605 | L176: 0.004681160967 | M176: -0.01753933917
A177: 200 | B177: 1.017267992 | C177: 0.00280374606 | D177: -0.01442380492 | E177: 1.016257833 | F177: 0.003363907655 | G177: -0.01285069693 | H177: 1.022302605 | I177: 0.004681160967 | J177: -0.01753933917 | K177: 1.022302605 | L177: 0.004681160967 | M177: -0.01753933917
A178: 220 | B178: 1.017267992 | C178: 0.00280374606 | D178: -0.01442380492 | E178: 1.016257833 | F178: 0.003363907655 | G178: -0.01285069693 | H178: 1.022302605 | I178: 0.004681160967 | J178: -0.01753933917 | K178: 1.022302605 | L178: 0.004681160967 | M178: -0.01753933917
A179: 250 | B179: 1.017267992 | C179: 0.00280374606 | D179: -0.01442380492 | E179: 1.016257833 | F179: 0.003363907655 | G179: -0.01285069693 | H179: 1.022302605 | I179: 0.004681160967 | J179: -0.01753933917 | K179: 1.022302605 | L179: 0.004681160967 | M179: -0.01753933917
A180: 300 | B180: 1.017267992 | C180: 0.00280374606 | D180: -0.01442380492 | E180: 1.016257833 | F180: 0.003363907655 | G180: -0.01285069693 | H180: 1.022302605 | I180: 0.004681160967 | J180: -0.01753933917 | K180: 1.022302605 | L180: 0.004681160967 | M180: -0.01753933917
A181: 330 | B181: 1.017267992 | C181: 0.00280374606 | D181: -0.01442380492 | E181: 1.016257833 | F181: 0.003363907655 | G181: -0.01285069693 | H181: 1.022302605 | I181: 0.004681160967 | J181: -0.01753933917 | K181: 1.022302605 | L181: 0.004681160967 | M181: -0.01753933917
A182: 375 | B182: 1.017267992 | C182: 0.00280374606 | D182: -0.01442380492 | E182: 1.016257833 | F182: 0.003363907655 | G182: -0.01285069693 | H182: 1.022302605 | I182: 0.004681160967 | J182: -0.01753933917 | K182: 1.022302605 | L182: 0.004681160967 | M182: -0.01753933917
A184: Table C1. VFD Performance Coefficienct (hp capacity)
A185: HP | B185: d | C185: e | D185: f
A186: 1 | B186: 0.9803 | C186: 0.04 | D186: -0.0131
A187: 1.5 | B187: 0.97995 | C187: 0.03855 | D187: -0.0118
A188: 2 | B188: 0.9796 | C188: 0.0371 | D188: -0.0105
A189: 3 | B189: 0.9789 | C189: 0.0342 | D189: -0.0079
A190: 5 | B190: 0.9775 | C190: 0.0284 | D190: -0.0027
A191: 7.5 | B191: 0.9781 | C191: 0.0253 | D191: -0.0004
A192: 10 | B192: 0.9787 | C192: 0.0222 | D192: 0.0019
A193: 15 | B193: 0.98185 | C193: 0.01985 | D193: 0.0007
A194: 20 | B194: 0.985 | C194: 0.0175 | D194: -0.0005
A195: 25 | B195: 0.9862 | C195: 0.0165 | D195: -0.0032
A196: 30 | B196: 0.9874 | C196: 0.0155 | D196: -0.0059
A197: 40 | B197: 0.98765 | C197: 0.01695 | D197: -0.0038
A198: 50 | B198: 0.9879 | C198: 0.0184 | D198: -0.0017
A199: 60 | B199: 0.9719 | C199: 0.0145 | D199: 0.0118
A200: 75 | B200: 0.9919 | C200: 0.0179 | D200: -0.0013
A201: 100 | B201: 0.9824 | C201: 0.0126 | D201: 0.0014
A202: 125 | B202: 0.982925 | C202: 0.0119 | D202: -0.0001
A203: 150 | B203: 0.98345 | C203: 0.0112 | D203: -0.0016
A204: 200 | B204: 0.9845 | C204: 0.0098 | D204: -0.0046
A205: 250 | B205: 0.9845 | C205: 0.0098 | D205: -0.0046
A206: 300 | B206: 0.9845 | C206: 0.0098 | D206: -0.0046
... 260 more rows

Sheet FEI REG (hidden)
A1: FEI Calculations per AMCA 208
A6: Only TEFC motors are considered.
A8: Assumption: VFD capacity is same as motor capacity
Q9: Hi Measured
D10: AMCA 208 Annex A | G10: Duty Point | M10: FEPref Calculation | S10: Fan paired with regulated motor (US Regulation only)
M11: Section 5.2 | S11: Section 5.3.3 (uses AMCA 207)
A12: Qty Sold | B12: Model | C12: Size | D12: Fan Category | E12: Test Config | F12: FEI Pressure Basis | G12: Impeller Dia (in.) | H12: Outlet Area (ft²) | I12: Air Density (lb/ft³) | J12: Airflow (cfm) | K12: Fan Static Pressure (in. wg) | L12: Fan Total Pressure (in. wg) | M12: Hi,ref (bhp) | N12: ηtrans,ref | O12: ηmtr,ref | P12: FEPref (kW) | Q12: Hi,act (bhp) | R12: Drive Type | S12: Motor Size (hp) | T12: Motor Encl. | U12: No. Poles | V12: Include VFD? | W12: VFD Capacity (hp) | X12: ηtrans,act | Y12: ηmtr,act | Z12: FEPact (kW) | AA12: FEI
D13: Centrifugal Inline | F13: Total | G13: 30 | H13: 8.355 | I13: 0.0933 | J13: 20000 | K13: 4 | L13: =IF(F13="Total",K13+(J13/(1097.8*H13))^2*I13,"-") -> 4.443610966 | M13: =IF(F13="Total",($J13+$M$23)*($L13+$M$24*(IF($I13=0,0.075,$I13)/0.075))/(6343*$M$25),($J13+$M$23)*($K13+$M$24*(IF($I13=0,0.075,$I13)/0.075))/(6343*$M$26)) -> 23.90120392 | N13: =0.96*(M13/(M13+2.2))^0.05 -> 0.955782765 | O13: =$M$29*(LOG(M13/N13*0.746))^4+$M$30*(LOG(M13/N13*0.746))^3+$M$31*(LOG(M13/N13*0.746))^2+$M$32*LOG(M13/N13*0.746)+$M$33 -> 0.9357036578 | P13: =M13*(1/N13)*(1/O13)*0.746 -> 19.93705847 | Q13: 30 | R13: V-Belt | S13: 30 | T13: TEFC | U13: 4 | V13: Yes | W13: 30 | X13: =IF($R13="Direct",1,IF($R13="Coupling",0.98,IF($R13="V-Belt",0.96*(Q13/(Q13+2.2))^0.05,IF($R13="Synch Belt",IF(Q13<=1.34,0.94,IF(Q13<=6.7,(0.00746*Q13+0.93),0.98)),"Missing Transmission Type")))) -> 0.9566090874 | Y13: =IF(Q13/X13>1.5*S13, "Overload", IF(AND(V13="Yes",ISNUMBER(W13)),EtaMtrAct(Q13/X13,S13,W13,T13,U13,V13),EtaMtrAct(Q13/X13,S13,S13,T13,U13,V13))) -> 0.9038342143 | Z13: =IF(Q13/X13>1.5*S13, "Overload",Q13*(1/X13)*(1/Y13)*0.746) -> 25.88432253 | AA13: =IF(Q13/X13>1.5*S13, "Overload",P13/Z13) -> 0.7702368278
F14: Total | H14: 0.479 | I14: 0.07492144445 | J14: 1500 | K14: 3 | L14: =IF(F14="Total",K14+(J14/(1097.8*H14))^2*I14,"-") -> 3.609636808 | M14: =IF(F14="Total",($J14+$M$23)*($L14+$M$24*(IF($I14=0,0.075,$I14)/0.075))/(6343*$M$25),($J14+$M$23)*($K14+$M$24*(IF($I14=0,0.075,$I14)/0.075))/(6343*$M$26)) -> 1.675942277 | N14: =0.96*(M14/(M14+2.2))^0.05 -> 0.920588024 | O14: =$M$29*(LOG(M14/N14*0.746))^4+$M$30*(LOG(M14/N14*0.746))^3+$M$31*(LOG(M14/N14*0.746))^2+$M$32*LOG(M14/N14*0.746)+$M$33 -> 0.865741862 | P14: =M14*(1/N14)*(1/O14)*0.746 -> 1.568715347 | Q14: 2.007556677 | R14: V-Belt | S14: 3 | T14: TEFC | U14: 4 | V14: Yes | W14: =S14 -> 3 | X14: =IF($R14="Direct",1,IF($R14="Coupling",0.98,IF($R14="V-Belt",0.96*(Q14/(Q14+2.2))^0.05,IF($R14="Synch Belt",IF(Q14<=1.34,0.94,IF(Q14<=6.7,(0.00746*Q14+0.93),0.98)),"Missing Transmission Type")))) -> 0.9251307682 | Y14: =IF(Q14/X14>1.5*S14, "Overload", IF(AND(V14="Yes",ISNUMBER(W14)),EtaMtrAct(Q14/X14,S14,W14,T14,U14,V14),EtaMtrAct(Q14/X14,S14,S14,T14,U14,V14))) -> 0.833176493 | Z14: =IF(Q14/X14>1.5*S14, "Overload",Q14*(1/X14)*(1/Y14)*0.746) -> 1.942971852 | AA14: =IF(Q14/X14>1.5*S14, "Overload",P14/Z14) -> 0.8073793477
L22: FEPref Constants, section 5.2
L23: Q0 | M23: 250
L24: P0 | M24: 0.4
L25: η0,Total | M25: 0.66
L26: η0,Static | M26: 0.6
L28: Ref Mtr Constants, section 5.2
L29: A | M29: -0.003812
L30: B | M30: 0.025834
L31: C | M31: -0.072577
L32: D | M32: 0.125559
L33: E | M33: 0.850274

Sheet FEI (hidden)
L2: FEPref Constants, section 5.2
L3: Q0 | M3: 250
L4: P0 | M4: 0.4
L5: η0,Total | M5: 0.66
L6: η0,Static | M6: 0.6
L8: Ref Mtr Constants, section 5.2
L9: A | M9: -0.003812
L10: B | M10: 0.025834
L11: C | M11: -0.072577
L12: D | M12: 0.125559
L13: E | M13: 0.850274
A23: Fan Data | E23: Fan Duty Point | J23: FEPref Calculation | N23: Fan with unregulated or w/o motor
J25: Section 5.2 | N25: Section 5.3.4 (default motor efficiency)
A26: FEI Pressure Basis | B26: Drive Type | C26: Impeller Dia (in.) | D26: Outlet Area (ft²) | E26: Air Density (lb/ft³) | F26: Airflow (cfm) | G26: Fan Static Pressure (in. wg) | H26: Hi,act (BHP) | I26: Fan Total Pressure (in. wg) | J26: Hi,ref (BHP) | K26: ηtrans,ref | L26: ηmtr,ref | M26: FEPref (kW) | N26: ηtrans,def | O26: ηmtr,def | P26: FEPact (kW) | Q26: FEI
A27: Total | B27: V-Belt | D27: 0.479 | E27: 0.07492144445 | F27: 807 | G27: 2.944 | H27: 0.7032945752 | I27: =IF(A27="Total",G27+(F27/(1097.8*D27))^2*E27,"-") -> 3.120455716 | J27: =($F27+M3)*($I27+M4*(IF($E27=0,0.075,$E27)/0.075))/(6343*M5) -> 0.8887580316 | K27: =0.96*(J27/(J27+2.2))^0.05 -> 0.9020304858 | L27: =M9*(LOG(J27/K27*0.7457))^4+M10*(LOG(J27/K27*0.7457))^3+M11*(LOG(J27/K27*0.7457))^2+M12*LOG(J27/K27*0.7457)+M13 -> 0.8321010311 | M27: =J27*(1/K27)*(1/L27)*0.7457 -> 0.8829790629 | N27: =IF($B27="Direct",1,IF($B27="Coupling",0.98,IF($B27="V-Belt",0.96*(H27/(H27+2.2))^0.05,IF($B27="Synch Belt",IF(H27<=1.34,0.94,IF(H27<=6.7,(0.00746*H27+0.93),0.98)),"Missing Transmission Type")))) -> 0.8943006395 | O27: =M9*(LOG(H27/N27*0.7457))^4+M10*(LOG(H27/N27*0.7457))^3+M11*(LOG(H27/N27*0.7457))^2+M12*LOG(H27/N27*0.7457)+M13 -> 0.8169399289 | P27: =H27*(1/N27)*(1/O27)*0.7457 -> 0.717840151 | Q27: =M27/P27 -> 1.230049701

Sheet loudness index (hidden)
C2: Loudness Index s (ANSI S3.4-1980)
B3: 1 | C3: 2 | D3: 3 | E3: 4 | F3: 5 | G3: 6 | H3: 7 | I3: 8 | K3: 1 | L3: 2 | M3: 3 | N3: 4 | O3: 5 | P3: 6 | Q3: 7 | R3: 8
A4: Lp | B4: 63 | C4: 125 | D4: 250 | E4: 500 | F4: 1000 | G4: 2000 | H4: 4000 | I4: 8000 | K4: 63 | L4: 125 | M4: 250 | N4: 500 | O4: 1000 | P4: 2000 | Q4: 4000 | R4: 8000
A5: 11 | B5: 0 | C5: 0 | D5: 0 | E5: 0 | F5: 0 | G5: 0 | H5: 0 | I5: 0.18 | J5: Lwmo | K5: =Data1!K31 -> 90.38088095 | L5: =Data1!L31 -> 93.14017651 | M5: =Data1!M31 -> 96.47075366 | N5: =Data1!N31 -> 90.42918517 | O5: =Data1!O31 -> 82.84343891 | P5: =Data1!P31 -> 77.83514418 | Q5: =Data1!Q31 -> 73.45518968 | R5: =Data1!R31 -> 69.37242654
A6: =A5+1 -> 12 | B6: 0 | C6: 0 | D6: 0 | E6: 0 | F6: 0 | G6: 0 | H6: 0.1 | I6: 0.22 | J6: Lp | K6: =(K5-K$16-11.5) -> 78.88088095 | L6: =(L5-L$16-11.5) -> 81.64017651 | M6: 84.97075366 | N6: 78.92918517 | O6: 71.34343891 | P6: 66.33514418 | Q6: 61.95518968 | R6: 57.87242654
A7: 13 | B7: 0 | C7: 0 | D7: 0 | E7: 0 | F7: 0 | G7: 0 | H7: 0.14 | I7: 0.26 | J7: Lp-0.5 | K7: =K6-0.4 -> 78.48088095 | L7: 81.24017651 | M7: 84.57075366 | N7: 78.52918517 | O7: 70.94343891 | P7: 65.93514418 | Q7: 61.55518968 | R7: 57.47242654
A8: 14 | B8: 0 | C8: 0 | D8: 0 | E8: 0 | F8: 0 | G8: 0 | H8: 0.18 | I8: 0.3 | J8: S1-8(1) | K8: =VLOOKUP(K7,A5:I114,2) -> 5.8 | L8: =VLOOKUP(L7,A3:I114,3) -> 9.9 | M8: =VLOOKUP(M7,A5:I114,4) -> 14.4 | N8: =VLOOKUP(N7,A5:I114,5) -> 11.8 | O8: =VLOOKUP(O7,A5:I114,6) -> 8.8 | P8: =VLOOKUP(P7,A5:I114,7) -> 7.8 | Q8: =VLOOKUP(Q7,A5:I114,8) -> 7.4 | R8: =VLOOKUP(R7,A5:I114,9) -> 7
A9: 15 | B9: 0 | C9: 0 | D9: 0 | E9: 0 | F9: 0 | G9: 0.1 | H9: 0.22 | I9: 0.35 | J9: Lp+0.5 | K9: =K6+0.6 -> 79.48088095 | L9: 82.24017651 | M9: 85.57075366 | N9: 79.52918517 | O9: 71.94343891 | P9: 66.93514418 | Q9: 62.55518968 | R9: 58.47242654
A10: 16 | B10: 0 | C10: 0 | D10: 0 | E10: 0 | F10: 0 | G10: 0.14 | H10: 0.26 | I10: 0.4 | J10: S1-8(1) | K10: =VLOOKUP(K9,A5:I114,2) -> 6.2 | L10: =VLOOKUP(L9,A5:I114,3) -> 10.5 | M10: =VLOOKUP(M9,A5:I114,4) -> 15.3 | N10: =VLOOKUP(N9,A5:I114,5) -> 12.6 | O10: =VLOOKUP(O9,A5:I114,6) -> 9.3 | P10: =VLOOKUP(P9,A5:I114,7) -> 8.3 | Q10: =VLOOKUP(Q9,A5:I114,8) -> 7.8 | R10: =VLOOKUP(R9,A5:I114,9) -> 7.4
A11: 17 | B11: 0 | C11: 0 | D11: 0 | E11: 0 | F11: 0 | G11: 0.18 | H11: 0.3 | I11: 0.45 | J11: S1-8 | K11: =(K8+K10)/2 -> 6 | L11: 10.2 | M11: 14.85 | N11: 12.2 | O11: 9.05 | P11: 8.05 | Q11: 7.6 | R11: 7.2
A12: 18 | B12: 0 | C12: 0 | D12: 0 | E12: 0 | F12: 0.1 | G12: 0.22 | H12: 0.35 | I12: 0.5 | J12: Sm | K12: =MAX(K11:R11) -> 14.85
A13: 19 | B13: 0 | C13: 0 | D13: 0 | E13: 0 | F13: 0.14 | G13: 0.26 | H13: 0.4 | I13: 0.55 | J13: S | K13: =0.3*SUM(K11:R11)+0.7*K12 -> 32.94
A14: 20 | B14: 0 | C14: 0 | D14: 0 | E14: 0 | F14: 0.18 | G14: 0.3 | H14: 0.45 | I14: 0.61
A15: 21 | B15: 0 | C15: 0 | D15: 0 | E15: 0 | F15: 0.22 | G15: 0.35 | H15: 0.5 | I15: 0.67
A16: 22 | B16: 0 | C16: 0 | D16: 0 | E16: 0 | F16: 0.26 | G16: 0.4 | H16: 0.55 | I16: 0.73 | J16: E (dB) | K16: =_xlfn.XLOOKUP('Sound calculation-1'!A37,'Sound calculation-1'!Y26:Y31,'Sound calculation-1'!Z26:AG31,0,0,1) -> 0 | L16: 0 | M16: 0 | N16: 0 | O16: 0 | P16: 0 | Q16: 0 | R16: 0
A17: 23 | B17: 0 | C17: 0 | D17: 0 | E17: 0.12 | F17: 0.3 | G17: 0.45 | H17: 0.61 | I17: 0.8
A18: 24 | B18: 0 | C18: 0 | D18: 0 | E18: 0.16 | F18: 0.35 | G18: 0.5 | H18: 0.67 | I18: 0.87
A19: 25 | B19: 0 | C19: 0 | D19: 0 | E19: 0.21 | F19: 0.4 | G19: 0.55 | H19: 0.73 | I19: 0.94
A20: 26 | B20: 0 | C20: 0 | D20: 0 | E20: 0.26 | F20: 0.45 | G20: 0.61 | H20: 0.8 | I20: 1.02
A21: 27 | B21: 0 | C21: 0 | D21: 0 | E21: 0.31 | F21: 0.5 | G21: 0.67 | H21: 0.87 | I21: 1.1
A22: 28 | B22: 0 | C22: 0 | D22: 0 | E22: 0.37 | F22: 0.55 | G22: 0.73 | H22: 0.94 | I22: 1.18
A23: 29 | B23: 0 | C23: 0 | D23: 0.12 | E23: 0.43 | F23: 0.61 | G23: 0.8 | H23: 1.02 | I23: 1.27
A24: 30 | B24: 0 | C24: 0 | D24: 0.16 | E24: 0.49 | F24: 0.67 | G24: 0.87 | H24: 1.1 | I24: 1.35
A25: 31 | B25: 0 | C25: 0 | D25: 0.21 | E25: 0.55 | F25: 0.73 | G25: 0.94 | H25: 1.18 | I25: 1.44
A26: 32 | B26: 0 | C26: 0 | D26: 0.26 | E26: 0.61 | F26: 0.8 | G26: 1.02 | H26: 1.27 | I26: 1.54
A27: 33 | B27: 0 | C27: 0 | D27: 0.31 | E27: 0.67 | F27: 0.87 | G27: 1.1 | H27: 1.35 | I27: 1.64
A28: 34 | B28: 0 | C28: 0 | D28: 0.37 | E28: 0.73 | F28: 0.94 | G28: 1.18 | H28: 1.44 | I28: 1.75
A29: 35 | B29: 0 | C29: 0.12 | D29: 0.43 | E29: 0.8 | F29: 1.02 | G29: 1.27 | H29: 1.54 | I29: 1.87
A30: 36 | B30: 0 | C30: 0.16 | D30: 0.49 | E30: 0.87 | F30: 1.1 | G30: 1.35 | H30: 1.64 | I30: 1.99
A31: 37 | B31: 0 | C31: 0.21 | D31: 0.55 | E31: 0.94 | F31: 1.18 | G31: 1.44 | H31: 1.75 | I31: 2.11
A32: 38 | B32: 0 | C32: 0.26 | D32: 0.62 | E32: 1.02 | F32: 1.27 | G32: 1.54 | H32: 1.87 | I32: 2.24
A33: 39 | B33: 0 | C33: 0.31 | D33: 0.69 | E33: 1.1 | F33: 1.35 | G33: 1.64 | H33: 1.99 | I33: 2.38
A34: 40 | B34: 0 | C34: 0.37 | D34: 0.77 | E34: 1.18 | F34: 1.44 | G34: 1.75 | H34: 2.11 | I34: 2.53
A35: 41 | B35: 0.12 | C35: 0.43 | D35: 0.85 | E35: 1.27 | F35: 1.54 | G35: 1.87 | H35: 2.24 | I35: 2.68
A36: 42 | B36: 0.16 | C36: 0.49 | D36: 0.94 | E36: 1.35 | F36: 1.64 | G36: 1.99 | H36: 2.38 | I36: 2.84
A37: 43 | B37: 0.21 | C37: 0.55 | D37: 1.04 | E37: 1.44 | F37: 1.75 | G37: 2.11 | H37: 2.53 | I37: 3
A38: =A37+1 -> 44 | B38: 0.26 | C38: 0.62 | D38: 1.13 | E38: 1.54 | F38: 1.87 | G38: 2.24 | H38: 2.68 | I38: 3.2
A39: 45 | B39: 0.31 | C39: 0.69 | D39: 1.23 | E39: 1.64 | F39: 1.99 | G39: 2.38 | H39: 2.84 | I39: 3.4
A40: 46 | B40: 0.37 | C40: 0.77 | D40: 1.33 | E40: 1.75 | F40: 2.11 | G40: 2.53 | H40: 3 | I40: 3.6
A41: 47 | B41: 0.43 | C41: 0.85 | D41: 1.44 | E41: 1.87 | F41: 2.24 | G41: 2.68 | H41: 3.2 | I41: 3.8
A42: 48 | B42: 0.49 | C42: 0.94 | D42: 1.56 | E42: 1.99 | F42: 2.38 | G42: 2.84 | H42: 3.4 | I42: 4.1
A43: 49 | B43: 0.55 | C43: 1.04 | D43: 1.68 | E43: 2.11 | F43: 2.53 | G43: 3 | H43: 3.6 | I43: 4.3
A44: 50 | B44: 0.62 | C44: 1.13 | D44: 1.82 | E44: 2.24 | F44: 2.68 | G44: 3.2 | H44: 3.8 | I44: 4.6
A45: 51 | B45: 0.69 | C45: 1.23 | D45: 1.96 | E45: 2.38 | F45: 2.84 | G45: 3.4 | H45: 4.1 | I45: 4.9
A46: 52 | B46: 0.77 | C46: 1.33 | D46: 2.11 | E46: 2.53 | F46: 3 | G46: 3.6 | H46: 4.3 | I46: 5.2
A47: 53 | B47: 0.85 | C47: 1.44 | D47: 2.24 | E47: 2.68 | F47: 3.2 | G47: 3.8 | H47: 4.6 | I47: 5.5
A48: 54 | B48: 0.94 | C48: 1.56 | D48: 2.38 | E48: 2.84 | F48: 3.4 | G48: 4.1 | H48: 4.9 | I48: 5.8
A49: 55 | B49: 1.04 | C49: 1.68 | D49: 2.53 | E49: 3 | F49: 3.6 | G49: 4.3 | H49: 5.2 | I49: 6.2
A50: 56 | B50: 1.13 | C50: 1.82 | D50: 2.68 | E50: 3.2 | F50: 3.8 | G50: 4.6 | H50: 5.5 | I50: 6.6
A51: 57 | B51: 1.23 | C51: 1.96 | D51: 2.84 | E51: 3.4 | F51: 4.1 | G51: 4.9 | H51: 5.8 | I51: 7
A52: 58 | B52: 1.33 | C52: 2.11 | D52: 3 | E52: 3.6 | F52: 4.3 | G52: 5.2 | H52: 6.2 | I52: 7.4
A53: 59 | B53: 1.44 | C53: 2.27 | D53: 3.2 | E53: 3.8 | F53: 4.6 | G53: 5.5 | H53: 6.6 | I53: 7.8
A54: 60 | B54: 1.56 | C54: 2.44 | D54: 3.4 | E54: 4.1 | F54: 4.9 | G54: 5.8 | H54: 7 | I54: 8.3
A55: 61 | B55: 1.68 | C55: 2.61 | D55: 3.6 | E55: 4.3 | F55: 5.2 | G55: 6.2 | H55: 7.4 | I55: 8.8
A56: 62 | B56: 1.82 | C56: 2.81 | D56: 3.8 | E56: 4.6 | F56: 5.5 | G56: 6.6 | H56: 7.8 | I56: 9.3
A57: 63 | B57: 1.96 | C57: 3 | D57: 4.1 | E57: 4.9 | F57: 5.8 | G57: 7 | H57: 8.3 | I57: 9.9
A58: 64 | B58: 2.11 | C58: 3.2 | D58: 4.3 | E58: 5.2 | F58: 6.2 | G58: 7.4 | H58: 8.8 | I58: 10.5
A59: 65 | B59: 2.27 | C59: 3.5 | D59: 4.6 | E59: 5.5 | F59: 6.6 | G59: 7.8 | H59: 9.3 | I59: 11.1
A60: 66 | B60: 2.44 | C60: 3.7 | D60: 4.9 | E60: 5.8 | F60: 7 | G60: 8.3 | H60: 9.9 | I60: 11.8
A61: 67 | B61: 2.61 | C61: 4 | D61: 5.2 | E61: 6.2 | F61: 7.4 | G61: 8.8 | H61: 10.5 | I61: 12.6
A62: 68 | B62: 2.81 | C62: 4.3 | D62: 5.5 | E62: 6.6 | F62: 7.8 | G62: 9.3 | H62: 11.1 | I62: 13.5
A63: 69 | B63: 3 | C63: 4.7 | D63: 5.8 | E63: 7 | F63: 8.3 | G63: 9.9 | H63: 11.8 | I63: 14.4
A64: 70 | B64: 3.2 | C64: 5 | D64: 6.2 | E64: 7.4 | F64: 8.8 | G64: 10.5 | H64: 12.6 | I64: 15.3
A65: 71 | B65: 3.5 | C65: 5.4 | D65: 6.6 | E65: 7.8 | F65: 9.3 | G65: 11.1 | H65: 13.5 | I65: 16.4
A66: 72 | B66: 3.7 | C66: 5.8 | D66: 7 | E66: 8.3 | F66: 9.9 | G66: 11.8 | H66: 14.4 | I66: 17.5
A67: 73 | B67: 4 | C67: 6.2 | D67: 7.4 | E67: 8.8 | F67: 10.5 | G67: 12.6 | H67: 15.3 | I67: 18.7
A68: 74 | B68: 4.3 | C68: 6.6 | D68: 7.8 | E68: 9.3 | F68: 11.1 | G68: 13.5 | H68: 16.4 | I68: 20
A69: 75 | B69: 4.7 | C69: 7 | D69: 8.3 | E69: 9.9 | F69: 11.8 | G69: 14.4 | H69: 17.5 | I69: 21.4
A70: =A69+1 -> 76 | B70: 5 | C70: 7.4 | D70: 8.8 | E70: 10.5 | F70: 12.6 | G70: 15.3 | H70: 18.7 | I70: 23
A71: 77 | B71: 5.4 | C71: 7.8 | D71: 9.3 | E71: 11.1 | F71: 13.5 | G71: 16.4 | H71: 20 | I71: 24.7
A72: 78 | B72: 5.8 | C72: 8.3 | D72: 9.9 | E72: 11.8 | F72: 14.4 | G72: 17.5 | H72: 21.4 | I72: 26.5
A73: 79 | B73: 6.2 | C73: 8.8 | D73: 10.5 | E73: 12.6 | F73: 15.3 | G73: 18.7 | H73: 23 | I73: 28.5
A74: 80 | B74: 6.7 | C74: 9.3 | D74: 11.1 | E74: 13.5 | F74: 16.4 | G74: 20 | H74: 24.7 | I74: 30.5
A75: 81 | B75: 7.2 | C75: 9.9 | D75: 11.8 | E75: 14.4 | F75: 17.5 | G75: 21.4 | H75: 26.5 | I75: 33
A76: 82 | B76: 7.7 | C76: 10.5 | D76: 12.6 | E76: 15.3 | F76: 18.7 | G76: 23 | H76: 28.5 | I76: 35.3
A77: 83 | B77: 8.2 | C77: 11.1 | D77: 13.5 | E77: 16.4 | F77: 20 | G77: 24.7 | H77: 30.5 | I77: 38
A78: 84 | B78: 8.8 | C78: 11.8 | D78: 14.4 | E78: 17.5 | F78: 21.4 | G78: 26.5 | H78: 33 | I78: 41
A79: 85 | B79: 9.4 | C79: 12.6 | D79: 15.3 | E79: 18.7 | F79: 23 | G79: 28.5 | H79: 35.3 | I79: 44
A80: 86 | B80: 10 | C80: 13.5 | D80: 16.4 | E80: 20 | F80: 24.7 | G80: 30.5 | H80: 38 | I80: 48
A81: 87 | B81: 10.8 | C81: 14.4 | D81: 17.5 | E81: 21.4 | F81: 26.5 | G81: 33 | H81: 41 | I81: 52
A82: 88 | B82: 11.7 | C82: 15.3 | D82: 18.7 | E82: 23 | F82: 28.5 | G82: 35.3 | H82: 44 | I82: 56
A83: 89 | B83: 12.6 | C83: 16.4 | D83: 20 | E83: 24.7 | F83: 30.5 | G83: 38 | H83: 48 | I83: 61
A84: 90 | B84: 13.6 | C84: 17.5 | D84: 21.4 | E84: 26.5 | F84: 33 | G84: 41 | H84: 52 | I84: 66
A85: 91 | B85: 14.7 | C85: 18.7 | D85: 23 | E85: 28.5 | F85: 35.3 | G85: 44 | H85: 56 | I85: 71
A86: 92 | B86: 16 | C86: 20 | D86: 24.7 | E86: 30.5 | F86: 38 | G86: 48 | H86: 61 | I86: 77
A87: 93 | B87: 17.3 | C87: 21.4 | D87: 26.5 | E87: 33 | F87: 41 | G87: 52 | H87: 66 | I87: 83
A88: 94 | B88: 18.7 | C88: 23 | D88: 28.5 | E88: 35.3 | F88: 44 | G88: 56 | H88: 71 | I88: 90
A89: 95 | B89: 20 | C89: 24.7 | D89: 30.5 | E89: 38 | F89: 48 | G89: 61 | H89: 77 | I89: 97
A90: 96 | B90: 21.4 | C90: 26.5 | D90: 33 | E90: 41 | F90: 52 | G90: 66 | H90: 83 | I90: 105
A91: 97 | B91: 23 | C91: 28.5 | D91: 35.3 | E91: 44 | F91: 56 | G91: 71 | H91: 90 | I91: 113
A92: 98 | B92: 24.7 | C92: 30.5 | D92: 38 | E92: 48 | F92: 61 | G92: 77 | H92: 97 | I92: 121
A93: 99 | B93: 26.5 | C93: 33 | D93: 41 | E93: 52 | F93: 66 | G93: 83 | H93: 105 | I93: 130
A94: 100 | B94: 28.5 | C94: 35.3 | D94: 44 | E94: 56 | F94: 71 | G94: 90 | H94: 113 | I94: 139
A95: 101 | B95: 30.5 | C95: 38 | D95: 48 | E95: 61 | F95: 77 | G95: 97 | H95: 121 | I95: 149
A96: 102 | B96: 33 | C96: 41 | D96: 52 | E96: 66 | F96: 83 | G96: 105 | H96: 130 | I96: 160
A97: 103 | B97: 35.3 | C97: 44 | D97: 56 | E97: 71 | F97: 90 | G97: 113 | H97: 139 | I97: 171
A98: 104 | B98: 38 | C98: 48 | D98: 61 | E98: 77 | F98: 97 | G98: 121 | H98: 149 | I98: 184
A99: 105 | B99: 41 | C99: 52 | D99: 66 | E99: 83 | F99: 105 | G99: 130 | H99: 160 | I99: 197
A100: 106 | B100: 44 | C100: 56 | D100: 71 | E100: 90 | F100: 113 | G100: 139 | H100: 171 | I100: 211
A101: 107 | B101: 48 | C101: 61 | D101: 77 | E101: 97 | F101: 121 | G101: 149 | H101: 184 | I101: 226
A102: =A101+1 -> 108 | B102: 52 | C102: 66 | D102: 83 | E102: 105 | F102: 130 | G102: 160 | H102: 197 | I102: 242
A103: 109 | B103: 56 | C103: 71 | D103: 90 | E103: 113 | F103: 139 | G103: 171 | H103: 211 | I103: 260
A104: 110 | B104: 61 | C104: 77 | D104: 97 | E104: 121 | F104: 149 | G104: 184 | H104: 226 | I104: 278
A105: 111 | B105: 66 | C105: 83 | D105: 105 | E105: 130 | F105: 160 | G105: 197 | H105: 242 | I105: 298
A106: 112 | B106: 71 | C106: 90 | D106: 113 | E106: 139 | F106: 171 | G106: 211 | H106: 260 | I106: 320
A107: 113 | B107: 77 | C107: 97 | D107: 121 | E107: 149 | F107: 184 | G107: 226 | H107: 278 | I107: 0
A108: 114 | B108: 83 | C108: 105 | D108: 130 | E108: 160 | F108: 197 | G108: 242 | H108: 298 | I108: 0
A109: 115 | B109: 90 | C109: 113 | D109: 139 | E109: 171 | F109: 211 | G109: 260 | H109: 320 | I109: 0
A110: 116 | B110: 97 | C110: 121 | D110: 149 | E110: 184 | F110: 226 | G110: 278 | H110: 0 | I110: 0
A111: 117 | B111: 105 | C111: 130 | D111: 160 | E111: 197 | F111: 242 | G111: 298 | H111: 0 | I111: 0
A112: 118 | B112: 113 | C112: 139 | D112: 171 | E112: 211 | F112: 260 | G112: 320 | H112: 0 | I112: 0
A113: 119 | B113: 121 | C113: 149 | D113: 184 | E113: 226 | F113: 278 | G113: 0 | H113: 0 | I113: 0
A114: 120 | B114: 130 | C114: 160 | D114: 197 | E114: 242 | F114: 298 | G114: 0 | H114: 0 | I114: 0

Sheet Sound calculation (hidden)
C2: RPM | F2: SP | I2: SP
A3: Size | B3: =Performance!G10 -> 125 | C3: =VLOOKUP($B$3,$A$52:$I$71,2) -> 1600 | D3: =IF(C3-$B$4<=0,C3-$B$4,-10000) -> -903 | E3: =IF(C3-$B$4>0,C3-$B$4,10000) -> 10000 | F3: =VLOOKUP($D$12,$E$15:$H$22,2) -> 0.25 | G3: =IF(F3-$B$5<=0,F3-$B$5,-10000) -> -2.694 | H3: =IF(F3-$B$5>0,F3-$B$5,10000) -> 10000 | I3: =VLOOKUP($E$12,$E$15:$H$22,2) -> 0.25 | J3: =IF(I3-$B$5<=0,I3-$B$5,-10000) -> -2.694 | K3: =IF(I3-$B$5>0,I3-$B$5,10000) -> 10000 | M3: =G8 -> 7 | N3: =G7 -> 0.25 | O3: =VLOOKUP($M$3,$N$14:$V$37,2) -> 118.9538864 | P3: =VLOOKUP($M$3,$N$14:$V$37,3) -> 95.80358591 | Q3: =VLOOKUP($M$3,$N$14:$V$37,4) -> 92.27309452 | R3: =VLOOKUP($M$3,$N$14:$V$37,5) -> 103.7348913 | S3: =VLOOKUP($M$3,$N$14:$V$37,6) -> 88.72077474 | T3: =VLOOKUP($M$3,$N$14:$V$37,7) -> 81.31426574 | U3: =VLOOKUP($M$3,$N$14:$V$37,8) -> 77.48652389 | V3: =VLOOKUP($M$3,$N$14:$V$37,9) -> 72.78652389
A4: RPM | B4: =Performance!G15 -> 2503 | C4: =VLOOKUP($B$3,$A$52:$I$71,3) -> 2000 | D4: -503 | E4: 10000 | F4: =VLOOKUP($D$12,$E$15:$H$22,3) -> 6.5 | G4: =IF(F4-$B$5<=0,F4-$B$5,-10000) -> -10000 | H4: =IF(F4-$B$5>0,F4-$B$5,10000) -> 3.556 | I4: =VLOOKUP($E$12,$E$15:$H$22,3) -> 7.5 | J4: =IF(I4-$B$5<=0,I4-$B$5,-10000) -> -10000 | K4: =IF(I4-$B$5>0,I4-$B$5,10000) -> 4.556 | M4: =H8 -> 8 | N4: =H7 -> 6.5 | O4: =VLOOKUP($M$4,$N$14:$V$37,2) -> 118.2068373 | P4: =VLOOKUP($M$4,$N$14:$V$37,3) -> 94.81893689 | Q4: =VLOOKUP($M$4,$N$14:$V$37,4) -> 91.26720195 | R4: =VLOOKUP($M$4,$N$14:$V$37,5) -> 111.5759599 | S4: =VLOOKUP($M$4,$N$14:$V$37,6) -> 86.75884761 | T4: =VLOOKUP($M$4,$N$14:$V$37,7) -> 79.46104783 | U4: =VLOOKUP($M$4,$N$14:$V$37,8) -> 75.31347131 | V4: =VLOOKUP($M$4,$N$14:$V$37,9) -> 70.41347131
A5: SP | B5: =Performance!G13 -> 2.944 | C5: =VLOOKUP($B$3,$A$52:$I$71,4) -> 2400 | D5: -103 | E5: 10000 | F5: =VLOOKUP($D$12,$E$15:$H$22,4) -> 9 | G5: =IF(F5-$B$5<=0,F5-$B$5,-10000) -> -10000 | H5: =IF(F5-$B$5>0,F5-$B$5,10000) -> 6.056 | I5: =VLOOKUP($E$12,$E$15:$H$22,4) -> 12 | J5: =IF(I5-$B$5<=0,I5-$B$5,-10000) -> -10000 | K5: =IF(I5-$B$5>0,I5-$B$5,10000) -> 9.056 | N5: =IF(B5<=F3,F3,IF(B5>G29,G29,B5)) -> 2.944 | O5: =IF((O3-O4)<=0,O3+($N$5-$N$3)*(O4-O3)/($N$4-$N$3),O4+($N$4-$N$5)*(O3-O4)/($N$4-$N$3)) -> 118.6318784 | P5: 95.3791628 | Q5: 91.83951458 | R5: 107.1147055 | S5: 87.87510567 | T5: 80.51545469 | U5: 76.5498513 | V5: 71.7636433
C6: =VLOOKUP($B$3,$A$52:$I$71,5) -> 2600 | D6: -10000 | E6: 97 | G6: =MAX(G3:G5) -> -2.694 | H6: =MIN(H3:H5) -> 3.556 | J6: =MAX(J3:J5) -> -2.694 | K6: =MIN(K3:K5) -> 4.556 | M6: =J8 -> 10 | N6: =J7 -> 0.25 | O6: =VLOOKUP($M$6,$N$14:$V$37,2) -> 122.151667 | P6: =VLOOKUP($M$6,$N$14:$V$37,3) -> 99.16419122 | Q6: =VLOOKUP($M$6,$N$14:$V$37,4) -> 93.5795397 | R6: =VLOOKUP($M$6,$N$14:$V$37,5) -> 105.5010342 | S6: =VLOOKUP($M$6,$N$14:$V$37,6) -> 91.7454343 | T6: =VLOOKUP($M$6,$N$14:$V$37,7) -> 83.7351267 | U6: =VLOOKUP($M$6,$N$14:$V$37,8) -> 79.73896084 | V6: =VLOOKUP($M$6,$N$14:$V$37,9) -> 75.09156077
C7: =VLOOKUP($B$3,$A$52:$I$71,6) -> 2800 | D7: -10000 | E7: 297 | G7: =IF(B5<=F3,F3,IF(B5>=G29,G30,$B$5+G6)) -> 0.25 | H7: =IF($B$5+H6<=F3,F4,IF($B$5+H6>=G29,G29,$B$5+H6)) -> 6.5 | J7: =IF(B5<=I3,I3,IF(B5>=J29,J30,$B$5+J6)) -> 0.25 | K7: =IF($B$5+K6<=I3,I4,IF($B$5+K6>=J29,J29,$B$5+K6)) -> 7.5 | M7: =K8 -> 11 | N7: =K7 -> 7.5 | O7: =VLOOKUP($M$7,$N$14:$V$37,2) -> 121.4429828 | P7: =VLOOKUP($M$7,$N$14:$V$37,3) -> 98.29137253 | Q7: =VLOOKUP($M$7,$N$14:$V$37,4) -> 92.3894117 | R7: =VLOOKUP($M$7,$N$14:$V$37,5) -> 113.1157975 | S7: =VLOOKUP($M$7,$N$14:$V$37,6) -> 89.93429903 | T7: =VLOOKUP($M$7,$N$14:$V$37,7) -> 81.86303206 | U7: =VLOOKUP($M$7,$N$14:$V$37,8) -> 77.57260973 | V7: =VLOOKUP($M$7,$N$14:$V$37,9) -> 72.71741498
C8: =VLOOKUP($B$3,$A$52:$I$71,7) -> 3000 | D8: -10000 | E8: 497 | G8: =VLOOKUP($G$7,$G$10:$H$12,2) -> 7 | H8: =VLOOKUP($H$7,$G$10:$H$12,2) -> 8 | J8: =VLOOKUP($J$7,$J$10:$K$12,2) -> 10 | K8: =VLOOKUP($K$7,$J$10:$K$12,2) -> 11 | N8: =IF(B5<=I3,I3,IF(B5>J29,J29,B5)) -> 2.944 | O8: =IF((O6-O7)<=0,O6+($N$8-$N$6)*(O7-O6)/($N$7-$N$6),O7+($N$7-$N$8)*(O6-O7)/($N$7-$N$6)) -> 121.8883297 | P8: 98.83986383 | Q8: 93.13730455 | R8: 108.3305752 | S8: 91.07244141 | T8: 83.03948215 | U8: 78.93397465 | V8: 74.20936094
C9: =VLOOKUP($B$3,$A$52:$I$71,8) -> 3200 | D9: -10000 | E9: 697
C10: =VLOOKUP($B$3,$A$52:$I$71,9) -> 3450 | D10: -10000 | E10: 947 | G10: =VLOOKUP($D$12,$E$15:$K$22,2) -> 0.25 | H10: =VLOOKUP($D$12,$E$15:$K$22,5) -> 7 | J10: =VLOOKUP($E$12,$E$15:$K$22,2) -> 0.25 | K10: =VLOOKUP($E$12,$E$15:$K$22,5) -> 10 | N10: =D12 -> 2400 | O10: =O5 -> 118.6318784 | P10: 95.3791628 | Q10: 91.83951458 | R10: 107.1147055 | S10: 87.87510567 | T10: 80.51545469 | U10: 76.5498513 | V10: 71.7636433
D11: =MAX(D3:D10) -> -103 | E11: =MIN(E3:E10) -> 97 | G11: =VLOOKUP($D$12,$E$15:$K$22,3) -> 6.5 | H11: =VLOOKUP($D$12,$E$15:$K$22,6) -> 8 | J11: =VLOOKUP($E$12,$E$15:$K$22,3) -> 7.5 | K11: =VLOOKUP($E$12,$E$15:$K$22,6) -> 11 | N11: =E12 -> 2600 | O11: =O8 -> 121.8883297 | P11: 98.83986383 | Q11: 93.13730455 | R11: 108.3305752 | S11: 91.07244141 | T11: 83.03948215 | U11: 78.93397465 | V11: 74.20936094
D12: =IF(B4<=C3,C3,IF(B4>=D29,D30,B4+D11)) -> 2400 | E12: =IF($B$4+E11<=C3,C4,IF($B$4+E11>=D29,D29,$B$4+E11)) -> 2600 | G12: =VLOOKUP($D$12,$E$15:$K$22,4) -> 9 | H12: =VLOOKUP($D$12,$E$15:$K$22,7) -> 9 | J12: =VLOOKUP($E$12,$E$15:$K$22,4) -> 12 | K12: =VLOOKUP($E$12,$E$15:$K$22,7) -> 12 | N12: =IF(B4<C3,C3,IF(B4>C27,C27,B4)) -> 2503 | O12: =IF((O10-O11)<=0,O10+($N$12-$N$10)*(O11-O10)/($N$11-$N$10),O11+($N$11-$N$12)*(O10-O11)/($N$11-$N$10)) -> 120.3089508 | P12: 97.16142383 | Q12: 92.50787642 | R12: 107.7408784 | S12: 89.52173358 | T12: 81.81532883 | U12: 77.77767483 | V12: 73.02318789
N14: 1 | O14: =VLOOKUP($B$3,$A$52:$HQ$71,34) -> 95.65107553 | P14: =VLOOKUP($B$3,$A$52:$HQ$71,35) -> 84.20661666 | Q14: =VLOOKUP($B$3,$A$52:$HQ$71,36) -> 94.69341071 | R14: =VLOOKUP($B$3,$A$52:$HQ$71,37) -> 85.42486107 | S14: =VLOOKUP($B$3,$A$52:$HQ$71,38) -> 75.27283431 | T14: =VLOOKUP($B$3,$A$52:$HQ$71,39) -> 70.08618367 | U14: =VLOOKUP($B$3,$A$52:$HQ$71,40) -> 65.72824312 | V14: =VLOOKUP($B$3,$A$52:$HQ$71,41) -> 61.02824312
B15: 1 | C15: =IF(VLOOKUP($B$3,$A$52:$I$71,2)<>0,VLOOKUP($B$3,$A$52:$I$71,2),8000) -> 1600 | D15: 1 | E15: =IF(VLOOKUP($B$3,$A$52:$I$71,2)<>0,VLOOKUP($B$3,$A$52:$I$71,2),8000) -> 1600 | F15: =VLOOKUP($B$3,$A$52:$AG$71,10) -> 0.25 | G15: =VLOOKUP($B$3,$A$52:$AG$71,11) -> 2.5 | H15: =VLOOKUP($B$3,$A$52:$AG$71,12) -> 4.5 | I15: 1 | J15: 2 | K15: 3 | N15: =N14+1 -> 2 | O15: =VLOOKUP($B$3,$A$52:$HQ$71,42) -> 94.75823168 | P15: =VLOOKUP($B$3,$A$52:$HQ$71,43) -> 83.16480868 | Q15: =VLOOKUP($B$3,$A$52:$HQ$71,44) -> 101.1865949 | R15: =VLOOKUP($B$3,$A$52:$HQ$71,45) -> 84.69384775 | S15: =VLOOKUP($B$3,$A$52:$HQ$71,46) -> 73.5670659 | T15: =VLOOKUP($B$3,$A$52:$HQ$71,47) -> 68.25813862 | U15: =VLOOKUP($B$3,$A$52:$HQ$71,48) -> 63.6425921 | V15: =VLOOKUP($B$3,$A$52:$HQ$71,49) -> 58.7425921
B16: =B15+1 -> 2 | C16: =IF(VLOOKUP($B$3,$A$52:$I$71,3)<>0,VLOOKUP($B$3,$A$52:$I$71,3),8000) -> 2000 | D16: =D15+1 -> 2 | E16: =IF(VLOOKUP($B$3,$A$52:$I$71,3)<>0,VLOOKUP($B$3,$A$52:$I$71,3),8000) -> 2000 | F16: =VLOOKUP($B$3,$A$52:$AG$71,13) -> 0.25 | G16: =VLOOKUP($B$3,$A$52:$AG$71,14) -> 4.5 | H16: =VLOOKUP($B$3,$A$52:$AG$71,15) -> 6.5 | I16: 4 | J16: 5 | K16: 6 | N16: 3 | O16: =VLOOKUP($B$3,$A$52:$HQ$71,50) -> 94.90391065 | P16: =VLOOKUP($B$3,$A$52:$HQ$71,51) -> 83.16480868 | Q16: =VLOOKUP($B$3,$A$52:$HQ$71,52) -> 109.3370056 | R16: =VLOOKUP($B$3,$A$52:$HQ$71,53) -> 84.69384775 | S16: =VLOOKUP($B$3,$A$52:$HQ$71,54) -> 73.5670659 | T16: =VLOOKUP($B$3,$A$52:$HQ$71,55) -> 68.25813862 | U16: =VLOOKUP($B$3,$A$52:$HQ$71,56) -> 63.6425921 | V16: =VLOOKUP($B$3,$A$52:$HQ$71,57) -> 58.7425921
B17: 3 | C17: =IF(VLOOKUP($B$3,$A$52:$I$71,4)<>0,VLOOKUP($B$3,$A$52:$I$71,4),8000) -> 2400 | D17: 3 | E17: =IF(VLOOKUP($B$3,$A$52:$I$71,4)<>0,VLOOKUP($B$3,$A$52:$I$71,4),8000) -> 2400 | F17: =VLOOKUP($B$3,$A$52:$AG$71,16) -> 0.25 | G17: =VLOOKUP($B$3,$A$52:$AG$71,17) -> 6.5 | H17: =VLOOKUP($B$3,$A$52:$AG$71,18) -> 9 | I17: 7 | J17: 8 | K17: 9 | N17: 4 | O17: =VLOOKUP($B$3,$A$52:$HQ$71,58) -> 108.4755378 | P17: =VLOOKUP($B$3,$A$52:$HQ$71,59) -> 90.61934711 | Q17: =VLOOKUP($B$3,$A$52:$HQ$71,60) -> 99.69243399 | R17: =VLOOKUP($B$3,$A$52:$HQ$71,61) -> 95.02683021 | S17: =VLOOKUP($B$3,$A$52:$HQ$71,62) -> 82.71017651 | T17: =VLOOKUP($B$3,$A$52:$HQ$71,63) -> 76.28276181 | U17: =VLOOKUP($B$3,$A$52:$HQ$71,64) -> 72.21925317 | V17: =VLOOKUP($B$3,$A$52:$HQ$71,65) -> 67.51925317
B18: 4 | C18: =IF(VLOOKUP($B$3,$A$52:$I$71,5)<>0,VLOOKUP($B$3,$A$52:$I$71,5),8000) -> 2600 | D18: 4 | E18: =IF(VLOOKUP($B$3,$A$52:$I$71,5)<>0,VLOOKUP($B$3,$A$52:$I$71,5),8000) -> 2600 | F18: =VLOOKUP($B$3,$A$52:$AG$71,19) -> 0.25 | G18: =VLOOKUP($B$3,$A$52:$AG$71,20) -> 7.5 | H18: =VLOOKUP($B$3,$A$52:$AG$71,21) -> 12 | I18: 10 | J18: 11 | K18: 12 | N18: 5 | O18: =VLOOKUP($B$3,$A$52:$HQ$71,66) -> 107.6220514 | P18: =VLOOKUP($B$3,$A$52:$HQ$71,67) -> 89.42679294 | Q18: =VLOOKUP($B$3,$A$52:$HQ$71,68) -> 107.5806736 | R18: =VLOOKUP($B$3,$A$52:$HQ$71,69) -> 98.09625986 | S18: =VLOOKUP($B$3,$A$52:$HQ$71,70) -> 80.82702727 | T18: =VLOOKUP($B$3,$A$52:$HQ$71,71) -> 74.42354446 | U18: =VLOOKUP($B$3,$A$52:$HQ$71,72) -> 70.06554041 | V18: =VLOOKUP($B$3,$A$52:$HQ$71,73) -> 65.16554041
B19: 5 | C19: =IF(VLOOKUP($B$3,$A$52:$I$71,6)<>0,VLOOKUP($B$3,$A$52:$I$71,6),8000) -> 2800 | D19: 5 | E19: =IF(VLOOKUP($B$3,$A$52:$I$71,6)<>0,VLOOKUP($B$3,$A$52:$I$71,6),8000) -> 2800 | F19: =VLOOKUP($B$3,$A$52:$AG$71,22) -> 0.25 | G19: =VLOOKUP($B$3,$A$52:$AG$71,23) -> 8.5 | H19: =VLOOKUP($B$3,$A$52:$AG$71,24) -> 14 | I19: 13 | J19: 14 | K19: 15 | N19: 6 | O19: =VLOOKUP($B$3,$A$52:$HQ$71,74) -> 107.6220514 | P19: =VLOOKUP($B$3,$A$52:$HQ$71,75) -> 89.42679294 | Q19: =VLOOKUP($B$3,$A$52:$HQ$71,76) -> 112.7969364 | R19: =VLOOKUP($B$3,$A$52:$HQ$71,77) -> 100.3438089 | S19: =VLOOKUP($B$3,$A$52:$HQ$71,78) -> 80.82702727 | T19: =VLOOKUP($B$3,$A$52:$HQ$71,79) -> 74.42354446 | U19: =VLOOKUP($B$3,$A$52:$HQ$71,80) -> 70.06554041 | V19: =VLOOKUP($B$3,$A$52:$HQ$71,81) -> 65.16554041
B20: 6 | C20: =IF(VLOOKUP($B$3,$A$52:$I$71,7)<>0,VLOOKUP($B$3,$A$52:$I$71,7),8000) -> 3000 | D20: 6 | E20: =IF(VLOOKUP($B$3,$A$52:$I$71,7)<>0,VLOOKUP($B$3,$A$52:$I$71,7),8000) -> 3000 | F20: =VLOOKUP($B$3,$A$52:$AG$71,25) -> 0.25 | G20: =VLOOKUP($B$3,$A$52:$AG$71,26) -> 9.5 | H20: =VLOOKUP($B$3,$A$52:$AG$71,27) -> 16 | I20: 16 | J20: 17 | K20: 18 | N20: 7 | O20: =VLOOKUP($B$3,$A$52:$HQ$71,82) -> 118.9538864 | P20: =VLOOKUP($B$3,$A$52:$HQ$71,83) -> 95.80358591 | Q20: =VLOOKUP($B$3,$A$52:$HQ$71,84) -> 92.27309452 | R20: =VLOOKUP($B$3,$A$52:$HQ$71,85) -> 103.7348913 | S20: =VLOOKUP($B$3,$A$52:$HQ$71,86) -> 88.72077474 | T20: =VLOOKUP($B$3,$A$52:$HQ$71,87) -> 81.31426574 | U20: =VLOOKUP($B$3,$A$52:$HQ$71,88) -> 77.48652389 | V20: =VLOOKUP($B$3,$A$52:$HQ$71,89) -> 72.78652389
B21: 7 | C21: =IF(VLOOKUP($B$3,$A$52:$I$71,8)<>0,VLOOKUP($B$3,$A$52:$I$71,8),8000) -> 3200 | D21: 7 | E21: =IF(VLOOKUP($B$3,$A$52:$I$71,8)<>0,VLOOKUP($B$3,$A$52:$I$71,8),8000) -> 3200 | F21: =VLOOKUP($B$3,$A$52:$AG$71,28) -> 0.25 | G21: =VLOOKUP($B$3,$A$52:$AG$71,29) -> 11 | H21: =VLOOKUP($B$3,$A$52:$AG$71,30) -> 18 | I21: 19 | J21: 20 | K21: 21 | N21: 8 | O21: =VLOOKUP($B$3,$A$52:$HQ$71,90) -> 118.2068373 | P21: =VLOOKUP($B$3,$A$52:$HQ$71,91) -> 94.81893689 | Q21: =VLOOKUP($B$3,$A$52:$HQ$71,92) -> 91.26720195 | R21: =VLOOKUP($B$3,$A$52:$HQ$71,93) -> 111.5759599 | S21: =VLOOKUP($B$3,$A$52:$HQ$71,94) -> 86.75884761 | T21: =VLOOKUP($B$3,$A$52:$HQ$71,95) -> 79.46104783 | U21: =VLOOKUP($B$3,$A$52:$HQ$71,96) -> 75.31347131 | V21: =VLOOKUP($B$3,$A$52:$HQ$71,97) -> 70.41347131
B22: 8 | C22: =IF(VLOOKUP($B$3,$A$52:$I$71,9)<>0,VLOOKUP($B$3,$A$52:$I$71,9),8000) -> 3450 | D22: 8 | E22: =IF(VLOOKUP($B$3,$A$52:$I$71,9)<>0,VLOOKUP($B$3,$A$52:$I$71,9),8000) -> 3450 | F22: =VLOOKUP($B$3,$A$52:$AG$71,31) -> 0.25 | G22: =VLOOKUP($B$3,$A$52:$AG$71,32) -> 13 | H22: =VLOOKUP($B$3,$A$52:$AG$71,33) -> 21 | I22: 22 | J22: 23 | K22: 24 | N22: 9 | O22: =VLOOKUP($B$3,$A$52:$HQ$71,98) -> 118.2068373 | P22: =VLOOKUP($B$3,$A$52:$HQ$71,99) -> 95.00608916 | Q22: =VLOOKUP($B$3,$A$52:$HQ$71,100) -> 91.26720195 | R22: =VLOOKUP($B$3,$A$52:$HQ$71,101) -> 116.1039659 | S22: =VLOOKUP($B$3,$A$52:$HQ$71,102) -> 86.75884761 | T22: =VLOOKUP($B$3,$A$52:$HQ$71,103) -> 79.46104783 | U22: =VLOOKUP($B$3,$A$52:$HQ$71,104) -> 75.31347131 | V22: =VLOOKUP($B$3,$A$52:$HQ$71,105) -> 70.41347131
N23: 10 | O23: =VLOOKUP($B$3,$A$52:$HQ$71,106) -> 122.151667 | P23: =VLOOKUP($B$3,$A$52:$HQ$71,107) -> 99.16419122 | Q23: =VLOOKUP($B$3,$A$52:$HQ$71,108) -> 93.5795397 | R23: =VLOOKUP($B$3,$A$52:$HQ$71,109) -> 105.5010342 | S23: =VLOOKUP($B$3,$A$52:$HQ$71,110) -> 91.7454343 | T23: =VLOOKUP($B$3,$A$52:$HQ$71,111) -> 83.7351267 | U23: =VLOOKUP($B$3,$A$52:$HQ$71,112) -> 79.73896084 | V23: =VLOOKUP($B$3,$A$52:$HQ$71,113) -> 75.09156077 | Z23: E (dB) - End Reflection Correction Values
E24: 1 | F24: =VLOOKUP($D$12,$E$15:$H$22,2) -> 0.25 | G24: 1 | H24: 1 | I24: =VLOOKUP($E$12,$E$15:$H$22,2) -> 0.25 | J24: 1 | N24: 11 | O24: =VLOOKUP($B$3,$A$52:$HQ$71,114) -> 121.4429828 | P24: =VLOOKUP($B$3,$A$52:$HQ$71,115) -> 98.29137253 | Q24: =VLOOKUP($B$3,$A$52:$HQ$71,116) -> 92.3894117 | R24: =VLOOKUP($B$3,$A$52:$HQ$71,117) -> 113.1157975 | S24: =VLOOKUP($B$3,$A$52:$HQ$71,118) -> 89.93429903 | T24: =VLOOKUP($B$3,$A$52:$HQ$71,119) -> 81.86303206 | U24: =VLOOKUP($B$3,$A$52:$HQ$71,120) -> 77.57260973 | V24: =VLOOKUP($B$3,$A$52:$HQ$71,121) -> 72.71741498 | Y24: Size | Z24: 63 | AA24: 125 | AB24: 250 | AC24: 500 | AD24: 1000 | AE24: 2000 | AF24: 4000 | AG24: 8000
E25: =E24+1 -> 2 | F25: =VLOOKUP($D$12,$E$15:$H$22,3) -> 6.5 | G25: =G24+1 -> 2 | H25: =H24+1 -> 2 | I25: =VLOOKUP($E$12,$E$15:$H$22,3) -> 7.5 | J25: =J24+1 -> 2 | N25: 12 | O25: =VLOOKUP($B$3,$A$52:$HQ$71,122) -> 121.4429828 | P25: =VLOOKUP($B$3,$A$52:$HQ$71,123) -> 98.65359496 | Q25: =VLOOKUP($B$3,$A$52:$HQ$71,124) -> 92.3894117 | R25: =VLOOKUP($B$3,$A$52:$HQ$71,125) -> 120.0605261 | S25: =VLOOKUP($B$3,$A$52:$HQ$71,126) -> 89.93429903 | T25: =VLOOKUP($B$3,$A$52:$HQ$71,127) -> 81.86303206 | U25: =VLOOKUP($B$3,$A$52:$HQ$71,128) -> 77.57260973 | V25: =VLOOKUP($B$3,$A$52:$HQ$71,129) -> 72.71741498 | Y25: 63 | Z25: 0 | AA25: 0 | AB25: 0 | AC25: 0 | AD25: 0 | AE25: 0 | AF25: 0 | AG25: 0
E26: =E25+1 -> 3 | F26: =VLOOKUP($D$12,$E$15:$H$22,4) -> 9 | G26: =G25+1 -> 3 | H26: =H25+1 -> 3 | I26: =VLOOKUP($E$12,$E$15:$H$22,4) -> 12 | J26: =J25+1 -> 3 | N26: 13 | O26: =VLOOKUP($B$3,$A$52:$HQ$71,130) -> 123.7609011 | P26: =VLOOKUP($B$3,$A$52:$HQ$71,131) -> 103.3132039 | Q26: =VLOOKUP($B$3,$A$52:$HQ$71,132) -> 95.68594954 | R26: =VLOOKUP($B$3,$A$52:$HQ$71,133) -> 107.1325153 | S26: =VLOOKUP($B$3,$A$52:$HQ$71,134) -> 94.92368782 | T26: =VLOOKUP($B$3,$A$52:$HQ$71,135) -> 86.17805933 | U26: =VLOOKUP($B$3,$A$52:$HQ$71,136) -> 81.77175911 | V26: =VLOOKUP($B$3,$A$52:$HQ$71,137) -> 77.22248934 | Y26: 90 | Z26: 0 | AA26: 0 | AB26: 0 | AC26: 0 | AD26: 0 | AE26: 0 | AF26: 0 | AG26: 0
C27: =MAX(C3:C10) -> 3450 | F27: =MAX(F24:F26) -> 9 | I27: =MAX(I24:I26) -> 12 | N27: 14 | O27: =VLOOKUP($B$3,$A$52:$HQ$71,138) -> 123.052217 | P27: =VLOOKUP($B$3,$A$52:$HQ$71,139) -> 102.5009897 | Q27: =VLOOKUP($B$3,$A$52:$HQ$71,140) -> 94.46907277 | R27: =VLOOKUP($B$3,$A$52:$HQ$71,141) -> 114.461258 | S27: =VLOOKUP($B$3,$A$52:$HQ$71,142) -> 93.4359323 | T27: =VLOOKUP($B$3,$A$52:$HQ$71,143) -> 84.27413025 | U27: =VLOOKUP($B$3,$A$52:$HQ$71,144) -> 79.62019624 | V27: =VLOOKUP($B$3,$A$52:$HQ$71,145) -> 74.85053365 | Y27: 125 | Z27: 23.6 | AA27: 17.8 | AB27: 12 | AC27: 6.8 | AD27: 2.8 | AE27: 0.5 | AF27: 0 | AG27: 0
N28: 15 | O28: =VLOOKUP($B$3,$A$52:$HQ$71,146) -> 123.052217 | P28: =VLOOKUP($B$3,$A$52:$HQ$71,147) -> 102.789592 | Q28: =VLOOKUP($B$3,$A$52:$HQ$71,148) -> 94.46907277 | R28: =VLOOKUP($B$3,$A$52:$HQ$71,149) -> 121.7799941 | S28: =VLOOKUP($B$3,$A$52:$HQ$71,150) -> 93.4359323 | T28: =VLOOKUP($B$3,$A$52:$HQ$71,151) -> 84.27413025 | U28: =VLOOKUP($B$3,$A$52:$HQ$71,152) -> 79.62019624 | V28: =VLOOKUP($B$3,$A$52:$HQ$71,153) -> 74.85053365 | Y28: 160 | Z28: 0 | AA28: 0 | AB28: 0 | AC28: 0 | AD28: 0 | AE28: 0 | AF28: 0 | AG28: 0
C29: =VLOOKUP(C27,C15:D22,2) -> 8 | D29: =VLOOKUP(C29,B15:C22,2) -> 3450 | F29: =VLOOKUP(F27,F24:G26,2) -> 3 | G29: =VLOOKUP(F29,E24:F26,2) -> 9 | I29: =VLOOKUP(I27,I24:J26,2) -> 3 | J29: =VLOOKUP(I29,H24:I26,2) -> 12 | N29: 16 | O29: =VLOOKUP($B$3,$A$52:$HQ$71,154) -> 125.2590623 | P29: =VLOOKUP($B$3,$A$52:$HQ$71,155) -> 107.2783486 | Q29: =VLOOKUP($B$3,$A$52:$HQ$71,156) -> 97.64258344 | R29: =VLOOKUP($B$3,$A$52:$HQ$71,157) -> 108.6486242 | S29: =VLOOKUP($B$3,$A$52:$HQ$71,158) -> 97.88422802 | T29: =VLOOKUP($B$3,$A$52:$HQ$71,159) -> 88.44709072 | U29: =VLOOKUP($B$3,$A$52:$HQ$71,160) -> 83.66236752 | V29: =VLOOKUP($B$3,$A$52:$HQ$71,161) -> 79.20395207 | Y29: 200 | Z29: 0 | AA29: 0 | AB29: 0 | AC29: 0 | AD29: 0 | AE29: 0 | AF29: 0 | AG29: 0
C30: =C29-1 -> 7 | D30: =VLOOKUP(C30,B15:C22,2) -> 3200 | F30: =F29-1 -> 2 | G30: =VLOOKUP(F30,E25:F27,2) -> 6.5 | I30: =I29-1 -> 2 | J30: =VLOOKUP(I30,H25:I27,2) -> 7.5 | N30: 17 | O30: =VLOOKUP($B$3,$A$52:$HQ$71,162) -> 124.5503781 | P30: =VLOOKUP($B$3,$A$52:$HQ$71,163) -> 106.4246185 | Q30: =VLOOKUP($B$3,$A$52:$HQ$71,164) -> 96.4051909 | R30: =VLOOKUP($B$3,$A$52:$HQ$71,165) -> 115.6607556 | S30: =VLOOKUP($B$3,$A$52:$HQ$71,166) -> 96.69587489 | T30: =VLOOKUP($B$3,$A$52:$HQ$71,167) -> 86.51880897 | U30: =VLOOKUP($B$3,$A$52:$HQ$71,168) -> 81.52645367 | V30: =VLOOKUP($B$3,$A$52:$HQ$71,169) -> 76.83641962 | Y30: 250 | Z30: 0 | AA30: 0 | AB30: 0 | AC30: 0 | AD30: 0 | AE30: 0 | AF30: 0 | AG30: 0
N31: 18 | O31: =VLOOKUP($B$3,$A$52:$HQ$71,170) -> 124.5503781 | P31: =VLOOKUP($B$3,$A$52:$HQ$71,171) -> 106.6324763 | Q31: =VLOOKUP($B$3,$A$52:$HQ$71,172) -> 96.4051909 | R31: =VLOOKUP($B$3,$A$52:$HQ$71,173) -> 123.1953574 | S31: =VLOOKUP($B$3,$A$52:$HQ$71,174) -> 96.69587489 | T31: =VLOOKUP($B$3,$A$52:$HQ$71,175) -> 86.51880897 | U31: =VLOOKUP($B$3,$A$52:$HQ$71,176) -> 81.52645367 | V31: =VLOOKUP($B$3,$A$52:$HQ$71,177) -> 76.83641962
N32: 19 | O32: =VLOOKUP($B$3,$A$52:$HQ$71,178) -> 126.6604985 | P32: =VLOOKUP($B$3,$A$52:$HQ$71,179) -> 110.9874938 | Q32: =VLOOKUP($B$3,$A$52:$HQ$71,180) -> 99.46967757 | R32: =VLOOKUP($B$3,$A$52:$HQ$71,181) -> 110.0647493 | S32: =VLOOKUP($B$3,$A$52:$HQ$71,182) -> 100.6547391 | T32: =VLOOKUP($B$3,$A$52:$HQ$71,183) -> 90.56576071 | U32: =VLOOKUP($B$3,$A$52:$HQ$71,184) -> 85.42945417 | V32: =VLOOKUP($B$3,$A$52:$HQ$71,185) -> 81.05567488
N33: 20 | O33: =VLOOKUP($B$3,$A$52:$HQ$71,186) -> 125.9518143 | P33: =VLOOKUP($B$3,$A$52:$HQ$71,187) -> 110.1091588 | Q33: =VLOOKUP($B$3,$A$52:$HQ$71,188) -> 98.21630846 | R33: =VLOOKUP($B$3,$A$52:$HQ$71,189) -> 117.256896 | S33: =VLOOKUP($B$3,$A$52:$HQ$71,190) -> 99.74534753 | T33: =VLOOKUP($B$3,$A$52:$HQ$71,191) -> 88.61856569 | U33: =VLOOKUP($B$3,$A$52:$HQ$71,192) -> 83.3096384 | V33: =VLOOKUP($B$3,$A$52:$HQ$71,193) -> 78.69409188
N34: 21 | O34: =VLOOKUP($B$3,$A$52:$HQ$71,194) -> 125.9518143 | P34: =VLOOKUP($B$3,$A$52:$HQ$71,195) -> 110.2268708 | Q34: =VLOOKUP($B$3,$A$52:$HQ$71,196) -> 98.21630846 | R34: =VLOOKUP($B$3,$A$52:$HQ$71,197) -> 124.3885054 | S34: =VLOOKUP($B$3,$A$52:$HQ$71,198) -> 99.74534753 | T34: =VLOOKUP($B$3,$A$52:$HQ$71,199) -> 88.61856569 | U34: =VLOOKUP($B$3,$A$52:$HQ$71,200) -> 83.3096384 | V34: =VLOOKUP($B$3,$A$52:$HQ$71,201) -> 78.69409188
N35: 22 | O35: =VLOOKUP($B$3,$A$52:$HQ$71,202) -> 128.2939543 | P35: =VLOOKUP($B$3,$A$52:$HQ$71,203) -> 115.3107194 | Q35: =VLOOKUP($B$3,$A$52:$HQ$71,204) -> 101.5959761 | R35: =VLOOKUP($B$3,$A$52:$HQ$71,205) -> 111.7130965 | S35: =VLOOKUP($B$3,$A$52:$HQ$71,206) -> 103.8849533 | T35: =VLOOKUP($B$3,$A$52:$HQ$71,207) -> 93.03124677 | U35: =VLOOKUP($B$3,$A$52:$HQ$71,208) -> 87.4875162 | V35: =VLOOKUP($B$3,$A$52:$HQ$71,209) -> 83.21204274
A36: =A3 -> Size | B36: =A4 -> RPM | C36: =A5 -> SP | D36: 63 | E36: 125 | F36: 250 | G36: 500 | H36: 1000 | I36: 2000 | J36: 4000 | K36: 8000 | L36: LWA | N36: 23 | O36: =VLOOKUP($B$3,$A$52:$HQ$71,210) -> 127.5852702 | P36: =VLOOKUP($B$3,$A$52:$HQ$71,211) -> 114.3981191 | Q36: =VLOOKUP($B$3,$A$52:$HQ$71,212) -> 100.3272719 | R36: =VLOOKUP($B$3,$A$52:$HQ$71,213) -> 119.0780202 | S36: =VLOOKUP($B$3,$A$52:$HQ$71,214) -> 103.641249 | T36: =VLOOKUP($B$3,$A$52:$HQ$71,215) -> 91.06595495 | U36: =VLOOKUP($B$3,$A$52:$HQ$71,216) -> 85.38804452 | V36: =VLOOKUP($B$3,$A$52:$HQ$71,217) -> 80.85931756 | Z36: Size | AA36: RPM | AB36: AMCA Test No.
A37: =B3 -> 125 | B37: =B4 -> 2503 | C37: =B5 -> 2.944 | D37: =O12 -> 120.3089508 | E37: =P12 -> 97.16142383 | F37: 92.50787642 | G37: 107.7408784 | H37: 89.52173358 | I37: 81.81532883 | J37: 77.77767483 | K37: 73.02318789 | L37: =10*LOG10(10^((D37-26.2)/10) +10^((E37-16.1)/10)+10^((F37-8.6)/10)+10^((G37-3.2)/10)+10^((H37)/10)+10^((I37+1.2)/10)+10^((J37+1)/10)+10^((K37-1.1)/10)) -> 105.1303985 | N37: 24 | O37: =VLOOKUP($B$3,$A$52:$HQ$71,218) -> 127.5852702 | P37: =VLOOKUP($B$3,$A$52:$HQ$71,219) -> 114.4232894 | Q37: =VLOOKUP($B$3,$A$52:$HQ$71,220) -> 100.3272719 | R37: =VLOOKUP($B$3,$A$52:$HQ$71,221) -> 126.0900097 | S37: =VLOOKUP($B$3,$A$52:$HQ$71,222) -> 104.0218512 | T37: =VLOOKUP($B$3,$A$52:$HQ$71,223) -> 91.06595495 | U37: =VLOOKUP($B$3,$A$52:$HQ$71,224) -> 85.38804452 | V37: =VLOOKUP($B$3,$A$52:$HQ$71,225) -> 80.85931756 | Y37: 1 | Z37: 63 | AA37: 2500 | AB37: AMCA Test - 02/27/2006 - 22638-S1
Y38: 2 | Z38: 90 | AA38: 2500 | AB38: AMCA Test - 02/28/2026 - 22639-S1
Y39: 3 | Z39: 125 | AA39: 2500 | AB39: AMCA Test - 03/06/2026 - 44759-S1
Y40: 4 | Z40: 160 | AA40: 2500 | AB40: AMCA Test - 02/28/2006 - 22641-S1
Y41: 5 | Z41: 200 | AA41: 2500 | AB41: AMCA Test - 02/25/2006 - 22642-S1
Y42: 6 | Z42: 250 | AA42: 2500 | AB42: AMCA Test - 02/25/2026 - 22637-S1
A49: 1 | B49: =A49+1 -> 2 | C49: 3 | D49: 4 | E49: 5 | F49: 6 | G49: 7 | H49: 8 | I49: 9 | J49: 10 | K49: 11 | L49: 12 | M49: 13 | N49: 14 | O49: 15 | P49: 16 | Q49: 17 | R49: 18 | S49: 19 | T49: 20 | U49: 21 | V49: 22 | W49: 23 | X49: 24 | Y49: 25 | Z49: 26 | AA49: 27 | AB49: 28 | AC49: 29 | AD49: 30 | AE49: 31 | AF49: 32 | AG49: 33 | AH49: 34 | AI49: 35 | AJ49: 36 | AK49: 37 | AL49: 38 | AM49: 39 | AN49: 40 | AO49: 41 | AP49: 42 | AQ49: 43 | AR49: 44 | AS49: 45 | AT49: 46 | AU49: 47 | AV49: 48 | AW49: 49 | AX49: 50 | AY49: 51 | AZ49: 52 | BA49: 53 | BB49: 54 | BC49: 55 | BD49: 56 | BE49: 57 | BF49: 58 | BG49: 59 | BH49: 60 | BI49: 61 | BJ49: 62 | BK49: 63 | BL49: 64 | BM49: 65 | BN49: =BM49+1 -> 66 | BO49: 67 | BP49: 68 | BQ49: 69 | BR49: 70 | BS49: 71 | BT49: 72 | BU49: 73 | BV49: 74 | BW49: 75 | BX49: 76 | BY49: 77 | BZ49: 78 | CA49: 79 | CB49: 80 | CC49: 81 | CD49: 82 | CE49: 83 | CF49: 84 | CG49: 85 | CH49: 86 | CI49: 87 | CJ49: 88 | CK49: 89 | CL49: 90 | CM49: 91 | CN49: 92 | CO49: 93 | CP49: 94 | CQ49: 95 | CR49: 96 | CS49: 97 | CT49: 98 | CU49: 99 | CV49: 100 | CW49: 101 | CX49: 102 | CY49: 103 | CZ49: 104 | DA49: 105 | DB49: 106 | DC49: 107 | DD49: 108 | DE49: 109 | DF49: 110 | DG49: 111 | DH49: 112 | DI49: 113 | DJ49: 114 | DK49: 115 | DL49: 116 | DM49: 117 | DN49: 118 | DO49: 119 | DP49: 120 | DQ49: 121 | DR49: 122 | DS49: 123 | DT49: 124 | DU49: 125 | DV49: 126 | DW49: 127 | DX49: 128 | DY49: 129 | DZ49: =DY49+1 -> 130 | EA49: 131 | EB49: 132 | EC49: 133 | ED49: 134 | EE49: 135 | EF49: 136 | EG49: 137 | EH49: 138 | EI49: 139 | EJ49: 140 | EK49: 141 | EL49: 142 | EM49: 143 | EN49: 144 | EO49: 145 | EP49: 146 | EQ49: 147 | ER49: 148 | ES49: 149 | ET49: 150 | EU49: 151 | EV49: 152 | EW49: 153 | EX49: 154 | EY49: 155 | EZ49: 156 | FA49: 157 | FB49: 158 | FC49: 159 | FD49: 160 | FE49: 161 | FF49: 162 | FG49: 163 | FH49: 164 | FI49: 165 | FJ49: 166 | FK49: 167 | FL49: 168 | FM49: 169 | FN49: 170 | FO49: 171 | FP49: 172 | FQ49: 173 | FR49: 174 | FS49: 175 | FT49: 176 | FU49: 177 | FV49: 178 | FW49: 179 | FX49: 180 | FY49: 181 | FZ49: 182 | GA49: 183 | GB49: 184 | GC49: 185 | GD49: 186 | GE49: 187 | GF49: 188 | GG49: 189 | GH49: 190 | GI49: 191 | GJ49: 192 | GK49: 193 | GL49: =GK49+1 -> 194 | GM49: 195 | GN49: 196 | GO49: 197 | GP49: 198 | GQ49: 199 | GR49: 200 | GS49: 201 | GT49: 202 | GU49: 203 | GV49: 204 | GW49: 205 | GX49: 206 | GY49: 207 | GZ49: 208 | HA49: 209 | HB49: 210 | HC49: 211 | HD49: 212 | HE49: 213 | HF49: 214 | HG49: 215 | HH49: 216 | HI49: 217 | HJ49: 218 | HK49: 219 | HL49: 220 | HM49: 221 | HN49: 222 | HO49: 223 | HP49: 224 | HQ49: 225
A50: Size | B50: RPM1 | C50: RPM2 | D50: RPM3 | E50: RPM4 | F50: RPM5 | G50: RPM6 | H50: RPM7 | I50: RPM8 | J50: SP11 | K50: SP12 | L50: SP13 | M50: SP21 | N50: SP22 | O50: SP23 | P50: SP31 | Q50: SP32 | R50: SP33 | S50: SP41 | T50: SP42 | U50: SP43 | V50: SP51 | W50: SP52 | X50: SP53 | Y50: SP61 | Z50: SP62 | AA50: SP63 | AB50: SP71 | AC50: SP72 | AD50: SP73 | AE50: SP81 | AF50: SP82 | AG50: SP83 | AH50: 63 | AI50: 125 | AJ50: 250 | AK50: 500 | AL50: 1000 | AM50: 2000 | AN50: 4000 | AO50: 8000 | AP50: 63 | AQ50: 125 | AR50: 250 | AS50: 500 | AT50: 1000 | AU50: 2000 | AV50: 4000 | AW50: 8000 | AX50: 63 | AY50: 125 | AZ50: 250 | BA50: 500 | BB50: 1000 | BC50: 2000 | BD50: 4000 | BE50: 8000 | BF50: 63 | BG50: 125 | BH50: 250 | BI50: 500 | BJ50: 1000 | BK50: 2000 | BL50: 4000 | BM50: 8000 | BN50: 63 | BO50: 125 | BP50: 250 | BQ50: 500 | BR50: 1000 | BS50: 2000 | BT50: 4000 | BU50: 8000 | BV50: 63 | BW50: 125 | BX50: 250 | BY50: 500 | BZ50: 1000 | CA50: 2000 | CB50: 4000 | CC50: 8000 | CD50: 63 | CE50: 125 | CF50: 250 | CG50: 500 | CH50: 1000 | CI50: 2000 | CJ50: 4000 | CK50: 8000 | CL50: 63 | CM50: 125 | CN50: 250 | CO50: 500 | CP50: 1000 | CQ50: 2000 | CR50: 4000 | CS50: 8000 | CT50: 63 | CU50: 125 | CV50: 250 | CW50: 500 | CX50: 1000 | CY50: 2000 | CZ50: 4000 | DA50: 8000 | DB50: 63 | DC50: 125 | DD50: 250 | DE50: 500 | DF50: 1000 | DG50: 2000 | DH50: 4000 | DI50: 8000 | DJ50: 63 | DK50: 125 | DL50: 250 | DM50: 500 | DN50: 1000 | DO50: 2000 | DP50: 4000 | DQ50: 8000 | DR50: 63 | DS50: 125 | DT50: 250 | DU50: 500 | DV50: 1000 | DW50: 2000 | DX50: 4000 | DY50: 8000 | DZ50: 63 | EA50: 125 | EB50: 250 | EC50: 500 | ED50: 1000 | EE50: 2000 | EF50: 4000 | EG50: 8000 | EH50: 63 | EI50: 125 | EJ50: 250 | EK50: 500 | EL50: 1000 | EM50: 2000 | EN50: 4000 | EO50: 8000 | EP50: 63 | EQ50: 125 | ER50: 250 | ES50: 500 | ET50: 1000 | EU50: 2000 | EV50: 4000 | EW50: 8000 | EX50: 63 | EY50: 125 | EZ50: 250 | FA50: 500 | FB50: 1000 | FC50: 2000 | FD50: 4000 | FE50: 8000 | FF50: 63 | FG50: 125 | FH50: 250 | FI50: 500 | FJ50: 1000 | FK50: 2000 | FL50: 4000 | FM50: 8000 | FN50: 63 | FO50: 125 | FP50: 250 | FQ50: 500 | FR50: 1000 | FS50: 2000 | FT50: 4000 | FU50: 8000 | FV50: 63 | FW50: 125 | FX50: 250 | FY50: 500 | FZ50: 1000 | GA50: 2000 | GB50: 4000 | GC50: 8000 | GD50: 63 | GE50: 125 | GF50: 250 | GG50: 500 | GH50: 1000 | GI50: 2000 | GJ50: 4000 | GK50: 8000 | GL50: 63 | GM50: 125 | GN50: 250 | GO50: 500 | GP50: 1000 | GQ50: 2000 | GR50: 4000 | GS50: 8000 | GT50: 63 | GU50: 125 | GV50: 250 | GW50: 500 | GX50: 1000 | GY50: 2000 | GZ50: 4000 | HA50: 8000 | HB50: 63 | HC50: 125 | HD50: 250 | HE50: 500 | HF50: 1000 | HG50: 2000 | HH50: 4000 | HI50: 8000 | HJ50: 63 | HK50: 125 | HL50: 250 | HM50: 500 | HN50: 1000 | HO50: 2000 | HP50: 4000 | HQ50: 8000
A52: 63 | B52: 1600 | C52: 2000 | D52: 2400 | E52: 2600 | F52: 2800 | G52: 3000 | H52: 3200 | I52: 3450 | J52: 0.25 | K52: 1.5 | L52: 2.25 | M52: 0.25 | N52: 2.25 | O52: 3.5 | P52: 0.25 | Q52: 3.5 | R52: 5 | S52: 0.25 | T52: 4 | U52: 6 | V52: 0.25 | W52: 4.5 | X52: 7 | Y52: 0.25 | Z52: 5 | AA52: 8 | AB52: 0.25 | AC52: 6 | AD52: 9 | AE52: 0.25 | AF52: 7 | AG52: 11 | AH52: 96.13321811 | AI52: 90.64936042 | AJ52: 97.31065729 | AK52: 88.44333477 | AL52: 77.76177024 | AM52: 70.15814711 | AN52: 62.35463856 | AO52: 54.65981358 | AP52: 95.50853308 | AQ52: 88.5163701 | AR52: 97.77336147 | AS52: 88.73930987 | AT52: 77.76177024 | AU52: 70.15814711 | AV52: 62.26692575 | AW52: 54.43586991 | AX52: 94.99569756 | AY52: 89.41758397 | AZ52: 98.10961225 | BA52: 89.28017008 | BB52: 78.02766091 | BC52: 71.11953124 | BD52: 63.65131477 | BE52: 55.65131314 | BF52: 104.216675 | BG52: 96.77460076 | BH52: 98.38318105 | BI52: 98.72167087 | BJ52: 84.88088087 | BK52: 77.57907468 | BL52: 69.64195534 | BM52: 61.83726639 | BN52: 105.0103933 | BO52: 94.39232008 | BP52: 97.3546872 | BQ52: 99.23552085 | BR52: 84.88088087 | BS52: 77.57907468 | BT52: 69.65704571 | BU52: 61.89923181 | BV52: 104.2677272 | BW52: 94.70093273 | BX52: 98.28763772 | BY52: 99.63615823 | BZ52: 85.37884138 | CA52: 78.05190647 | CB52: 71.04782877 | CC52: 63.04782784 | CD52: 110.6866821 | CE52: 101.6648334 | CF52: 99.39020074 | CG52: 107.1196756 | CH52: 90.69762489 | CI52: 83.64241217 | CJ52: 75.65040607 | CK52: 67.78603252 | CL52: 113.0336413 | CM52: 99.03925783 | CN52: 97.07615944 | CO52: 107.9656045 | CP52: 90.69762489 | CQ52: 83.64241217 | CR52: 75.64837394 | CS52: 67.74949516 | CT52: 111.8773952 | CU52: 99.02802782 | CV52: 98.39568292 | CW52: 108.1027524 | CX52: 91.36832551 | CY52: 83.72635543 | CZ52: 77.06776539 | DA52: 69.06775803 | DB52: 112.7969055 | DC52: 104.1575287 | DD52: 100.674328 | DE52: 109.6813329 | DF52: 93.80656159 | DG52: 86.25128402 | DH52: 78.3043372 | DI52: 70.41336768 | DJ52: 115.3795608 | DK52: 101.8372437 | DL52: 98.02303181 | DM52: 110.5304453 | DN52: 93.85460726 | DO52: 86.25128402 | DP52: 78.3043372 | DQ52: 70.44668731 | DR52: 114.1339987 | DS52: 101.6236969 | DT52: 99.47427716 | DU52: 110.6813329 | DV52: 94.59303683 | DW52: 86.29506083 | DX52: 79.76412087 | DY52: 71.85167475 | DZ52: 114.0683725 | EA52: 106.8053747 | EB52: 102.6487384 | EC52: 110.9687202 | ED52: 97.22008952 | EE52: 88.61560999 | EF52: 80.76889624 | EG52: 72.85224739 | EH52: 116.5560957 | EI52: 105.051563 | EJ52: 99.96512549 | EK52: 111.7624065 | EL52: 97.34985557 | EM52: 88.61560999 | EN52: 80.76889624 | EO52: 72.9414723 | EP52: 115.3883661 | EQ52: 104.6862333 | ER52: 101.2533626 | ES52: 111.9687202 | ET52: 98.04457346 | EU52: 88.74480254 | EV52: 82.09086676 | EW52: 74.34924794 | EX52: 115.2540578 | EY52: 109.2587982 | EZ52: 104.4784022 | FA52: 112.1672492 | FB52: 100.3980038 | FC52: 90.81673673 | FD52: 83.06333811 | FE52: 75.12731296 | FF52: 117.6394744 | FG52: 108.0129039 | FH52: 101.7853979 | FI52: 112.9033603 | FJ52: 100.5916267 | FK52: 90.81673673 | FL52: 83.06333811 | FM52: 75.25781721 | FN52: 116.6116967 | FO52: 107.5457476 | FP52: 102.8623762 | FQ52: 113.1672492 | FR52: 101.2342338 | FS52: 91.0213164 | FT52: 84.20972839 | FU52: 76.61889585 | FV52: 116.3646951 | FW52: 111.5454172 | FX52: 106.1836463 | FY52: 112.5105111 | FZ52: 103.370742 | GA52: 92.87575952 | GB52: 85.20964689 | GC52: 77.25877139 | GD52: 118.9505105 | GE52: 110.7635883 | GF52: 103.4455253 | GG52: 112.8864643 | GH52: 103.6667171 | GI52: 92.87575952 | GJ52: 85.20964689 | GK52: 77.31842553 | GL52: 117.7952371 | GM52: 110.2392858 | GN52: 104.3467392 | GO52: 113.2227151 | GP52: 104.2075773 | GQ52: 93.14165019 | GR52: 86.17103103 | GS52: 78.70281456 | GT52: 117.6608033 | GU52: 114.2021604 | GV52: 108.1646969 | GW52: 112.9193622 | GX52: 106.8356487 | GY52: 95.27566765 | GZ52: 87.71130254 | HA52: 79.74644445 | HB52: 120.2708642 | HC52: 113.9947834 | HD52: 105.406456 | HE52: 112.7610458 | HF52: 107.2249707 | HG52: 95.27566765 | HH52: 87.71130254 | HI52: 79.7981111 | HJ52: 118.8190684 | HK52: 113.2264093 | HL52: 106.281911 | HM52: 113.3647743 | HN52: 107.7757177 | HO52: 95.68831572 | HP52: 88.66210385 | HQ52: 81.48740408
A53: 90 | B53: 1600 | C53: 2000 | D53: 2400 | E53: 2600 | F53: 2800 | G53: 3000 | H53: 3200 | I53: 3450 | J53: 0.25 | K53: 2.5 | L53: 4.5 | M53: 0.25 | N53: 4.5 | O53: 6.5 | P53: 0.25 | Q53: 6.5 | R53: 9 | S53: 0.25 | T53: 7.5 | U53: 12 | V53: 0.25 | W53: 8.5 | X53: 14 | Y53: 0.25 | Z53: 9.5 | AA53: 16 | AB53: 0.25 | AC53: 11 | AD53: 18 | AE53: 0.25 | AF53: 13 | AG53: 21 | AH53: 92.03946143 | AI53: 88.36839849 | AJ53: 94.52108238 | AK53: 84.65733271 | AL53: 74.19869514 | AM53: 68.83888463 | AN53: 62.49682955 | AO53: 55.49683078 | AP53: 92.63545467 | AQ53: 86.30314034 | AR53: 93.92910572 | AS53: 83.15474308 | AT53: 73.20078406 | AU53: 67.29455838 | AV53: 60.27612643 | AW53: 53.27612766 | AX53: 90.66613259 | AY53: 84.82968707 | AZ53: 91.71077058 | BA53: 81.01860257 | BB53: 72.32472173 | BC53: 66.41156508 | BD53: 59.05542402 | BE53: 52.05542489 | BF53: 98.10170816 | BG53: 94.29765788 | BH53: 95.64582891 | BI53: 95.40308253 | BJ53: 81.03893677 | BK53: 75.41576422 | BL53: 69.70569429 | BM53: 62.70569361 | BN53: 98.7524472 | BO53: 92.66694947 | BP53: 93.0812497 | BQ53: 94.16229341 | BR53: 79.2548504 | BS53: 74.49282107 | BT53: 67.14319429 | BU53: 60.14319361 | BV53: 98.20158691 | BW53: 91.38288005 | BX53: 92.29310922 | BY53: 92.67775989 | BZ53: 78.26401008 | CA53: 74.04001218 | CB53: 66.36194429 | CC53: 59.36194413 | CD53: 103.0725983 | CE53: 99.06374269 | CF53: 96.64520954 | CG53: 104.1166153 | CH53: 86.62487658 | CI53: 80.74728277 | CJ53: 75.56567769 | CK53: 68.56567129 | CL53: 104.2416624 | CM53: 98.41879619 | CN53: 92.77560685 | CO53: 103.4025742 | CP53: 84.14207249 | CQ53: 80.43353738 | CR53: 72.93807352 | CS53: 65.93806712 | CT53: 104.1165409 | CU53: 96.90368375 | CV53: 92.41982354 | CW53: 102.0601815 | CX53: 83.07638187 | CY53: 80.20100592 | CZ53: 72.25990512 | DA53: 65.25989872 | DB53: 104.8546902 | DC53: 101.2014892 | DD53: 97.91200283 | DE53: 106.7391177 | DF53: 89.75738444 | DG53: 83.1336462 | DH53: 78.02228712 | DI53: 71.13218449 | DJ53: 106.2142502 | DK53: 100.9812142 | DL53: 94.04020223 | DM53: 106.2142471 | DN53: 87.25784595 | DO53: 82.7886474 | DP53: 75.5406402 | DQ53: 68.51421022 | DR53: 106.4550046 | DS53: 98.78261666 | DT53: 93.8831662 | DU53: 104.1339956 | DV53: 85.42897453 | DW53: 82.20750496 | DX53: 74.53066856 | DY53: 67.47408448 | DZ53: 106.1181971 | EA53: 103.2361142 | EB53: 99.86432946 | EC53: 108.0185449 | ED53: 93.30837687 | EE53: 85.39413741 | EF53: 80.18689573 | EG53: 73.50574173 | EH53: 107.5806493 | EI53: 103.3263101 | EJ53: 96.50327816 | EK53: 107.5806463 | EL53: 91.06657062 | EM53: 84.7557001 | EN53: 77.97481003 | EO53: 70.91135397 | EP53: 107.7589019 | EQ53: 101.2707535 | ER53: 95.98798702 | ES53: 105.3883631 | ET53: 89.13022615 | EU53: 84.04224334 | EV53: 76.97871767 | EW53: 69.81521239 | EX53: 107.2974606 | EY53: 105.1310017 | EZ53: 101.6748462 | FA53: 109.210652 | FB53: 96.60848226 | FC53: 87.49888269 | FD53: 82.19884636 | FE53: 75.71349991 | FF53: 108.8686411 | FG53: 105.5235948 | FH53: 98.82020608 | FI53: 108.8686381 | FJ53: 94.63004377 | FK53: 86.59839518 | FL53: 80.22954285 | FM53: 73.1509993 | FN53: 108.94503 | FO53: 103.6301588 | FP53: 97.93215424 | FQ53: 106.6116936 | FR53: 92.63154892 | FS53: 85.78224085 | FT53: 79.28556033 | FU53: 72.02252674 | FV53: 108.4028421 | FW53: 106.9041428 | FX53: 103.3634058 | FY53: 109.5631202 | FZ53: 99.69134942 | GA53: 89.46788278 | GB53: 84.07850881 | GC53: 77.77721117 | GD53: 109.9314676 | GE53: 107.383435 | GF53: 100.7745319 | GG53: 108.7177544 | GH53: 97.87521914 | GI53: 88.35867472 | GJ53: 82.30215649 | GK53: 75.17503832 | GL53: 110.0349832 | GM53: 105.8484621 | GN53: 99.75884228 | GO53: 106.8238735 | GP53: 95.94600977 | GQ53: 87.438711 | GR53: 81.46306486 | GS53: 74.1069238 | GT53: 109.693622 | GU53: 108.9715724 | GV53: 105.3264716 | GW53: 109.9791148 | GX53: 103.280429 | GY53: 91.76293081 | GZ53: 86.26691007 | HA53: 80.18100088 | HB53: 111.1820173 | HC53: 109.5730017 | HD53: 103.0700611 | HE53: 108.5459684 | HF53: 101.6594249 | HG53: 90.39626008 | HH53: 84.73203701 | HI53: 77.5400641 | HJ53: 111.3519396 | HK53: 108.3843229 | HL53: 101.8916102 | HM53: 106.9864481 | HN53: 99.71610599 | HO53: 89.308572 | HP53: 83.95452875 | HQ53: 76.48986456
A54: 125 | B54: 1600 | C54: 2000 | D54: 2400 | E54: 2600 | F54: 2800 | G54: 3000 | H54: 3200 | I54: 3450 | J54: 0.25 | K54: 2.5 | L54: 4.5 | M54: 0.25 | N54: 4.5 | O54: 6.5 | P54: 0.25 | Q54: 6.5 | R54: 9 | S54: 0.25 | T54: 7.5 | U54: 12 | V54: 0.25 | W54: 8.5 | X54: 14 | Y54: 0.25 | Z54: 9.5 | AA54: 16 | AB54: 0.25 | AC54: 11 | AD54: 18 | AE54: 0.25 | AF54: 13 | AG54: 21 | AH54: 95.65107553 | AI54: 84.20661666 | AJ54: 94.69341071 | AK54: 85.42486107 | AL54: 75.27283431 | AM54: 70.08618367 | AN54: 65.72824312 | AO54: 61.02824312 | AP54: 94.75823168 | AQ54: 83.16480868 | AR54: 101.1865949 | AS54: 84.69384775 | AT54: 73.5670659 | AU54: 68.25813862 | AV54: 63.6425921 | AW54: 58.7425921 | AX54: 94.90391065 | AY54: 83.16480868 | AZ54: 109.3370056 | BA54: 84.69384775 | BB54: 73.5670659 | BC54: 68.25813862 | BD54: 63.6425921 | BE54: 58.7425921 | BF54: 108.4755378 | BG54: 90.61934711 | BH54: 99.69243399 | BI54: 95.02683021 | BJ54: 82.71017651 | BK54: 76.28276181 | BL54: 72.21925317 | BM54: 67.51925317 | BN54: 107.6220514 | BO54: 89.42679294 | BP54: 107.5806736 | BQ54: 98.09625986 | BR54: 80.82702727 | BS54: 74.42354446 | BT54: 70.06554041 | BU54: 65.16554041 | BV54: 107.6220514 | BW54: 89.42679294 | BX54: 112.7969364 | BY54: 100.3438089 | BZ54: 80.82702727 | CA54: 74.42354446 | CB54: 70.06554041 | CC54: 65.16554041 | CD54: 118.9538864 | CE54: 95.80358591 | CF54: 92.27309452 | CG54: 103.7348913 | CH54: 88.72077474 | CI54: 81.31426574 | CJ54: 77.48652389 | CK54: 72.78652389 | CL54: 118.2068373 | CM54: 94.81893689 | CN54: 91.26720195 | CO54: 111.5759599 | CP54: 86.75884761 | CQ54: 79.46104783 | CR54: 75.31347131 | CS54: 70.41347131 | CT54: 118.2068373 | CU54: 95.00608916 | CV54: 91.26720195 | CW54: 116.1039659 | CX54: 86.75884761 | CY54: 79.46104783 | CZ54: 75.31347131 | DA54: 70.41347131 | DB54: 122.151667 | DC54: 99.16419122 | DD54: 93.5795397 | DE54: 105.5010342 | DF54: 91.7454343 | DG54: 83.7351267 | DH54: 79.73896084 | DI54: 75.09156077 | DJ54: 121.4429828 | DK54: 98.29137253 | DL54: 92.3894117 | DM54: 113.1157975 | DN54: 89.93429903 | DO54: 81.86303206 | DP54: 77.57260973 | DQ54: 72.71741498 | DR54: 121.4429828 | DS54: 98.65359496 | DT54: 92.3894117 | DU54: 120.0605261 | DV54: 89.93429903 | DW54: 81.86303206 | DX54: 77.57260973 | DY54: 72.71741498 | DZ54: 123.7609011 | EA54: 103.3132039 | EB54: 95.68594954 | EC54: 107.1325153 | ED54: 94.92368782 | EE54: 86.17805933 | EF54: 81.77175911 | EG54: 77.22248934 | EH54: 123.052217 | EI54: 102.5009897 | EJ54: 94.46907277 | EK54: 114.461258 | EL54: 93.4359323 | EM54: 84.27413025 | EN54: 79.62019624 | EO54: 74.85053365 | EP54: 123.052217 | EQ54: 102.789592 | ER54: 94.46907277 | ES54: 121.7799941 | ET54: 93.4359323 | EU54: 84.27413025 | EV54: 79.62019624 | EW54: 74.85053365 | EX54: 125.2590623 | EY54: 107.2783486 | EZ54: 97.64258344 | FA54: 108.6486242 | FB54: 97.88422802 | FC54: 88.44709072 | FD54: 83.66236752 | FE54: 79.20395207 | FF54: 124.5503781 | FG54: 106.4246185 | FH54: 96.4051909 | FI54: 115.6607556 | FJ54: 96.69587489 | FK54: 86.51880897 | FL54: 81.52645367 | FM54: 76.83641962 | FN54: 124.5503781 | FO54: 106.6324763 | FP54: 96.4051909 | FQ54: 123.1953574 | FR54: 96.69587489 | FS54: 86.51880897 | FT54: 81.52645367 | FU54: 76.83641962 | FV54: 126.6604985 | FW54: 110.9874938 | FX54: 99.46967757 | FY54: 110.0647493 | FZ54: 100.6547391 | GA54: 90.56576071 | GB54: 85.42945417 | GC54: 81.05567488 | GD54: 125.9518143 | GE54: 110.1091588 | GF54: 98.21630846 | GG54: 117.256896 | GH54: 99.74534753 | GI54: 88.61856569 | GJ54: 83.3096384 | GK54: 78.69409188 | GL54: 125.9518143 | GM54: 110.2268708 | GN54: 98.21630846 | GO54: 124.3885054 | GP54: 99.74534753 | GQ54: 88.61856569 | GR54: 83.3096384 | GS54: 78.69409188 | GT54: 128.2939543 | GU54: 115.3107194 | GV54: 101.5959761 | GW54: 111.7130965 | GX54: 103.8849533 | GY54: 93.03124677 | GZ54: 87.4875162 | HA54: 83.21204274 | HB54: 127.5852702 | HC54: 114.3981191 | HD54: 100.3272719 | HE54: 119.0780202 | HF54: 103.641249 | HG54: 91.06595495 | HH54: 85.38804452 | HI54: 80.85931756 | HJ54: 127.5852702 | HK54: 114.4232894 | HL54: 100.3272719 | HM54: 126.0900097 | HN54: 104.0218512 | HO54: 91.06595495 | HP54: 85.38804452 | HQ54: 80.85931756
A55: 160 | B55: 1600 | C55: 2000 | D55: 2400 | E55: 2600 | F55: 2800 | G55: 3000 | H55: 3200 | I55: 3450 | J55: 0.25 | K55: 2.75 | L55: 4.5 | M55: 0.25 | N55: 4.75 | O55: 7 | P55: 0.25 | Q55: 6.75 | R55: 10 | S55: 0.25 | T55: 8 | U55: 12 | V55: 0.25 | W55: 9 | X55: 14 | Y55: 0.25 | Z55: 10 | AA55: 16 | AB55: 0.25 | AC55: 11.5 | AD55: 18 | AE55: 0.25 | AF55: 14 | AG55: 21 | AH55: 91.77301922 | AI55: 90.12284827 | AJ55: 96.37383499 | AK55: 89.06972714 | AL55: 80.84255119 | AM55: 75.29327322 | AN55: 70.38449823 | AO55: 66.07932243 | AP55: 90.62144979 | AQ55: 87.9163237 | AR55: 92.72932976 | AS55: 85.33950253 | AT55: 78.96844285 | AU55: 73.57219121 | AV55: 66.65209475 | AW55: 59.97362696 | AX55: 90.37032611 | AY55: 86.16049601 | AZ55: 90.31218948 | BA55: 83.84312442 | BB55: 78.62490653 | BC55: 73.15814901 | BD55: 65.32131589 | BE55: 57.57473175 | BF55: 99.8865108 | BG55: 94.09679353 | BH55: 98.64419456 | BI55: 98.49214054 | BJ55: 87.36086633 | BK55: 82.12527448 | BL55: 76.70625805 | BM55: 72.51094392 | BN55: 97.87730924 | BO55: 92.38494431 | BP55: 94.75487633 | BQ55: 94.12104679 | BR55: 84.10646033 | BS55: 80.672132 | BT55: 73.23659795 | BU55: 66.3811292 | BV55: 98.78431816 | BW55: 91.22309463 | BX55: 92.93392844 | BY55: 92.69153482 | BZ55: 83.81245283 | CA55: 80.57907468 | CB55: 72.6645909 | CC55: 64.93021547 | CD55: 106.5157129 | CE55: 97.28945969 | CF55: 100.4691266 | CG55: 106.1607234 | CH55: 92.68377169 | CI55: 87.69238174 | CJ55: 81.80218624 | CK55: 77.66654889 | CL55: 104.1215738 | CM55: 96.29966144 | CN55: 96.87623793 | CO55: 101.803193 | CP55: 88.52797435 | CQ55: 86.66231163 | CR55: 79.04915172 | CS55: 72.21809159 | CT55: 105.6030511 | CU55: 95.36611947 | CV55: 95.09949897 | CW55: 99.95495313 | CX55: 88.05098792 | CY55: 86.64241217 | CZ55: 78.65933974 | DA55: 70.94665932 | DB55: 108.681336 | DC55: 99.42606432 | DD55: 101.5659629 | DE55: 108.5657634 | DF55: 95.52124185 | DG55: 90.07706279 | DH55: 84.13338383 | DI55: 79.91118888 | DJ55: 106.1339987 | DK55: 98.47973982 | DL55: 98.1379807 | DM55: 104.1339956 | DN55: 91.0894741 | DO55: 88.93739679 | DP55: 81.58903688 | DQ55: 74.69187906 | DR55: 108.0023419 | DS55: 97.71505261 | DT55: 96.34118281 | DU55: 102.1339956 | DV55: 90.54925777 | DW55: 88.9117836 | DX55: 81.3043372 | DY55: 73.51786224 | DZ55: 109.9687233 | EA55: 102.1206248 | EB55: 102.8670455 | EC55: 109.869071 | ED55: 98.6299427 | EE55: 92.23063948 | EF55: 86.39207196 | EG55: 81.98171397 | EH55: 107.5876646 | EI55: 101.0643879 | EJ55: 99.81979171 | EK55: 105.5876616 | EL55: 94.34853326 | EM55: 90.73581122 | EN55: 84.11405926 | EO55: 77.19060193 | EP55: 109.339259 | EQ55: 100.5224279 | ER55: 97.98973144 | ES55: 103.3883631 | ET55: 93.47120682 | EU55: 90.63461481 | EV55: 83.76889624 | EW55: 75.94440685 | EX55: 111.1672522 | EY55: 104.6292047 | EZ55: 104.0738043 | FA55: 111.0804436 | FB55: 101.5220938 | FC55: 94.23584787 | FD55: 88.49386569 | FE55: 83.90382556 | FF55: 108.9589189 | FG55: 103.5013438 | FH55: 101.3852473 | FI55: 106.9589158 | FJ55: 97.40056604 | FK55: 92.44676652 | FL55: 86.45229195 | FM55: 79.52256017 | FN55: 110.5005856 | FO55: 103.1470842 | FP55: 99.57590856 | FQ55: 104.6116936 | FR55: 96.19973706 | FS55: 92.23853162 | FT55: 86.06333811 | FU55: 78.22711033 | FV55: 112.2884012 | FW55: 106.9758252 | FX55: 105.1993704 | FY55: 111.7158197 | FZ55: 104.2260162 | GA55: 96.11173883 | GB55: 90.45921392 | GC55: 85.69780588 | GD55: 110.0241189 | GE55: 105.6772039 | GF55: 102.7200627 | GG55: 107.62319 | GH55: 100.0380279 | GI55: 94.00091724 | GJ55: 88.52544636 | GK55: 81.50188432 | GL55: 111.5281473 | GM55: 105.5845983 | GN55: 101.0896512 | GO55: 105.4252924 | GP55: 98.77053162 | GQ55: 93.73889581 | GR55: 88.2096488 | GS55: 80.37281567 | GT55: 113.5951658 | GU55: 109.7109422 | GV55: 106.5079622 | GW55: 112.4547955 | GX55: 107.3760064 | GY55: 98.29826254 | GZ55: 92.74914725 | HA55: 87.78467513 | HB55: 111.0816183 | HC55: 108.0853912 | HD55: 104.1860601 | HE55: 108.2361227 | HF55: 102.9280963 | HG55: 95.71369701 | HH55: 90.88491148 | HI55: 83.65774444 | HJ55: 112.8654872 | HK55: 108.4369788 | HL55: 102.775206 | HM55: 106.2804868 | HN55: 101.7383464 | HO55: 95.487658 | HP55: 90.71130254 | HQ55: 82.84151333
A56: 200 | B56: 1600 | C56: 2000 | D56: 2400 | E56: 2600 | F56: 2800 | G56: 3000 | H56: 3200 | I56: 3450 | J56: 0.25 | K56: 2.75 | L56: 4.5 | M56: 0.25 | N56: 4.75 | O56: 7 | P56: 0.25 | Q56: 6.75 | R56: 10 | S56: 0.25 | T56: 8 | U56: 12 | V56: 0.25 | W56: 9 | X56: 14 | Y56: 0.25 | Z56: 10.5 | AA56: 16 | AB56: 0.25 | AC56: 12 | AD56: 18 | AE56: 0.25 | AF56: 14 | AG56: 21 | AH56: 92.83096621 | AI56: 92.37030895 | AJ56: 96.35990093 | AK56: 90.89261259 | AL56: 83.74430656 | AM56: 78.68629674 | AN56: 73.63195567 | AO56: 68.63195433 | AP56: 90.78084685 | AQ56: 89.36497664 | AR56: 92.33447509 | AS56: 87.04205028 | AT56: 80.4509169 | AU56: 75.08892752 | AV56: 69.2959508 | AW56: 63.61748298 | AX56: 91.07901134 | AY56: 88.52911267 | AZ56: 89.88059786 | BA56: 84.06672879 | BB56: 78.414975 | BC56: 73.69927908 | BD56: 67.69928126 | BE56: 61.69927963 | BF56: 99.45125989 | BG56: 96.64243111 | BH56: 99.68521887 | BI56: 99.32549058 | BJ56: 90.32942824 | BK56: 85.31810625 | BL56: 80.25189237 | BM56: 75.25189437 | BN56: 96.55605782 | BO56: 94.01154371 | BP56: 95.27316899 | BQ56: 94.89082759 | BR56: 86.23373222 | BS56: 81.51199323 | BT56: 75.55852598 | BU56: 69.70305587 | BV56: 96.90058703 | BW56: 94.13349842 | BX56: 93.58987899 | BY56: 92.45011402 | BZ56: 84.11637364 | CA56: 80.48855573 | CB56: 74.48855982 | CC56: 68.48855818 | CD56: 104.8055294 | CE56: 100.1029259 | CF56: 102.2984558 | CG56: 106.2097591 | CH56: 95.67977761 | CI56: 90.67946593 | CJ56: 85.61564726 | CK56: 80.61564181 | CL56: 101.5682857 | CM56: 98.09172048 | CN56: 97.92476581 | CO56: 101.6618834 | CP56: 91.37119229 | CQ56: 87.0980892 | CR56: 81.10804493 | CS56: 75.27698479 | CT56: 101.6454397 | CU56: 98.69060131 | CV56: 96.61835316 | CW56: 99.33501777 | CX56: 88.82022884 | CY56: 86.04752497 | CZ56: 80.04753096 | DA56: 74.04752551 | DB56: 106.681336 | DC56: 102.0309011 | DD56: 103.6160069 | DE56: 108.4501939 | DF56: 98.34495232 | DG56: 93.02254769 | DH56: 87.96450045 | DI56: 82.96123297 | DJ56: 103.2848863 | DK56: 100.0599204 | DL56: 99.32837621 | DM56: 103.8322205 | DN56: 93.90264842 | DO56: 89.39184669 | DP56: 83.49294525 | DQ56: 77.63529565 | DR56: 103.4550046 | DS56: 100.799038 | DT56: 98.21521166 | DU56: 101.360327 | DV56: 91.14605525 | DW56: 88.22031156 | DX56: 82.41750175 | DY56: 76.41750203 | DZ56: 107.9687233 | EA56: 104.2104615 | EB56: 105.0142546 | EC56: 109.7694218 | ED56: 101.1231563 | EE56: 95.18896109 | EF56: 90.13707102 | EG56: 85.12892126 | EH56: 104.7939784 | EI56: 102.0993198 | EJ56: 101.1221397 | EK56: 105.175034 | EL56: 96.79057495 | EM56: 91.57147182 | EN56: 85.85452413 | EO56: 80.02710249 | EP56: 104.7589019 | EQ56: 102.7530038 | ER56: 100.0726035 | ES56: 102.5981845 | ET56: 93.86856244 | EU56: 90.07654871 | EV56: 84.65171951 | EW56: 78.65171446 | EX56: 109.1672522 | EY56: 106.2350304 | EZ56: 106.3140063 | FA56: 110.9936381 | FB56: 103.7101603 | FC56: 97.20386153 | FD56: 92.15544176 | FE56: 87.1440275 | FF56: 105.8755856 | FG56: 103.9550325 | FH56: 102.581429 | FI56: 106.3443325 | FJ56: 99.25789056 | FK56: 93.42837802 | FL56: 87.89143514 | FM56: 82.02194157 | FN56: 105.94503 | FO56: 104.5443268 | FP56: 101.8213038 | FQ56: 103.8339158 | FR56: 96.48646539 | FS56: 91.84069218 | FT56: 86.75949069 | FU56: 80.75949287 | FV56: 110.2884012 | FW56: 108.1255892 | FX56: 107.5283464 | FY56: 111.9018503 | FZ56: 106.1304165 | GA56: 99.08717767 | GB56: 94.04036184 | GC56: 89.02677821 | GD56: 106.9641824 | GE56: 105.697297 | GF56: 103.999398 | GG56: 107.2564339 | GH56: 101.6203803 | GI56: 95.20538714 | GJ56: 89.83525152 | GK56: 83.94403016 | GL56: 107.0349832 | GM56: 106.200404 | GN56: 103.4582679 | GO56: 104.9937007 | GP56: 98.99413599 | GQ56: 93.52896428 | GR56: 88.75077886 | GS56: 82.75078104 | GT56: 111.5951658 | GU56: 110.3258018 | GV56: 108.9421345 | GW56: 112.9543194 | GX56: 108.9515058 | GY56: 101.2806936 | GZ56: 96.23409133 | HA56: 91.21884369 | HB56: 108.2437691 | HC56: 107.7253278 | HD56: 105.6621865 | HE56: 108.3185156 | HF56: 104.3834027 | HG56: 97.28131078 | HH56: 92.10626761 | HI56: 86.19307586 | HJ56: 108.3519396 | HK56: 108.1772115 | HL56: 105.3482968 | HM56: 106.2114206 | HN56: 101.7773215 | HO56: 95.4215915 | HP56: 91.0251922 | HQ56: 85.02519629
A57: 250 | B57: 1600 | C57: 2000 | D57: 2400 | E57: 2600 | F57: 2800 | G57: 3000 | H57: 3200 | I57: 3450 | J57: 0.25 | K57: 2.75 | L57: 4.5 | M57: 0.25 | N57: 4.75 | O57: 7 | P57: 0.25 | Q57: 6.75 | R57: 10 | S57: 0.25 | T57: 8 | U57: 12 | V57: 0.25 | W57: 9 | X57: 14 | Y57: 0.25 | Z57: 10 | AA57: 16 | AB57: 0.25 | AC57: 11.5 | AD57: 18 | AE57: 0.25 | AF57: 14 | AG57: 21 | AH57: 93.28397503 | AI57: 96.11241345 | AJ57: 101.6527657 | AK57: 95.41178572 | AL57: 87.10045051 | AM57: 81.78454138 | AN57: 77.4283977 | AO57: 73.42839988 | AP57: 90.4375762 | AQ57: 93.41106071 | AR57: 96.99170831 | AS57: 90.82163068 | AT57: 83.12859405 | AU57: 78.05431677 | AV57: 73.69817439 | AW57: 69.69817527 | AX57: 89.92614999 | AY57: 90.96751772 | AZ57: 92.29237517 | BA57: 87.28152947 | BB57: 80.55631827 | BC57: 76.07724445 | BD57: 71.506302 | BE57: 66.75972024 | BF57: 97.5992641 | BG57: 99.99579989 | BH57: 104.3050222 | BI57: 104.2022144 | BJ57: 94.0074983 | BK57: 88.34954435 | BL57: 83.67147837 | BM57: 79.67147864 | BN57: 93.78536851 | BO57: 97.07533311 | BP57: 99.71518925 | BQ57: 98.42736865 | BR57: 89.0563368 | BS57: 83.9784506 | BT57: 79.30038462 | BU57: 75.30038326 | BV57: 94.19716961 | BW57: 95.6305344 | BX57: 96.56826777 | BY57: 95.1885708 | BZ57: 87.05599074 | CA57: 82.31252414 | CB57: 77.89599997 | CC57: 73.16162474 | CD57: 101.0950221 | CE57: 103.1658115 | CF57: 106.4570294 | CG57: 111.342329 | CH57: 99.6208825 | CI57: 93.68346001 | CJ57: 88.74235921 | CK57: 84.74235376 | CL57: 96.83651678 | CM57: 100.4274042 | CN57: 102.8324432 | CO57: 105.4668104 | CP57: 94.48124249 | CQ57: 89.32592962 | CR57: 84.38482882 | CS57: 80.38482338 | CT57: 97.64778001 | CU57: 99.4419378 | CV57: 100.0901304 | CW57: 101.7062874 | CX57: 92.39006407 | CY57: 87.43571674 | CZ57: 83.12334628 | DA57: 78.41066723 | DB57: 102.5657664 | DC57: 104.6235975 | DD57: 107.6139422 | DE57: 113.6235481 | DF57: 102.4113447 | DG57: 96.07913109 | DH57: 91.01901555 | DI57: 86.96243253 | DJ57: 98.13399544 | DK57: 101.7928425 | DL57: 104.1671637 | DM57: 107.5866584 | DN57: 97.08768692 | DO57: 91.59931767 | DP57: 86.5872478 | DQ57: 82.53066658 | DR57: 99.22867237 | DS57: 100.9838709 | DT57: 101.4981242 | DU57: 103.5866584 | DV57: 94.83217027 | DW57: 89.59077994 | DX57: 85.31713963 | DY57: 80.57444338 | DZ57: 103.8690741 | EA57: 106.036181 | EB57: 108.8924352 | EC57: 114.9188956 | ED57: 105.3110931 | EE57: 98.35245901 | EF57: 93.17874942 | EG57: 89.01524786 | EH57: 99.58766159 | EI57: 103.0795903 | EJ57: 105.6653816 | EK57: 109.2066029 | EL57: 100.131817 | EM57: 93.94128352 | EN57: 88.89733998 | EO57: 84.73383661 | EP57: 100.5490796 | EQ57: 102.4069297 | ER57: 103.0017504 | ES57: 104.808006 | ET57: 97.40035289 | EU57: 91.70825318 | EV57: 87.35902752 | EW57: 82.6637322 | EX57: 105.0804467 | EY57: 107.3492839 | EZ57: 110.0829618 | FA57: 116.1238464 | FB57: 108.0074443 | FC57: 100.4668964 | FD57: 95.18742809 | FE57: 90.92439728 | FF57: 100.9589161 | FG57: 104.3082286 | FH57: 107.0536566 | FI57: 110.7505825 | FJ57: 103.0141772 | FK57: 96.15174572 | FL57: 91.06590031 | FM57: 86.80286768 | FN57: 101.7228069 | FO57: 103.7470068 | FP57: 104.4766438 | FQ57: 106.0561381 | FR57: 99.85507789 | FS57: 93.73511153 | FT57: 89.29187323 | FU57: 84.66022809 | FV57: 106.2121072 | FW57: 108.5761059 | FX57: 111.1967675 | FY57: 116.8803094 | FZ57: 110.5273178 | GA57: 102.4433216 | GB57: 97.064923 | GC57: 92.70877932 | GD57: 102.0241161 | GE57: 105.3537786 | GF57: 108.1656773 | GG57: 111.6759648 | GH57: 105.3895191 | GI57: 97.98652986 | GJ57: 92.87693472 | GK57: 88.52079248 | GL57: 102.7815643 | GM57: 104.9921923 | GN57: 105.8966729 | GO57: 107.405478 | GP57: 102.2089367 | GQ57: 95.67030755 | GR57: 91.12874424 | GS57: 86.55780178 | GT57: 107.5295284 | GU57: 110.0044432 | GV57: 112.4950352 | GW57: 117.7612195 | GX57: 113.4619197 | GY57: 104.7453619 | GZ57: 99.25166024 | HA57: 94.78699606 | HB57: 103.0816151 | HC57: 106.4445297 | HD57: 109.3435318 | HE57: 112.4546472 | HF57: 107.8469382 | HG57: 99.90812986 | HH57: 94.80375014 | HI57: 90.33908436 | HJ57: 104.1087125 | HK57: 106.440375 | HL57: 107.4407454 | HM57: 108.7947945 | HN57: 104.8307978 | HO57: 97.83278353 | HP57: 93.20887516 | HQ57: 88.69073282

Sheet Sound calculation-1 (hidden)
C2: RPM | F2: SP | I2: SP
A3: Size | B3: =Data1!N2 -> 250 | C3: =VLOOKUP($B$3,$A$52:$I$71,2) -> 1600 | D3: =IF(C3-$B$4<=0,C3-$B$4,-10000) -> -10000 | E3: =IF(C3-$B$4>0,C3-$B$4,10000) -> 378 | F3: =VLOOKUP($D$12,$E$15:$H$22,2) -> 0.25 | G3: =IF(F3-$B$5<=0,F3-$B$5,-10000) -> -2.694 | H3: =IF(F3-$B$5>0,F3-$B$5,10000) -> 10000 | I3: =VLOOKUP($E$12,$E$15:$H$22,2) -> 0.25 | J3: =IF(I3-$B$5<=0,I3-$B$5,-10000) -> -2.694 | K3: =IF(I3-$B$5>0,I3-$B$5,10000) -> 10000 | M3: =G8 -> 2 | N3: =G7 -> 2.75 | O3: =VLOOKUP($M$3,$N$14:$V$37,2) -> 90.4375762 | P3: =VLOOKUP($M$3,$N$14:$V$37,3) -> 93.41106071 | Q3: =VLOOKUP($M$3,$N$14:$V$37,4) -> 96.99170831 | R3: =VLOOKUP($M$3,$N$14:$V$37,5) -> 90.82163068 | S3: =VLOOKUP($M$3,$N$14:$V$37,6) -> 83.12859405 | T3: =VLOOKUP($M$3,$N$14:$V$37,7) -> 78.05431677 | U3: =VLOOKUP($M$3,$N$14:$V$37,8) -> 73.69817439 | V3: =VLOOKUP($M$3,$N$14:$V$37,9) -> 69.69817527
A4: RPM | B4: =Data1!I3 -> 1222 | C4: =VLOOKUP($B$3,$A$52:$I$71,3) -> 2000 | D4: -10000 | E4: 778 | F4: =VLOOKUP($D$12,$E$15:$H$22,3) -> 2.75 | G4: =IF(F4-$B$5<=0,F4-$B$5,-10000) -> -0.194 | H4: =IF(F4-$B$5>0,F4-$B$5,10000) -> 10000 | I4: =VLOOKUP($E$12,$E$15:$H$22,3) -> 4.75 | J4: =IF(I4-$B$5<=0,I4-$B$5,-10000) -> -10000 | K4: =IF(I4-$B$5>0,I4-$B$5,10000) -> 1.806 | M4: =H8 -> 3 | N4: =H7 -> 4.5 | O4: =VLOOKUP($M$4,$N$14:$V$37,2) -> 89.92614999 | P4: =VLOOKUP($M$4,$N$14:$V$37,3) -> 90.96751772 | Q4: =VLOOKUP($M$4,$N$14:$V$37,4) -> 92.29237517 | R4: =VLOOKUP($M$4,$N$14:$V$37,5) -> 87.28152947 | S4: =VLOOKUP($M$4,$N$14:$V$37,6) -> 80.55631827 | T4: =VLOOKUP($M$4,$N$14:$V$37,7) -> 76.07724445 | U4: =VLOOKUP($M$4,$N$14:$V$37,8) -> 71.506302 | V4: =VLOOKUP($M$4,$N$14:$V$37,9) -> 66.75972024
A5: SP | B5: =Data1!D17 -> 2.944 | C5: =VLOOKUP($B$3,$A$52:$I$71,4) -> 2400 | D5: -10000 | E5: 1178 | F5: =VLOOKUP($D$12,$E$15:$H$22,4) -> 4.5 | G5: =IF(F5-$B$5<=0,F5-$B$5,-10000) -> -10000 | H5: =IF(F5-$B$5>0,F5-$B$5,10000) -> 1.556 | I5: =VLOOKUP($E$12,$E$15:$H$22,4) -> 7 | J5: =IF(I5-$B$5<=0,I5-$B$5,-10000) -> -10000 | K5: =IF(I5-$B$5>0,I5-$B$5,10000) -> 4.056 | N5: =IF(B5<=F3,F3,IF(B5>G29,G29,B5)) -> 2.944 | O5: =IF((O3-O4)<=0,O3+($N$5-$N$3)*(O4-O3)/($N$4-$N$3),O4+($N$4-$N$5)*(O3-O4)/($N$4-$N$3)) -> 90.38088095 | P5: 93.14017651 | Q5: 96.47075366 | R5: 90.42918517 | S5: 82.84343891 | T5: 77.83514418 | U5: 73.45518968 | V5: 69.37242654
C6: =VLOOKUP($B$3,$A$52:$I$71,5) -> 2600 | D6: -10000 | E6: 1378 | G6: =MAX(G3:G5) -> -0.194 | H6: =MIN(H3:H5) -> 1.556 | J6: =MAX(J3:J5) -> -2.694 | K6: =MIN(K3:K5) -> 1.806 | M6: =J8 -> 4 | N6: =J7 -> 0.25 | O6: =VLOOKUP($M$6,$N$14:$V$37,2) -> 97.5992641 | P6: =VLOOKUP($M$6,$N$14:$V$37,3) -> 99.99579989 | Q6: =VLOOKUP($M$6,$N$14:$V$37,4) -> 104.3050222 | R6: =VLOOKUP($M$6,$N$14:$V$37,5) -> 104.2022144 | S6: =VLOOKUP($M$6,$N$14:$V$37,6) -> 94.0074983 | T6: =VLOOKUP($M$6,$N$14:$V$37,7) -> 88.34954435 | U6: =VLOOKUP($M$6,$N$14:$V$37,8) -> 83.67147837 | V6: =VLOOKUP($M$6,$N$14:$V$37,9) -> 79.67147864
C7: =VLOOKUP($B$3,$A$52:$I$71,6) -> 2800 | D7: -10000 | E7: 1578 | G7: =IF(B5<=F3,F3,IF(B5>=G29,G30,$B$5+G6)) -> 2.75 | H7: =IF($B$5+H6<=F3,F4,IF($B$5+H6>=G29,G29,$B$5+H6)) -> 4.5 | J7: =IF(B5<=I3,I3,IF(B5>=J29,J30,$B$5+J6)) -> 0.25 | K7: =IF($B$5+K6<=I3,I4,IF($B$5+K6>=J29,J29,$B$5+K6)) -> 4.75 | M7: =K8 -> 5 | N7: =K7 -> 4.75 | O7: =VLOOKUP($M$7,$N$14:$V$37,2) -> 93.78536851 | P7: =VLOOKUP($M$7,$N$14:$V$37,3) -> 97.07533311 | Q7: =VLOOKUP($M$7,$N$14:$V$37,4) -> 99.71518925 | R7: =VLOOKUP($M$7,$N$14:$V$37,5) -> 98.42736865 | S7: =VLOOKUP($M$7,$N$14:$V$37,6) -> 89.0563368 | T7: =VLOOKUP($M$7,$N$14:$V$37,7) -> 83.9784506 | U7: =VLOOKUP($M$7,$N$14:$V$37,8) -> 79.30038462 | V7: =VLOOKUP($M$7,$N$14:$V$37,9) -> 75.30038326
C8: =VLOOKUP($B$3,$A$52:$I$71,7) -> 3000 | D8: -10000 | E8: 1778 | G8: =VLOOKUP($G$7,$G$10:$H$12,2) -> 2 | H8: =VLOOKUP($H$7,$G$10:$H$12,2) -> 3 | J8: =VLOOKUP($J$7,$J$10:$K$12,2) -> 4 | K8: =VLOOKUP($K$7,$J$10:$K$12,2) -> 5 | N8: =IF(B5<=I3,I3,IF(B5>J29,J29,B5)) -> 2.944 | O8: =IF((O6-O7)<=0,O6+($N$8-$N$6)*(O7-O6)/($N$7-$N$6),O7+($N$7-$N$8)*(O6-O7)/($N$7-$N$6)) -> 95.31601194 | P8: 98.24741377 | Q8: 101.5572422 | R8: 100.7450067 | S8: 91.04340295 | T8: 85.73271622 | U8: 81.05465024 | V8: 77.05464954
C9: =VLOOKUP($B$3,$A$52:$I$71,8) -> 3200 | D9: -10000 | E9: 1978
C10: =VLOOKUP($B$3,$A$52:$I$71,9) -> 3450 | D10: -10000 | E10: 2228 | G10: =VLOOKUP($D$12,$E$15:$K$22,2) -> 0.25 | H10: =VLOOKUP($D$12,$E$15:$K$22,5) -> 1 | J10: =VLOOKUP($E$12,$E$15:$K$22,2) -> 0.25 | K10: =VLOOKUP($E$12,$E$15:$K$22,5) -> 4 | N10: =D12 -> 1600 | O10: =O5 -> 90.38088095 | P10: 93.14017651 | Q10: 96.47075366 | R10: 90.42918517 | S10: 82.84343891 | T10: 77.83514418 | U10: 73.45518968 | V10: 69.37242654
D11: =MAX(D3:D10) -> -10000 | E11: =MIN(E3:E10) -> 378 | G11: =VLOOKUP($D$12,$E$15:$K$22,3) -> 2.75 | H11: =VLOOKUP($D$12,$E$15:$K$22,6) -> 2 | J11: =VLOOKUP($E$12,$E$15:$K$22,3) -> 4.75 | K11: =VLOOKUP($E$12,$E$15:$K$22,6) -> 5 | N11: =E12 -> 2000 | O11: =O8 -> 95.31601194 | P11: 98.24741377 | Q11: 101.5572422 | R11: 100.7450067 | S11: 91.04340295 | T11: 85.73271622 | U11: 81.05465024 | V11: 77.05464954
D12: =IF(B4<=C3,C3,IF(B4>=D29,D30,B4+D11)) -> 1600 | E12: =IF($B$4+E11<=C3,C4,IF($B$4+E11>=D29,D29,$B$4+E11)) -> 2000 | G12: =VLOOKUP($D$12,$E$15:$K$22,4) -> 4.5 | H12: =VLOOKUP($D$12,$E$15:$K$22,7) -> 3 | J12: =VLOOKUP($E$12,$E$15:$K$22,4) -> 7 | K12: =VLOOKUP($E$12,$E$15:$K$22,7) -> 6 | N12: =IF(B4<C3,C3,IF(B4>C27,C27,B4)) -> 1600 | O12: =IF((O10-O11)<=0,O10+($N$12-$N$10)*(O11-O10)/($N$11-$N$10),O11+($N$11-$N$12)*(O10-O11)/($N$11-$N$10)) -> 90.38088095 | P12: 93.14017651 | Q12: 96.47075366 | R12: 90.42918517 | S12: 82.84343891 | T12: 77.83514418 | U12: 73.45518968 | V12: 69.37242654
N14: 1 | O14: =VLOOKUP($B$3,$A$52:$HQ$71,34) -> 93.28397503 | P14: =VLOOKUP($B$3,$A$52:$HQ$71,35) -> 96.11241345 | Q14: =VLOOKUP($B$3,$A$52:$HQ$71,36) -> 101.6527657 | R14: =VLOOKUP($B$3,$A$52:$HQ$71,37) -> 95.41178572 | S14: =VLOOKUP($B$3,$A$52:$HQ$71,38) -> 87.10045051 | T14: =VLOOKUP($B$3,$A$52:$HQ$71,39) -> 81.78454138 | U14: =VLOOKUP($B$3,$A$52:$HQ$71,40) -> 77.4283977 | V14: =VLOOKUP($B$3,$A$52:$HQ$71,41) -> 73.42839988
B15: 1 | C15: =IF(VLOOKUP($B$3,$A$52:$I$71,2)<>0,VLOOKUP($B$3,$A$52:$I$71,2),8000) -> 1600 | D15: 1 | E15: =IF(VLOOKUP($B$3,$A$52:$I$71,2)<>0,VLOOKUP($B$3,$A$52:$I$71,2),8000) -> 1600 | F15: =VLOOKUP($B$3,$A$52:$AG$71,10) -> 0.25 | G15: =VLOOKUP($B$3,$A$52:$AG$71,11) -> 2.75 | H15: =VLOOKUP($B$3,$A$52:$AG$71,12) -> 4.5 | I15: 1 | J15: 2 | K15: 3 | N15: =N14+1 -> 2 | O15: =VLOOKUP($B$3,$A$52:$HQ$71,42) -> 90.4375762 | P15: =VLOOKUP($B$3,$A$52:$HQ$71,43) -> 93.41106071 | Q15: =VLOOKUP($B$3,$A$52:$HQ$71,44) -> 96.99170831 | R15: =VLOOKUP($B$3,$A$52:$HQ$71,45) -> 90.82163068 | S15: =VLOOKUP($B$3,$A$52:$HQ$71,46) -> 83.12859405 | T15: =VLOOKUP($B$3,$A$52:$HQ$71,47) -> 78.05431677 | U15: =VLOOKUP($B$3,$A$52:$HQ$71,48) -> 73.69817439 | V15: =VLOOKUP($B$3,$A$52:$HQ$71,49) -> 69.69817527
B16: =B15+1 -> 2 | C16: =IF(VLOOKUP($B$3,$A$52:$I$71,3)<>0,VLOOKUP($B$3,$A$52:$I$71,3),8000) -> 2000 | D16: =D15+1 -> 2 | E16: =IF(VLOOKUP($B$3,$A$52:$I$71,3)<>0,VLOOKUP($B$3,$A$52:$I$71,3),8000) -> 2000 | F16: =VLOOKUP($B$3,$A$52:$AG$71,13) -> 0.25 | G16: =VLOOKUP($B$3,$A$52:$AG$71,14) -> 4.75 | H16: =VLOOKUP($B$3,$A$52:$AG$71,15) -> 7 | I16: 4 | J16: 5 | K16: 6 | N16: 3 | O16: =VLOOKUP($B$3,$A$52:$HQ$71,50) -> 89.92614999 | P16: =VLOOKUP($B$3,$A$52:$HQ$71,51) -> 90.96751772 | Q16: =VLOOKUP($B$3,$A$52:$HQ$71,52) -> 92.29237517 | R16: =VLOOKUP($B$3,$A$52:$HQ$71,53) -> 87.28152947 | S16: =VLOOKUP($B$3,$A$52:$HQ$71,54) -> 80.55631827 | T16: =VLOOKUP($B$3,$A$52:$HQ$71,55) -> 76.07724445 | U16: =VLOOKUP($B$3,$A$52:$HQ$71,56) -> 71.506302 | V16: =VLOOKUP($B$3,$A$52:$HQ$71,57) -> 66.75972024
B17: 3 | C17: =IF(VLOOKUP($B$3,$A$52:$I$71,4)<>0,VLOOKUP($B$3,$A$52:$I$71,4),8000) -> 2400 | D17: 3 | E17: =IF(VLOOKUP($B$3,$A$52:$I$71,4)<>0,VLOOKUP($B$3,$A$52:$I$71,4),8000) -> 2400 | F17: =VLOOKUP($B$3,$A$52:$AG$71,16) -> 0.25 | G17: =VLOOKUP($B$3,$A$52:$AG$71,17) -> 6.75 | H17: =VLOOKUP($B$3,$A$52:$AG$71,18) -> 10 | I17: 7 | J17: 8 | K17: 9 | N17: 4 | O17: =VLOOKUP($B$3,$A$52:$HQ$71,58) -> 97.5992641 | P17: =VLOOKUP($B$3,$A$52:$HQ$71,59) -> 99.99579989 | Q17: =VLOOKUP($B$3,$A$52:$HQ$71,60) -> 104.3050222 | R17: =VLOOKUP($B$3,$A$52:$HQ$71,61) -> 104.2022144 | S17: =VLOOKUP($B$3,$A$52:$HQ$71,62) -> 94.0074983 | T17: =VLOOKUP($B$3,$A$52:$HQ$71,63) -> 88.34954435 | U17: =VLOOKUP($B$3,$A$52:$HQ$71,64) -> 83.67147837 | V17: =VLOOKUP($B$3,$A$52:$HQ$71,65) -> 79.67147864
B18: 4 | C18: =IF(VLOOKUP($B$3,$A$52:$I$71,5)<>0,VLOOKUP($B$3,$A$52:$I$71,5),8000) -> 2600 | D18: 4 | E18: =IF(VLOOKUP($B$3,$A$52:$I$71,5)<>0,VLOOKUP($B$3,$A$52:$I$71,5),8000) -> 2600 | F18: =VLOOKUP($B$3,$A$52:$AG$71,19) -> 0.25 | G18: =VLOOKUP($B$3,$A$52:$AG$71,20) -> 8 | H18: =VLOOKUP($B$3,$A$52:$AG$71,21) -> 12 | I18: 10 | J18: 11 | K18: 12 | N18: 5 | O18: =VLOOKUP($B$3,$A$52:$HQ$71,66) -> 93.78536851 | P18: =VLOOKUP($B$3,$A$52:$HQ$71,67) -> 97.07533311 | Q18: =VLOOKUP($B$3,$A$52:$HQ$71,68) -> 99.71518925 | R18: =VLOOKUP($B$3,$A$52:$HQ$71,69) -> 98.42736865 | S18: =VLOOKUP($B$3,$A$52:$HQ$71,70) -> 89.0563368 | T18: =VLOOKUP($B$3,$A$52:$HQ$71,71) -> 83.9784506 | U18: =VLOOKUP($B$3,$A$52:$HQ$71,72) -> 79.30038462 | V18: =VLOOKUP($B$3,$A$52:$HQ$71,73) -> 75.30038326
B19: 5 | C19: =IF(VLOOKUP($B$3,$A$52:$I$71,6)<>0,VLOOKUP($B$3,$A$52:$I$71,6),8000) -> 2800 | D19: 5 | E19: =IF(VLOOKUP($B$3,$A$52:$I$71,6)<>0,VLOOKUP($B$3,$A$52:$I$71,6),8000) -> 2800 | F19: =VLOOKUP($B$3,$A$52:$AG$71,22) -> 0.25 | G19: =VLOOKUP($B$3,$A$52:$AG$71,23) -> 9 | H19: =VLOOKUP($B$3,$A$52:$AG$71,24) -> 14 | I19: 13 | J19: 14 | K19: 15 | N19: 6 | O19: =VLOOKUP($B$3,$A$52:$HQ$71,74) -> 94.19716961 | P19: =VLOOKUP($B$3,$A$52:$HQ$71,75) -> 95.6305344 | Q19: =VLOOKUP($B$3,$A$52:$HQ$71,76) -> 96.56826777 | R19: =VLOOKUP($B$3,$A$52:$HQ$71,77) -> 95.1885708 | S19: =VLOOKUP($B$3,$A$52:$HQ$71,78) -> 87.05599074 | T19: =VLOOKUP($B$3,$A$52:$HQ$71,79) -> 82.31252414 | U19: =VLOOKUP($B$3,$A$52:$HQ$71,80) -> 77.89599997 | V19: =VLOOKUP($B$3,$A$52:$HQ$71,81) -> 73.16162474
B20: 6 | C20: =IF(VLOOKUP($B$3,$A$52:$I$71,7)<>0,VLOOKUP($B$3,$A$52:$I$71,7),8000) -> 3000 | D20: 6 | E20: =IF(VLOOKUP($B$3,$A$52:$I$71,7)<>0,VLOOKUP($B$3,$A$52:$I$71,7),8000) -> 3000 | F20: =VLOOKUP($B$3,$A$52:$AG$71,25) -> 0.25 | G20: =VLOOKUP($B$3,$A$52:$AG$71,26) -> 10 | H20: =VLOOKUP($B$3,$A$52:$AG$71,27) -> 16 | I20: 16 | J20: 17 | K20: 18 | N20: 7 | O20: =VLOOKUP($B$3,$A$52:$HQ$71,82) -> 101.0950221 | P20: =VLOOKUP($B$3,$A$52:$HQ$71,83) -> 103.1658115 | Q20: =VLOOKUP($B$3,$A$52:$HQ$71,84) -> 106.4570294 | R20: =VLOOKUP($B$3,$A$52:$HQ$71,85) -> 111.342329 | S20: =VLOOKUP($B$3,$A$52:$HQ$71,86) -> 99.6208825 | T20: =VLOOKUP($B$3,$A$52:$HQ$71,87) -> 93.68346001 | U20: =VLOOKUP($B$3,$A$52:$HQ$71,88) -> 88.74235921 | V20: =VLOOKUP($B$3,$A$52:$HQ$71,89) -> 84.74235376
B21: 7 | C21: =IF(VLOOKUP($B$3,$A$52:$I$71,8)<>0,VLOOKUP($B$3,$A$52:$I$71,8),8000) -> 3200 | D21: 7 | E21: =IF(VLOOKUP($B$3,$A$52:$I$71,8)<>0,VLOOKUP($B$3,$A$52:$I$71,8),8000) -> 3200 | F21: =VLOOKUP($B$3,$A$52:$AG$71,28) -> 0.25 | G21: =VLOOKUP($B$3,$A$52:$AG$71,29) -> 11.5 | H21: =VLOOKUP($B$3,$A$52:$AG$71,30) -> 18 | I21: 19 | J21: 20 | K21: 21 | N21: 8 | O21: =VLOOKUP($B$3,$A$52:$HQ$71,90) -> 96.83651678 | P21: =VLOOKUP($B$3,$A$52:$HQ$71,91) -> 100.4274042 | Q21: =VLOOKUP($B$3,$A$52:$HQ$71,92) -> 102.8324432 | R21: =VLOOKUP($B$3,$A$52:$HQ$71,93) -> 105.4668104 | S21: =VLOOKUP($B$3,$A$52:$HQ$71,94) -> 94.48124249 | T21: =VLOOKUP($B$3,$A$52:$HQ$71,95) -> 89.32592962 | U21: =VLOOKUP($B$3,$A$52:$HQ$71,96) -> 84.38482882 | V21: =VLOOKUP($B$3,$A$52:$HQ$71,97) -> 80.38482338
B22: 8 | C22: =IF(VLOOKUP($B$3,$A$52:$I$71,9)<>0,VLOOKUP($B$3,$A$52:$I$71,9),8000) -> 3450 | D22: 8 | E22: =IF(VLOOKUP($B$3,$A$52:$I$71,9)<>0,VLOOKUP($B$3,$A$52:$I$71,9),8000) -> 3450 | F22: =VLOOKUP($B$3,$A$52:$AG$71,31) -> 0.25 | G22: =VLOOKUP($B$3,$A$52:$AG$71,32) -> 14 | H22: =VLOOKUP($B$3,$A$52:$AG$71,33) -> 21 | I22: 22 | J22: 23 | K22: 24 | N22: 9 | O22: =VLOOKUP($B$3,$A$52:$HQ$71,98) -> 97.64778001 | P22: =VLOOKUP($B$3,$A$52:$HQ$71,99) -> 99.4419378 | Q22: =VLOOKUP($B$3,$A$52:$HQ$71,100) -> 100.0901304 | R22: =VLOOKUP($B$3,$A$52:$HQ$71,101) -> 101.7062874 | S22: =VLOOKUP($B$3,$A$52:$HQ$71,102) -> 92.39006407 | T22: =VLOOKUP($B$3,$A$52:$HQ$71,103) -> 87.43571674 | U22: =VLOOKUP($B$3,$A$52:$HQ$71,104) -> 83.12334628 | V22: =VLOOKUP($B$3,$A$52:$HQ$71,105) -> 78.41066723
N23: 10 | O23: =VLOOKUP($B$3,$A$52:$HQ$71,106) -> 102.5657664 | P23: =VLOOKUP($B$3,$A$52:$HQ$71,107) -> 104.6235975 | Q23: =VLOOKUP($B$3,$A$52:$HQ$71,108) -> 107.6139422 | R23: =VLOOKUP($B$3,$A$52:$HQ$71,109) -> 113.6235481 | S23: =VLOOKUP($B$3,$A$52:$HQ$71,110) -> 102.4113447 | T23: =VLOOKUP($B$3,$A$52:$HQ$71,111) -> 96.07913109 | U23: =VLOOKUP($B$3,$A$52:$HQ$71,112) -> 91.01901555 | V23: =VLOOKUP($B$3,$A$52:$HQ$71,113) -> 86.96243253
E24: 1 | F24: =VLOOKUP($D$12,$E$15:$H$22,2) -> 0.25 | G24: 1 | H24: 1 | I24: =VLOOKUP($E$12,$E$15:$H$22,2) -> 0.25 | J24: 1 | N24: 11 | O24: =VLOOKUP($B$3,$A$52:$HQ$71,114) -> 98.13399544 | P24: =VLOOKUP($B$3,$A$52:$HQ$71,115) -> 101.7928425 | Q24: =VLOOKUP($B$3,$A$52:$HQ$71,116) -> 104.1671637 | R24: =VLOOKUP($B$3,$A$52:$HQ$71,117) -> 107.5866584 | S24: =VLOOKUP($B$3,$A$52:$HQ$71,118) -> 97.08768692 | T24: =VLOOKUP($B$3,$A$52:$HQ$71,119) -> 91.59931767 | U24: =VLOOKUP($B$3,$A$52:$HQ$71,120) -> 86.5872478 | V24: =VLOOKUP($B$3,$A$52:$HQ$71,121) -> 82.53066658 | Z24: E (dB) - End Reflection Correction Values
E25: =E24+1 -> 2 | F25: =VLOOKUP($D$12,$E$15:$H$22,3) -> 2.75 | G25: =G24+1 -> 2 | H25: =H24+1 -> 2 | I25: =VLOOKUP($E$12,$E$15:$H$22,3) -> 4.75 | J25: =J24+1 -> 2 | N25: 12 | O25: =VLOOKUP($B$3,$A$52:$HQ$71,122) -> 99.22867237 | P25: =VLOOKUP($B$3,$A$52:$HQ$71,123) -> 100.9838709 | Q25: =VLOOKUP($B$3,$A$52:$HQ$71,124) -> 101.4981242 | R25: =VLOOKUP($B$3,$A$52:$HQ$71,125) -> 103.5866584 | S25: =VLOOKUP($B$3,$A$52:$HQ$71,126) -> 94.83217027 | T25: =VLOOKUP($B$3,$A$52:$HQ$71,127) -> 89.59077994 | U25: =VLOOKUP($B$3,$A$52:$HQ$71,128) -> 85.31713963 | V25: =VLOOKUP($B$3,$A$52:$HQ$71,129) -> 80.57444338 | Y25: Size | Z25: 63 | AA25: 125 | AB25: 250 | AC25: 500 | AD25: 1000 | AE25: 2000 | AF25: 4000 | AG25: 8000
E26: =E25+1 -> 3 | F26: =VLOOKUP($D$12,$E$15:$H$22,4) -> 4.5 | G26: =G25+1 -> 3 | H26: =H25+1 -> 3 | I26: =VLOOKUP($E$12,$E$15:$H$22,4) -> 7 | J26: =J25+1 -> 3 | N26: 13 | O26: =VLOOKUP($B$3,$A$52:$HQ$71,130) -> 103.8690741 | P26: =VLOOKUP($B$3,$A$52:$HQ$71,131) -> 106.036181 | Q26: =VLOOKUP($B$3,$A$52:$HQ$71,132) -> 108.8924352 | R26: =VLOOKUP($B$3,$A$52:$HQ$71,133) -> 114.9188956 | S26: =VLOOKUP($B$3,$A$52:$HQ$71,134) -> 105.3110931 | T26: =VLOOKUP($B$3,$A$52:$HQ$71,135) -> 98.35245901 | U26: =VLOOKUP($B$3,$A$52:$HQ$71,136) -> 93.17874942 | V26: =VLOOKUP($B$3,$A$52:$HQ$71,137) -> 89.01524786 | Y26: 63 | Z26: 0 | AA26: 0 | AB26: 0 | AC26: 0 | AD26: 0 | AE26: 0 | AF26: 0 | AG26: 0
C27: =MAX(C3:C10) -> 3450 | F27: =MAX(F24:F26) -> 4.5 | I27: =MAX(I24:I26) -> 7 | N27: 14 | O27: =VLOOKUP($B$3,$A$52:$HQ$71,138) -> 99.58766159 | P27: =VLOOKUP($B$3,$A$52:$HQ$71,139) -> 103.0795903 | Q27: =VLOOKUP($B$3,$A$52:$HQ$71,140) -> 105.6653816 | R27: =VLOOKUP($B$3,$A$52:$HQ$71,141) -> 109.2066029 | S27: =VLOOKUP($B$3,$A$52:$HQ$71,142) -> 100.131817 | T27: =VLOOKUP($B$3,$A$52:$HQ$71,143) -> 93.94128352 | U27: =VLOOKUP($B$3,$A$52:$HQ$71,144) -> 88.89733998 | V27: =VLOOKUP($B$3,$A$52:$HQ$71,145) -> 84.73383661 | Y27: 90 | Z27: 0 | AA27: 0 | AB27: 0 | AC27: 0 | AD27: 0 | AE27: 0 | AF27: 0 | AG27: 0
N28: 15 | O28: =VLOOKUP($B$3,$A$52:$HQ$71,146) -> 100.5490796 | P28: =VLOOKUP($B$3,$A$52:$HQ$71,147) -> 102.4069297 | Q28: =VLOOKUP($B$3,$A$52:$HQ$71,148) -> 103.0017504 | R28: =VLOOKUP($B$3,$A$52:$HQ$71,149) -> 104.808006 | S28: =VLOOKUP($B$3,$A$52:$HQ$71,150) -> 97.40035289 | T28: =VLOOKUP($B$3,$A$52:$HQ$71,151) -> 91.70825318 | U28: =VLOOKUP($B$3,$A$52:$HQ$71,152) -> 87.35902752 | V28: =VLOOKUP($B$3,$A$52:$HQ$71,153) -> 82.6637322 | Y28: 125 | Z28: 23.6 | AA28: 17.8 | AB28: 12 | AC28: 6.8 | AD28: 2.8 | AE28: 0.5 | AF28: 0 | AG28: 0
C29: =VLOOKUP(C27,C15:D22,2) -> 8 | D29: =VLOOKUP(C29,B15:C22,2) -> 3450 | F29: =VLOOKUP(F27,F24:G26,2) -> 3 | G29: =VLOOKUP(F29,E24:F26,2) -> 4.5 | I29: =VLOOKUP(I27,I24:J26,2) -> 3 | J29: =VLOOKUP(I29,H24:I26,2) -> 7 | N29: 16 | O29: =VLOOKUP($B$3,$A$52:$HQ$71,154) -> 105.0804467 | P29: =VLOOKUP($B$3,$A$52:$HQ$71,155) -> 107.3492839 | Q29: =VLOOKUP($B$3,$A$52:$HQ$71,156) -> 110.0829618 | R29: =VLOOKUP($B$3,$A$52:$HQ$71,157) -> 116.1238464 | S29: =VLOOKUP($B$3,$A$52:$HQ$71,158) -> 108.0074443 | T29: =VLOOKUP($B$3,$A$52:$HQ$71,159) -> 100.4668964 | U29: =VLOOKUP($B$3,$A$52:$HQ$71,160) -> 95.18742809 | V29: =VLOOKUP($B$3,$A$52:$HQ$71,161) -> 90.92439728 | Y29: 160 | Z29: 0 | AA29: 0 | AB29: 0 | AC29: 0 | AD29: 0 | AE29: 0 | AF29: 0 | AG29: 0
C30: =C29-1 -> 7 | D30: =VLOOKUP(C30,B15:C22,2) -> 3200 | F30: =F29-1 -> 2 | G30: =VLOOKUP(F30,E25:F27,2) -> 2.75 | I30: =I29-1 -> 2 | J30: =VLOOKUP(I30,H25:I27,2) -> 4.75 | N30: 17 | O30: =VLOOKUP($B$3,$A$52:$HQ$71,162) -> 100.9589161 | P30: =VLOOKUP($B$3,$A$52:$HQ$71,163) -> 104.3082286 | Q30: =VLOOKUP($B$3,$A$52:$HQ$71,164) -> 107.0536566 | R30: =VLOOKUP($B$3,$A$52:$HQ$71,165) -> 110.7505825 | S30: =VLOOKUP($B$3,$A$52:$HQ$71,166) -> 103.0141772 | T30: =VLOOKUP($B$3,$A$52:$HQ$71,167) -> 96.15174572 | U30: =VLOOKUP($B$3,$A$52:$HQ$71,168) -> 91.06590031 | V30: =VLOOKUP($B$3,$A$52:$HQ$71,169) -> 86.80286768 | Y30: 200 | Z30: 0 | AA30: 0 | AB30: 0 | AC30: 0 | AD30: 0 | AE30: 0 | AF30: 0 | AG30: 0
N31: 18 | O31: =VLOOKUP($B$3,$A$52:$HQ$71,170) -> 101.7228069 | P31: =VLOOKUP($B$3,$A$52:$HQ$71,171) -> 103.7470068 | Q31: =VLOOKUP($B$3,$A$52:$HQ$71,172) -> 104.4766438 | R31: =VLOOKUP($B$3,$A$52:$HQ$71,173) -> 106.0561381 | S31: =VLOOKUP($B$3,$A$52:$HQ$71,174) -> 99.85507789 | T31: =VLOOKUP($B$3,$A$52:$HQ$71,175) -> 93.73511153 | U31: =VLOOKUP($B$3,$A$52:$HQ$71,176) -> 89.29187323 | V31: =VLOOKUP($B$3,$A$52:$HQ$71,177) -> 84.66022809 | Y31: 250 | Z31: 0 | AA31: 0 | AB31: 0 | AC31: 0 | AD31: 0 | AE31: 0 | AF31: 0 | AG31: 0
N32: 19 | O32: =VLOOKUP($B$3,$A$52:$HQ$71,178) -> 106.2121072 | P32: =VLOOKUP($B$3,$A$52:$HQ$71,179) -> 108.5761059 | Q32: =VLOOKUP($B$3,$A$52:$HQ$71,180) -> 111.1967675 | R32: =VLOOKUP($B$3,$A$52:$HQ$71,181) -> 116.8803094 | S32: =VLOOKUP($B$3,$A$52:$HQ$71,182) -> 110.5273178 | T32: =VLOOKUP($B$3,$A$52:$HQ$71,183) -> 102.4433216 | U32: =VLOOKUP($B$3,$A$52:$HQ$71,184) -> 97.064923 | V32: =VLOOKUP($B$3,$A$52:$HQ$71,185) -> 92.70877932
N33: 20 | O33: =VLOOKUP($B$3,$A$52:$HQ$71,186) -> 102.0241161 | P33: =VLOOKUP($B$3,$A$52:$HQ$71,187) -> 105.3537786 | Q33: =VLOOKUP($B$3,$A$52:$HQ$71,188) -> 108.1656773 | R33: =VLOOKUP($B$3,$A$52:$HQ$71,189) -> 111.6759648 | S33: =VLOOKUP($B$3,$A$52:$HQ$71,190) -> 105.3895191 | T33: =VLOOKUP($B$3,$A$52:$HQ$71,191) -> 97.98652986 | U33: =VLOOKUP($B$3,$A$52:$HQ$71,192) -> 92.87693472 | V33: =VLOOKUP($B$3,$A$52:$HQ$71,193) -> 88.52079248
N34: 21 | O34: =VLOOKUP($B$3,$A$52:$HQ$71,194) -> 102.7815643 | P34: =VLOOKUP($B$3,$A$52:$HQ$71,195) -> 104.9921923 | Q34: =VLOOKUP($B$3,$A$52:$HQ$71,196) -> 105.8966729 | R34: =VLOOKUP($B$3,$A$52:$HQ$71,197) -> 107.405478 | S34: =VLOOKUP($B$3,$A$52:$HQ$71,198) -> 102.2089367 | T34: =VLOOKUP($B$3,$A$52:$HQ$71,199) -> 95.67030755 | U34: =VLOOKUP($B$3,$A$52:$HQ$71,200) -> 91.12874424 | V34: =VLOOKUP($B$3,$A$52:$HQ$71,201) -> 86.55780178
N35: 22 | O35: =VLOOKUP($B$3,$A$52:$HQ$71,202) -> 107.5295284 | P35: =VLOOKUP($B$3,$A$52:$HQ$71,203) -> 110.0044432 | Q35: =VLOOKUP($B$3,$A$52:$HQ$71,204) -> 112.4950352 | R35: =VLOOKUP($B$3,$A$52:$HQ$71,205) -> 117.7612195 | S35: =VLOOKUP($B$3,$A$52:$HQ$71,206) -> 113.4619197 | T35: =VLOOKUP($B$3,$A$52:$HQ$71,207) -> 104.7453619 | U35: =VLOOKUP($B$3,$A$52:$HQ$71,208) -> 99.25166024 | V35: =VLOOKUP($B$3,$A$52:$HQ$71,209) -> 94.78699606
A36: =A3 -> Size | B36: =A4 -> RPM | C36: =A5 -> SP | D36: 63 | E36: 125 | F36: 250 | G36: 500 | H36: 1000 | I36: 2000 | J36: 4000 | K36: 8000 | L36: LWA | N36: 23 | O36: =VLOOKUP($B$3,$A$52:$HQ$71,210) -> 103.0816151 | P36: =VLOOKUP($B$3,$A$52:$HQ$71,211) -> 106.4445297 | Q36: =VLOOKUP($B$3,$A$52:$HQ$71,212) -> 109.3435318 | R36: =VLOOKUP($B$3,$A$52:$HQ$71,213) -> 112.4546472 | S36: =VLOOKUP($B$3,$A$52:$HQ$71,214) -> 107.8469382 | T36: =VLOOKUP($B$3,$A$52:$HQ$71,215) -> 99.90812986 | U36: =VLOOKUP($B$3,$A$52:$HQ$71,216) -> 94.80375014 | V36: =VLOOKUP($B$3,$A$52:$HQ$71,217) -> 90.33908436 | Z36: Size | AA36: RPM | AB36: AMCA Test No.
A37: =B3 -> 250 | B37: =B4 -> 1222 | C37: =B5 -> 2.944 | D37: =O12 -> 90.38088095 | E37: 93.14017651 | F37: 96.47075366 | G37: 90.42918517 | H37: 82.84343891 | I37: 77.83514418 | J37: 73.45518968 | K37: 69.37242654 | L37: =10*LOG10(10^((D37-26.2)/10) +10^((E37-16.1)/10)+10^((F37-8.6)/10)+10^((G37-3.2)/10)+10^((H37)/10)+10^((I37+1.2)/10)+10^((J37+1)/10)+10^((K37-1.1)/10)) -> 91.76426496 | N37: 24 | O37: =VLOOKUP($B$3,$A$52:$HQ$71,218) -> 104.1087125 | P37: =VLOOKUP($B$3,$A$52:$HQ$71,219) -> 106.440375 | Q37: =VLOOKUP($B$3,$A$52:$HQ$71,220) -> 107.4407454 | R37: =VLOOKUP($B$3,$A$52:$HQ$71,221) -> 108.7947945 | S37: =VLOOKUP($B$3,$A$52:$HQ$71,222) -> 104.8307978 | T37: =VLOOKUP($B$3,$A$52:$HQ$71,223) -> 97.83278353 | U37: =VLOOKUP($B$3,$A$52:$HQ$71,224) -> 93.20887516 | V37: =VLOOKUP($B$3,$A$52:$HQ$71,225) -> 88.69073282 | Y37: 1 | Z37: 63 | AA37: 2500 | AB37: AMCA Test - 02/27/2006 - 22638-S1
Y38: 2 | Z38: 90 | AA38: 2500 | AB38: AMCA Test - 02/28/2026 - 22639-S1
Y39: 3 | Z39: 125 | AA39: 2500 | AB39: AMCA Test - 03/06/2026 - 44759-S1
Y40: 4 | Z40: 160 | AA40: 2500 | AB40: AMCA Test - 02/28/2006 - 22641-S1
Y41: 5 | Z41: 200 | AA41: 2500 | AB41: AMCA Test - 02/25/2006 - 22642-S1
Y42: 6 | Z42: 250 | AA42: 2500 | AB42: AMCA Test - 02/25/2026 - 22637-S1
A49: 1 | B49: =A49+1 -> 2 | C49: 3 | D49: 4 | E49: 5 | F49: 6 | G49: 7 | H49: 8 | I49: 9 | J49: 10 | K49: 11 | L49: 12 | M49: 13 | N49: 14 | O49: 15 | P49: 16 | Q49: 17 | R49: 18 | S49: 19 | T49: 20 | U49: 21 | V49: 22 | W49: 23 | X49: 24 | Y49: 25 | Z49: 26 | AA49: 27 | AB49: 28 | AC49: 29 | AD49: 30 | AE49: 31 | AF49: 32 | AG49: 33 | AH49: 34 | AI49: 35 | AJ49: 36 | AK49: 37 | AL49: 38 | AM49: 39 | AN49: 40 | AO49: 41 | AP49: 42 | AQ49: 43 | AR49: 44 | AS49: 45 | AT49: 46 | AU49: 47 | AV49: 48 | AW49: 49 | AX49: 50 | AY49: 51 | AZ49: 52 | BA49: 53 | BB49: 54 | BC49: 55 | BD49: 56 | BE49: 57 | BF49: 58 | BG49: 59 | BH49: 60 | BI49: 61 | BJ49: 62 | BK49: 63 | BL49: 64 | BM49: 65 | BN49: =BM49+1 -> 66 | BO49: 67 | BP49: 68 | BQ49: 69 | BR49: 70 | BS49: 71 | BT49: 72 | BU49: 73 | BV49: 74 | BW49: 75 | BX49: 76 | BY49: 77 | BZ49: 78 | CA49: 79 | CB49: 80 | CC49: 81 | CD49: 82 | CE49: 83 | CF49: 84 | CG49: 85 | CH49: 86 | CI49: 87 | CJ49: 88 | CK49: 89 | CL49: 90 | CM49: 91 | CN49: 92 | CO49: 93 | CP49: 94 | CQ49: 95 | CR49: 96 | CS49: 97 | CT49: 98 | CU49: 99 | CV49: 100 | CW49: 101 | CX49: 102 | CY49: 103 | CZ49: 104 | DA49: 105 | DB49: 106 | DC49: 107 | DD49: 108 | DE49: 109 | DF49: 110 | DG49: 111 | DH49: 112 | DI49: 113 | DJ49: 114 | DK49: 115 | DL49: 116 | DM49: 117 | DN49: 118 | DO49: 119 | DP49: 120 | DQ49: 121 | DR49: 122 | DS49: 123 | DT49: 124 | DU49: 125 | DV49: 126 | DW49: 127 | DX49: 128 | DY49: 129 | DZ49: =DY49+1 -> 130 | EA49: 131 | EB49: 132 | EC49: 133 | ED49: 134 | EE49: 135 | EF49: 136 | EG49: 137 | EH49: 138 | EI49: 139 | EJ49: 140 | EK49: 141 | EL49: 142 | EM49: 143 | EN49: 144 | EO49: 145 | EP49: 146 | EQ49: 147 | ER49: 148 | ES49: 149 | ET49: 150 | EU49: 151 | EV49: 152 | EW49: 153 | EX49: 154 | EY49: 155 | EZ49: 156 | FA49: 157 | FB49: 158 | FC49: 159 | FD49: 160 | FE49: 161 | FF49: 162 | FG49: 163 | FH49: 164 | FI49: 165 | FJ49: 166 | FK49: 167 | FL49: 168 | FM49: 169 | FN49: 170 | FO49: 171 | FP49: 172 | FQ49: 173 | FR49: 174 | FS49: 175 | FT49: 176 | FU49: 177 | FV49: 178 | FW49: 179 | FX49: 180 | FY49: 181 | FZ49: 182 | GA49: 183 | GB49: 184 | GC49: 185 | GD49: 186 | GE49: 187 | GF49: 188 | GG49: 189 | GH49: 190 | GI49: 191 | GJ49: 192 | GK49: 193 | GL49: =GK49+1 -> 194 | GM49: 195 | GN49: 196 | GO49: 197 | GP49: 198 | GQ49: 199 | GR49: 200 | GS49: 201 | GT49: 202 | GU49: 203 | GV49: 204 | GW49: 205 | GX49: 206 | GY49: 207 | GZ49: 208 | HA49: 209 | HB49: 210 | HC49: 211 | HD49: 212 | HE49: 213 | HF49: 214 | HG49: 215 | HH49: 216 | HI49: 217 | HJ49: 218 | HK49: 219 | HL49: 220 | HM49: 221 | HN49: 222 | HO49: 223 | HP49: 224 | HQ49: 225
A50: Size | B50: RPM1 | C50: RPM2 | D50: RPM3 | E50: RPM4 | F50: RPM5 | G50: RPM6 | H50: RPM7 | I50: RPM8 | J50: SP11 | K50: SP12 | L50: SP13 | M50: SP21 | N50: SP22 | O50: SP23 | P50: SP31 | Q50: SP32 | R50: SP33 | S50: SP41 | T50: SP42 | U50: SP43 | V50: SP51 | W50: SP52 | X50: SP53 | Y50: SP61 | Z50: SP62 | AA50: SP63 | AB50: SP71 | AC50: SP72 | AD50: SP73 | AE50: SP81 | AF50: SP82 | AG50: SP83 | AH50: 63 | AI50: 125 | AJ50: 250 | AK50: 500 | AL50: 1000 | AM50: 2000 | AN50: 4000 | AO50: 8000 | AP50: 63 | AQ50: 125 | AR50: 250 | AS50: 500 | AT50: 1000 | AU50: 2000 | AV50: 4000 | AW50: 8000 | AX50: 63 | AY50: 125 | AZ50: 250 | BA50: 500 | BB50: 1000 | BC50: 2000 | BD50: 4000 | BE50: 8000 | BF50: 63 | BG50: 125 | BH50: 250 | BI50: 500 | BJ50: 1000 | BK50: 2000 | BL50: 4000 | BM50: 8000 | BN50: 63 | BO50: 125 | BP50: 250 | BQ50: 500 | BR50: 1000 | BS50: 2000 | BT50: 4000 | BU50: 8000 | BV50: 63 | BW50: 125 | BX50: 250 | BY50: 500 | BZ50: 1000 | CA50: 2000 | CB50: 4000 | CC50: 8000 | CD50: 63 | CE50: 125 | CF50: 250 | CG50: 500 | CH50: 1000 | CI50: 2000 | CJ50: 4000 | CK50: 8000 | CL50: 63 | CM50: 125 | CN50: 250 | CO50: 500 | CP50: 1000 | CQ50: 2000 | CR50: 4000 | CS50: 8000 | CT50: 63 | CU50: 125 | CV50: 250 | CW50: 500 | CX50: 1000 | CY50: 2000 | CZ50: 4000 | DA50: 8000 | DB50: 63 | DC50: 125 | DD50: 250 | DE50: 500 | DF50: 1000 | DG50: 2000 | DH50: 4000 | DI50: 8000 | DJ50: 63 | DK50: 125 | DL50: 250 | DM50: 500 | DN50: 1000 | DO50: 2000 | DP50: 4000 | DQ50: 8000 | DR50: 63 | DS50: 125 | DT50: 250 | DU50: 500 | DV50: 1000 | DW50: 2000 | DX50: 4000 | DY50: 8000 | DZ50: 63 | EA50: 125 | EB50: 250 | EC50: 500 | ED50: 1000 | EE50: 2000 | EF50: 4000 | EG50: 8000 | EH50: 63 | EI50: 125 | EJ50: 250 | EK50: 500 | EL50: 1000 | EM50: 2000 | EN50: 4000 | EO50: 8000 | EP50: 63 | EQ50: 125 | ER50: 250 | ES50: 500 | ET50: 1000 | EU50: 2000 | EV50: 4000 | EW50: 8000 | EX50: 63 | EY50: 125 | EZ50: 250 | FA50: 500 | FB50: 1000 | FC50: 2000 | FD50: 4000 | FE50: 8000 | FF50: 63 | FG50: 125 | FH50: 250 | FI50: 500 | FJ50: 1000 | FK50: 2000 | FL50: 4000 | FM50: 8000 | FN50: 63 | FO50: 125 | FP50: 250 | FQ50: 500 | FR50: 1000 | FS50: 2000 | FT50: 4000 | FU50: 8000 | FV50: 63 | FW50: 125 | FX50: 250 | FY50: 500 | FZ50: 1000 | GA50: 2000 | GB50: 4000 | GC50: 8000 | GD50: 63 | GE50: 125 | GF50: 250 | GG50: 500 | GH50: 1000 | GI50: 2000 | GJ50: 4000 | GK50: 8000 | GL50: 63 | GM50: 125 | GN50: 250 | GO50: 500 | GP50: 1000 | GQ50: 2000 | GR50: 4000 | GS50: 8000 | GT50: 63 | GU50: 125 | GV50: 250 | GW50: 500 | GX50: 1000 | GY50: 2000 | GZ50: 4000 | HA50: 8000 | HB50: 63 | HC50: 125 | HD50: 250 | HE50: 500 | HF50: 1000 | HG50: 2000 | HH50: 4000 | HI50: 8000 | HJ50: 63 | HK50: 125 | HL50: 250 | HM50: 500 | HN50: 1000 | HO50: 2000 | HP50: 4000 | HQ50: 8000
A52: 63 | B52: 1600 | C52: 2000 | D52: 2400 | E52: 2600 | F52: 2800 | G52: 3000 | H52: 3200 | I52: 3450 | J52: 0.25 | K52: 1.5 | L52: 2.25 | M52: 0.25 | N52: 2.25 | O52: 3.5 | P52: 0.25 | Q52: 3.5 | R52: 5 | S52: 0.25 | T52: 4 | U52: 6 | V52: 0.25 | W52: 4.5 | X52: 7 | Y52: 0.25 | Z52: 5 | AA52: 8 | AB52: 0.25 | AC52: 6 | AD52: 9 | AE52: 0.25 | AF52: 7 | AG52: 11 | AH52: 96.13321811 | AI52: 90.64936042 | AJ52: 97.31065729 | AK52: 88.44333477 | AL52: 77.76177024 | AM52: 70.15814711 | AN52: 62.35463856 | AO52: 54.65981358 | AP52: 95.50853308 | AQ52: 88.5163701 | AR52: 97.77336147 | AS52: 88.73930987 | AT52: 77.76177024 | AU52: 70.15814711 | AV52: 62.26692575 | AW52: 54.43586991 | AX52: 94.99569756 | AY52: 89.41758397 | AZ52: 98.10961225 | BA52: 89.28017008 | BB52: 78.02766091 | BC52: 71.11953124 | BD52: 63.65131477 | BE52: 55.65131314 | BF52: 104.216675 | BG52: 96.77460076 | BH52: 98.38318105 | BI52: 98.72167087 | BJ52: 84.88088087 | BK52: 77.57907468 | BL52: 69.64195534 | BM52: 61.83726639 | BN52: 105.0103933 | BO52: 94.39232008 | BP52: 97.3546872 | BQ52: 99.23552085 | BR52: 84.88088087 | BS52: 77.57907468 | BT52: 69.65704571 | BU52: 61.89923181 | BV52: 104.2677272 | BW52: 94.70093273 | BX52: 98.28763772 | BY52: 99.63615823 | BZ52: 85.37884138 | CA52: 78.05190647 | CB52: 71.04782877 | CC52: 63.04782784 | CD52: 110.6866821 | CE52: 101.6648334 | CF52: 99.39020074 | CG52: 107.1196756 | CH52: 90.69762489 | CI52: 83.64241217 | CJ52: 75.65040607 | CK52: 67.78603252 | CL52: 113.0336413 | CM52: 99.03925783 | CN52: 97.07615944 | CO52: 107.9656045 | CP52: 90.69762489 | CQ52: 83.64241217 | CR52: 75.64837394 | CS52: 67.74949516 | CT52: 111.8773952 | CU52: 99.02802782 | CV52: 98.39568292 | CW52: 108.1027524 | CX52: 91.36832551 | CY52: 83.72635543 | CZ52: 77.06776539 | DA52: 69.06775803 | DB52: 112.7969055 | DC52: 104.1575287 | DD52: 100.674328 | DE52: 109.6813329 | DF52: 93.80656159 | DG52: 86.25128402 | DH52: 78.3043372 | DI52: 70.41336768 | DJ52: 115.3795608 | DK52: 101.8372437 | DL52: 98.02303181 | DM52: 110.5304453 | DN52: 93.85460726 | DO52: 86.25128402 | DP52: 78.3043372 | DQ52: 70.44668731 | DR52: 114.1339987 | DS52: 101.6236969 | DT52: 99.47427716 | DU52: 110.6813329 | DV52: 94.59303683 | DW52: 86.29506083 | DX52: 79.76412087 | DY52: 71.85167475 | DZ52: 114.0683725 | EA52: 106.8053747 | EB52: 102.6487384 | EC52: 110.9687202 | ED52: 97.22008952 | EE52: 88.61560999 | EF52: 80.76889624 | EG52: 72.85224739 | EH52: 116.5560957 | EI52: 105.051563 | EJ52: 99.96512549 | EK52: 111.7624065 | EL52: 97.34985557 | EM52: 88.61560999 | EN52: 80.76889624 | EO52: 72.9414723 | EP52: 115.3883661 | EQ52: 104.6862333 | ER52: 101.2533626 | ES52: 111.9687202 | ET52: 98.04457346 | EU52: 88.74480254 | EV52: 82.09086676 | EW52: 74.34924794 | EX52: 115.2540578 | EY52: 109.2587982 | EZ52: 104.4784022 | FA52: 112.1672492 | FB52: 100.3980038 | FC52: 90.81673673 | FD52: 83.06333811 | FE52: 75.12731296 | FF52: 117.6394744 | FG52: 108.0129039 | FH52: 101.7853979 | FI52: 112.9033603 | FJ52: 100.5916267 | FK52: 90.81673673 | FL52: 83.06333811 | FM52: 75.25781721 | FN52: 116.6116967 | FO52: 107.5457476 | FP52: 102.8623762 | FQ52: 113.1672492 | FR52: 101.2342338 | FS52: 91.0213164 | FT52: 84.20972839 | FU52: 76.61889585 | FV52: 116.3646951 | FW52: 111.5454172 | FX52: 106.1836463 | FY52: 112.5105111 | FZ52: 103.370742 | GA52: 92.87575952 | GB52: 85.20964689 | GC52: 77.25877139 | GD52: 118.9505105 | GE52: 110.7635883 | GF52: 103.4455253 | GG52: 112.8864643 | GH52: 103.6667171 | GI52: 92.87575952 | GJ52: 85.20964689 | GK52: 77.31842553 | GL52: 117.7952371 | GM52: 110.2392858 | GN52: 104.3467392 | GO52: 113.2227151 | GP52: 104.2075773 | GQ52: 93.14165019 | GR52: 86.17103103 | GS52: 78.70281456 | GT52: 117.6608033 | GU52: 114.2021604 | GV52: 108.1646969 | GW52: 112.9193622 | GX52: 106.8356487 | GY52: 95.27566765 | GZ52: 87.71130254 | HA52: 79.74644445 | HB52: 120.2708642 | HC52: 113.9947834 | HD52: 105.406456 | HE52: 112.7610458 | HF52: 107.2249707 | HG52: 95.27566765 | HH52: 87.71130254 | HI52: 79.7981111 | HJ52: 118.8190684 | HK52: 113.2264093 | HL52: 106.281911 | HM52: 113.3647743 | HN52: 107.7757177 | HO52: 95.68831572 | HP52: 88.66210385 | HQ52: 81.48740408
A53: 90 | B53: 1600 | C53: 2000 | D53: 2400 | E53: 2600 | F53: 2800 | G53: 3000 | H53: 3200 | I53: 3450 | J53: 0.25 | K53: 2.5 | L53: 4.5 | M53: 0.25 | N53: 4.5 | O53: 6.5 | P53: 0.25 | Q53: 6.5 | R53: 9 | S53: 0.25 | T53: 7.5 | U53: 12 | V53: 0.25 | W53: 8.5 | X53: 14 | Y53: 0.25 | Z53: 9.5 | AA53: 16 | AB53: 0.25 | AC53: 11 | AD53: 18 | AE53: 0.25 | AF53: 13 | AG53: 21 | AH53: 92.03946143 | AI53: 88.36839849 | AJ53: 94.52108238 | AK53: 84.65733271 | AL53: 74.19869514 | AM53: 68.83888463 | AN53: 62.49682955 | AO53: 55.49683078 | AP53: 92.63545467 | AQ53: 86.30314034 | AR53: 93.92910572 | AS53: 83.15474308 | AT53: 73.20078406 | AU53: 67.29455838 | AV53: 60.27612643 | AW53: 53.27612766 | AX53: 90.66613259 | AY53: 84.82968707 | AZ53: 91.71077058 | BA53: 81.01860257 | BB53: 72.32472173 | BC53: 66.41156508 | BD53: 59.05542402 | BE53: 52.05542489 | BF53: 98.10170816 | BG53: 94.29765788 | BH53: 95.64582891 | BI53: 95.40308253 | BJ53: 81.03893677 | BK53: 75.41576422 | BL53: 69.70569429 | BM53: 62.70569361 | BN53: 98.7524472 | BO53: 92.66694947 | BP53: 93.0812497 | BQ53: 94.16229341 | BR53: 79.2548504 | BS53: 74.49282107 | BT53: 67.14319429 | BU53: 60.14319361 | BV53: 98.20158691 | BW53: 91.38288005 | BX53: 92.29310922 | BY53: 92.67775989 | BZ53: 78.26401008 | CA53: 74.04001218 | CB53: 66.36194429 | CC53: 59.36194413 | CD53: 103.0725983 | CE53: 99.06374269 | CF53: 96.64520954 | CG53: 104.1166153 | CH53: 86.62487658 | CI53: 80.74728277 | CJ53: 75.56567769 | CK53: 68.56567129 | CL53: 104.2416624 | CM53: 98.41879619 | CN53: 92.77560685 | CO53: 103.4025742 | CP53: 84.14207249 | CQ53: 80.43353738 | CR53: 72.93807352 | CS53: 65.93806712 | CT53: 104.1165409 | CU53: 96.90368375 | CV53: 92.41982354 | CW53: 102.0601815 | CX53: 83.07638187 | CY53: 80.20100592 | CZ53: 72.25990512 | DA53: 65.25989872 | DB53: 104.8546902 | DC53: 101.2014892 | DD53: 97.91200283 | DE53: 106.7391177 | DF53: 89.75738444 | DG53: 83.1336462 | DH53: 78.02228712 | DI53: 71.13218449 | DJ53: 106.2142502 | DK53: 100.9812142 | DL53: 94.04020223 | DM53: 106.2142471 | DN53: 87.25784595 | DO53: 82.7886474 | DP53: 75.5406402 | DQ53: 68.51421022 | DR53: 106.4550046 | DS53: 98.78261666 | DT53: 93.8831662 | DU53: 104.1339956 | DV53: 85.42897453 | DW53: 82.20750496 | DX53: 74.53066856 | DY53: 67.47408448 | DZ53: 106.1181971 | EA53: 103.2361142 | EB53: 99.86432946 | EC53: 108.0185449 | ED53: 93.30837687 | EE53: 85.39413741 | EF53: 80.18689573 | EG53: 73.50574173 | EH53: 107.5806493 | EI53: 103.3263101 | EJ53: 96.50327816 | EK53: 107.5806463 | EL53: 91.06657062 | EM53: 84.7557001 | EN53: 77.97481003 | EO53: 70.91135397 | EP53: 107.7589019 | EQ53: 101.2707535 | ER53: 95.98798702 | ES53: 105.3883631 | ET53: 89.13022615 | EU53: 84.04224334 | EV53: 76.97871767 | EW53: 69.81521239 | EX53: 107.2974606 | EY53: 105.1310017 | EZ53: 101.6748462 | FA53: 109.210652 | FB53: 96.60848226 | FC53: 87.49888269 | FD53: 82.19884636 | FE53: 75.71349991 | FF53: 108.8686411 | FG53: 105.5235948 | FH53: 98.82020608 | FI53: 108.8686381 | FJ53: 94.63004377 | FK53: 86.59839518 | FL53: 80.22954285 | FM53: 73.1509993 | FN53: 108.94503 | FO53: 103.6301588 | FP53: 97.93215424 | FQ53: 106.6116936 | FR53: 92.63154892 | FS53: 85.78224085 | FT53: 79.28556033 | FU53: 72.02252674 | FV53: 108.4028421 | FW53: 106.9041428 | FX53: 103.3634058 | FY53: 109.5631202 | FZ53: 99.69134942 | GA53: 89.46788278 | GB53: 84.07850881 | GC53: 77.77721117 | GD53: 109.9314676 | GE53: 107.383435 | GF53: 100.7745319 | GG53: 108.7177544 | GH53: 97.87521914 | GI53: 88.35867472 | GJ53: 82.30215649 | GK53: 75.17503832 | GL53: 110.0349832 | GM53: 105.8484621 | GN53: 99.75884228 | GO53: 106.8238735 | GP53: 95.94600977 | GQ53: 87.438711 | GR53: 81.46306486 | GS53: 74.1069238 | GT53: 109.693622 | GU53: 108.9715724 | GV53: 105.3264716 | GW53: 109.9791148 | GX53: 103.280429 | GY53: 91.76293081 | GZ53: 86.26691007 | HA53: 80.18100088 | HB53: 111.1820173 | HC53: 109.5730017 | HD53: 103.0700611 | HE53: 108.5459684 | HF53: 101.6594249 | HG53: 90.39626008 | HH53: 84.73203701 | HI53: 77.5400641 | HJ53: 111.3519396 | HK53: 108.3843229 | HL53: 101.8916102 | HM53: 106.9864481 | HN53: 99.71610599 | HO53: 89.308572 | HP53: 83.95452875 | HQ53: 76.48986456
A54: 125 | B54: 1600 | C54: 2000 | D54: 2400 | E54: 2600 | F54: 2800 | G54: 3000 | H54: 3200 | I54: 3450 | J54: 0.25 | K54: 2.5 | L54: 4.5 | M54: 0.25 | N54: 4.5 | O54: 6.5 | P54: 0.25 | Q54: 6.5 | R54: 9 | S54: 0.25 | T54: 7.5 | U54: 12 | V54: 0.25 | W54: 8.5 | X54: 14 | Y54: 0.25 | Z54: 9.5 | AA54: 16 | AB54: 0.25 | AC54: 11 | AD54: 18 | AE54: 0.25 | AF54: 13 | AG54: 21 | AH54: 95.65107553 | AI54: 84.20661666 | AJ54: 94.69341071 | AK54: 85.42486107 | AL54: 75.27283431 | AM54: 70.08618367 | AN54: 65.72824312 | AO54: 61.02824312 | AP54: 94.75823168 | AQ54: 83.16480868 | AR54: 101.1865949 | AS54: 84.69384775 | AT54: 73.5670659 | AU54: 68.25813862 | AV54: 63.6425921 | AW54: 58.7425921 | AX54: 94.90391065 | AY54: 83.16480868 | AZ54: 109.3370056 | BA54: 84.69384775 | BB54: 73.5670659 | BC54: 68.25813862 | BD54: 63.6425921 | BE54: 58.7425921 | BF54: 108.4755378 | BG54: 90.61934711 | BH54: 99.69243399 | BI54: 95.02683021 | BJ54: 82.71017651 | BK54: 76.28276181 | BL54: 72.21925317 | BM54: 67.51925317 | BN54: 107.6220514 | BO54: 89.42679294 | BP54: 107.5806736 | BQ54: 98.09625986 | BR54: 80.82702727 | BS54: 74.42354446 | BT54: 70.06554041 | BU54: 65.16554041 | BV54: 107.6220514 | BW54: 89.42679294 | BX54: 112.7969364 | BY54: 100.3438089 | BZ54: 80.82702727 | CA54: 74.42354446 | CB54: 70.06554041 | CC54: 65.16554041 | CD54: 118.9538864 | CE54: 95.80358591 | CF54: 92.27309452 | CG54: 103.7348913 | CH54: 88.72077474 | CI54: 81.31426574 | CJ54: 77.48652389 | CK54: 72.78652389 | CL54: 118.2068373 | CM54: 94.81893689 | CN54: 91.26720195 | CO54: 111.5759599 | CP54: 86.75884761 | CQ54: 79.46104783 | CR54: 75.31347131 | CS54: 70.41347131 | CT54: 118.2068373 | CU54: 95.00608916 | CV54: 91.26720195 | CW54: 116.1039659 | CX54: 86.75884761 | CY54: 79.46104783 | CZ54: 75.31347131 | DA54: 70.41347131 | DB54: 122.151667 | DC54: 99.16419122 | DD54: 93.5795397 | DE54: 105.5010342 | DF54: 91.7454343 | DG54: 83.7351267 | DH54: 79.73896084 | DI54: 75.09156077 | DJ54: 121.4429828 | DK54: 98.29137253 | DL54: 92.3894117 | DM54: 113.1157975 | DN54: 89.93429903 | DO54: 81.86303206 | DP54: 77.57260973 | DQ54: 72.71741498 | DR54: 121.4429828 | DS54: 98.65359496 | DT54: 92.3894117 | DU54: 120.0605261 | DV54: 89.93429903 | DW54: 81.86303206 | DX54: 77.57260973 | DY54: 72.71741498 | DZ54: 123.7609011 | EA54: 103.3132039 | EB54: 95.68594954 | EC54: 107.1325153 | ED54: 94.92368782 | EE54: 86.17805933 | EF54: 81.77175911 | EG54: 77.22248934 | EH54: 123.052217 | EI54: 102.5009897 | EJ54: 94.46907277 | EK54: 114.461258 | EL54: 93.4359323 | EM54: 84.27413025 | EN54: 79.62019624 | EO54: 74.85053365 | EP54: 123.052217 | EQ54: 102.789592 | ER54: 94.46907277 | ES54: 121.7799941 | ET54: 93.4359323 | EU54: 84.27413025 | EV54: 79.62019624 | EW54: 74.85053365 | EX54: 125.2590623 | EY54: 107.2783486 | EZ54: 97.64258344 | FA54: 108.6486242 | FB54: 97.88422802 | FC54: 88.44709072 | FD54: 83.66236752 | FE54: 79.20395207 | FF54: 124.5503781 | FG54: 106.4246185 | FH54: 96.4051909 | FI54: 115.6607556 | FJ54: 96.69587489 | FK54: 86.51880897 | FL54: 81.52645367 | FM54: 76.83641962 | FN54: 124.5503781 | FO54: 106.6324763 | FP54: 96.4051909 | FQ54: 123.1953574 | FR54: 96.69587489 | FS54: 86.51880897 | FT54: 81.52645367 | FU54: 76.83641962 | FV54: 126.6604985 | FW54: 110.9874938 | FX54: 99.46967757 | FY54: 110.0647493 | FZ54: 100.6547391 | GA54: 90.56576071 | GB54: 85.42945417 | GC54: 81.05567488 | GD54: 125.9518143 | GE54: 110.1091588 | GF54: 98.21630846 | GG54: 117.256896 | GH54: 99.74534753 | GI54: 88.61856569 | GJ54: 83.3096384 | GK54: 78.69409188 | GL54: 125.9518143 | GM54: 110.2268708 | GN54: 98.21630846 | GO54: 124.3885054 | GP54: 99.74534753 | GQ54: 88.61856569 | GR54: 83.3096384 | GS54: 78.69409188 | GT54: 128.2939543 | GU54: 115.3107194 | GV54: 101.5959761 | GW54: 111.7130965 | GX54: 103.8849533 | GY54: 93.03124677 | GZ54: 87.4875162 | HA54: 83.21204274 | HB54: 127.5852702 | HC54: 114.3981191 | HD54: 100.3272719 | HE54: 119.0780202 | HF54: 103.641249 | HG54: 91.06595495 | HH54: 85.38804452 | HI54: 80.85931756 | HJ54: 127.5852702 | HK54: 114.4232894 | HL54: 100.3272719 | HM54: 126.0900097 | HN54: 104.0218512 | HO54: 91.06595495 | HP54: 85.38804452 | HQ54: 80.85931756
A55: 160 | B55: 1600 | C55: 2000 | D55: 2400 | E55: 2600 | F55: 2800 | G55: 3000 | H55: 3200 | I55: 3450 | J55: 0.25 | K55: 2.75 | L55: 4.5 | M55: 0.25 | N55: 4.75 | O55: 7 | P55: 0.25 | Q55: 6.75 | R55: 10 | S55: 0.25 | T55: 8 | U55: 12 | V55: 0.25 | W55: 9 | X55: 14 | Y55: 0.25 | Z55: 10 | AA55: 16 | AB55: 0.25 | AC55: 11.5 | AD55: 18 | AE55: 0.25 | AF55: 14 | AG55: 21 | AH55: 91.77301922 | AI55: 90.12284827 | AJ55: 96.37383499 | AK55: 89.06972714 | AL55: 80.84255119 | AM55: 75.29327322 | AN55: 70.38449823 | AO55: 66.07932243 | AP55: 90.62144979 | AQ55: 87.9163237 | AR55: 92.72932976 | AS55: 85.33950253 | AT55: 78.96844285 | AU55: 73.57219121 | AV55: 66.65209475 | AW55: 59.97362696 | AX55: 90.37032611 | AY55: 86.16049601 | AZ55: 90.31218948 | BA55: 83.84312442 | BB55: 78.62490653 | BC55: 73.15814901 | BD55: 65.32131589 | BE55: 57.57473175 | BF55: 99.8865108 | BG55: 94.09679353 | BH55: 98.64419456 | BI55: 98.49214054 | BJ55: 87.36086633 | BK55: 82.12527448 | BL55: 76.70625805 | BM55: 72.51094392 | BN55: 97.87730924 | BO55: 92.38494431 | BP55: 94.75487633 | BQ55: 94.12104679 | BR55: 84.10646033 | BS55: 80.672132 | BT55: 73.23659795 | BU55: 66.3811292 | BV55: 98.78431816 | BW55: 91.22309463 | BX55: 92.93392844 | BY55: 92.69153482 | BZ55: 83.81245283 | CA55: 80.57907468 | CB55: 72.6645909 | CC55: 64.93021547 | CD55: 106.5157129 | CE55: 97.28945969 | CF55: 100.4691266 | CG55: 106.1607234 | CH55: 92.68377169 | CI55: 87.69238174 | CJ55: 81.80218624 | CK55: 77.66654889 | CL55: 104.1215738 | CM55: 96.29966144 | CN55: 96.87623793 | CO55: 101.803193 | CP55: 88.52797435 | CQ55: 86.66231163 | CR55: 79.04915172 | CS55: 72.21809159 | CT55: 105.6030511 | CU55: 95.36611947 | CV55: 95.09949897 | CW55: 99.95495313 | CX55: 88.05098792 | CY55: 86.64241217 | CZ55: 78.65933974 | DA55: 70.94665932 | DB55: 108.681336 | DC55: 99.42606432 | DD55: 101.5659629 | DE55: 108.5657634 | DF55: 95.52124185 | DG55: 90.07706279 | DH55: 84.13338383 | DI55: 79.91118888 | DJ55: 106.1339987 | DK55: 98.47973982 | DL55: 98.1379807 | DM55: 104.1339956 | DN55: 91.0894741 | DO55: 88.93739679 | DP55: 81.58903688 | DQ55: 74.69187906 | DR55: 108.0023419 | DS55: 97.71505261 | DT55: 96.34118281 | DU55: 102.1339956 | DV55: 90.54925777 | DW55: 88.9117836 | DX55: 81.3043372 | DY55: 73.51786224 | DZ55: 109.9687233 | EA55: 102.1206248 | EB55: 102.8670455 | EC55: 109.869071 | ED55: 98.6299427 | EE55: 92.23063948 | EF55: 86.39207196 | EG55: 81.98171397 | EH55: 107.5876646 | EI55: 101.0643879 | EJ55: 99.81979171 | EK55: 105.5876616 | EL55: 94.34853326 | EM55: 90.73581122 | EN55: 84.11405926 | EO55: 77.19060193 | EP55: 109.339259 | EQ55: 100.5224279 | ER55: 97.98973144 | ES55: 103.3883631 | ET55: 93.47120682 | EU55: 90.63461481 | EV55: 83.76889624 | EW55: 75.94440685 | EX55: 111.1672522 | EY55: 104.6292047 | EZ55: 104.0738043 | FA55: 111.0804436 | FB55: 101.5220938 | FC55: 94.23584787 | FD55: 88.49386569 | FE55: 83.90382556 | FF55: 108.9589189 | FG55: 103.5013438 | FH55: 101.3852473 | FI55: 106.9589158 | FJ55: 97.40056604 | FK55: 92.44676652 | FL55: 86.45229195 | FM55: 79.52256017 | FN55: 110.5005856 | FO55: 103.1470842 | FP55: 99.57590856 | FQ55: 104.6116936 | FR55: 96.19973706 | FS55: 92.23853162 | FT55: 86.06333811 | FU55: 78.22711033 | FV55: 112.2884012 | FW55: 106.9758252 | FX55: 105.1993704 | FY55: 111.7158197 | FZ55: 104.2260162 | GA55: 96.11173883 | GB55: 90.45921392 | GC55: 85.69780588 | GD55: 110.0241189 | GE55: 105.6772039 | GF55: 102.7200627 | GG55: 107.62319 | GH55: 100.0380279 | GI55: 94.00091724 | GJ55: 88.52544636 | GK55: 81.50188432 | GL55: 111.5281473 | GM55: 105.5845983 | GN55: 101.0896512 | GO55: 105.4252924 | GP55: 98.77053162 | GQ55: 93.73889581 | GR55: 88.2096488 | GS55: 80.37281567 | GT55: 113.5951658 | GU55: 109.7109422 | GV55: 106.5079622 | GW55: 112.4547955 | GX55: 107.3760064 | GY55: 98.29826254 | GZ55: 92.74914725 | HA55: 87.78467513 | HB55: 111.0816183 | HC55: 108.0853912 | HD55: 104.1860601 | HE55: 108.2361227 | HF55: 102.9280963 | HG55: 95.71369701 | HH55: 90.88491148 | HI55: 83.65774444 | HJ55: 112.8654872 | HK55: 108.4369788 | HL55: 102.775206 | HM55: 106.2804868 | HN55: 101.7383464 | HO55: 95.487658 | HP55: 90.71130254 | HQ55: 82.84151333
A56: 200 | B56: 1600 | C56: 2000 | D56: 2400 | E56: 2600 | F56: 2800 | G56: 3000 | H56: 3200 | I56: 3450 | J56: 0.25 | K56: 2.75 | L56: 4.5 | M56: 0.25 | N56: 4.75 | O56: 7 | P56: 0.25 | Q56: 6.75 | R56: 10 | S56: 0.25 | T56: 8 | U56: 12 | V56: 0.25 | W56: 9 | X56: 14 | Y56: 0.25 | Z56: 10.5 | AA56: 16 | AB56: 0.25 | AC56: 12 | AD56: 18 | AE56: 0.25 | AF56: 14 | AG56: 21 | AH56: 92.83096621 | AI56: 92.37030895 | AJ56: 96.35990093 | AK56: 90.89261259 | AL56: 83.74430656 | AM56: 78.68629674 | AN56: 73.63195567 | AO56: 68.63195433 | AP56: 90.78084685 | AQ56: 89.36497664 | AR56: 92.33447509 | AS56: 87.04205028 | AT56: 80.4509169 | AU56: 75.08892752 | AV56: 69.2959508 | AW56: 63.61748298 | AX56: 91.07901134 | AY56: 88.52911267 | AZ56: 89.88059786 | BA56: 84.06672879 | BB56: 78.414975 | BC56: 73.69927908 | BD56: 67.69928126 | BE56: 61.69927963 | BF56: 99.45125989 | BG56: 96.64243111 | BH56: 99.68521887 | BI56: 99.32549058 | BJ56: 90.32942824 | BK56: 85.31810625 | BL56: 80.25189237 | BM56: 75.25189437 | BN56: 96.55605782 | BO56: 94.01154371 | BP56: 95.27316899 | BQ56: 94.89082759 | BR56: 86.23373222 | BS56: 81.51199323 | BT56: 75.55852598 | BU56: 69.70305587 | BV56: 96.90058703 | BW56: 94.13349842 | BX56: 93.58987899 | BY56: 92.45011402 | BZ56: 84.11637364 | CA56: 80.48855573 | CB56: 74.48855982 | CC56: 68.48855818 | CD56: 104.8055294 | CE56: 100.1029259 | CF56: 102.2984558 | CG56: 106.2097591 | CH56: 95.67977761 | CI56: 90.67946593 | CJ56: 85.61564726 | CK56: 80.61564181 | CL56: 101.5682857 | CM56: 98.09172048 | CN56: 97.92476581 | CO56: 101.6618834 | CP56: 91.37119229 | CQ56: 87.0980892 | CR56: 81.10804493 | CS56: 75.27698479 | CT56: 101.6454397 | CU56: 98.69060131 | CV56: 96.61835316 | CW56: 99.33501777 | CX56: 88.82022884 | CY56: 86.04752497 | CZ56: 80.04753096 | DA56: 74.04752551 | DB56: 106.681336 | DC56: 102.0309011 | DD56: 103.6160069 | DE56: 108.4501939 | DF56: 98.34495232 | DG56: 93.02254769 | DH56: 87.96450045 | DI56: 82.96123297 | DJ56: 103.2848863 | DK56: 100.0599204 | DL56: 99.32837621 | DM56: 103.8322205 | DN56: 93.90264842 | DO56: 89.39184669 | DP56: 83.49294525 | DQ56: 77.63529565 | DR56: 103.4550046 | DS56: 100.799038 | DT56: 98.21521166 | DU56: 101.360327 | DV56: 91.14605525 | DW56: 88.22031156 | DX56: 82.41750175 | DY56: 76.41750203 | DZ56: 107.9687233 | EA56: 104.2104615 | EB56: 105.0142546 | EC56: 109.7694218 | ED56: 101.1231563 | EE56: 95.18896109 | EF56: 90.13707102 | EG56: 85.12892126 | EH56: 104.7939784 | EI56: 102.0993198 | EJ56: 101.1221397 | EK56: 105.175034 | EL56: 96.79057495 | EM56: 91.57147182 | EN56: 85.85452413 | EO56: 80.02710249 | EP56: 104.7589019 | EQ56: 102.7530038 | ER56: 100.0726035 | ES56: 102.5981845 | ET56: 93.86856244 | EU56: 90.07654871 | EV56: 84.65171951 | EW56: 78.65171446 | EX56: 109.1672522 | EY56: 106.2350304 | EZ56: 106.3140063 | FA56: 110.9936381 | FB56: 103.7101603 | FC56: 97.20386153 | FD56: 92.15544176 | FE56: 87.1440275 | FF56: 105.8755856 | FG56: 103.9550325 | FH56: 102.581429 | FI56: 106.3443325 | FJ56: 99.25789056 | FK56: 93.42837802 | FL56: 87.89143514 | FM56: 82.02194157 | FN56: 105.94503 | FO56: 104.5443268 | FP56: 101.8213038 | FQ56: 103.8339158 | FR56: 96.48646539 | FS56: 91.84069218 | FT56: 86.75949069 | FU56: 80.75949287 | FV56: 110.2884012 | FW56: 108.1255892 | FX56: 107.5283464 | FY56: 111.9018503 | FZ56: 106.1304165 | GA56: 99.08717767 | GB56: 94.04036184 | GC56: 89.02677821 | GD56: 106.9641824 | GE56: 105.697297 | GF56: 103.999398 | GG56: 107.2564339 | GH56: 101.6203803 | GI56: 95.20538714 | GJ56: 89.83525152 | GK56: 83.94403016 | GL56: 107.0349832 | GM56: 106.200404 | GN56: 103.4582679 | GO56: 104.9937007 | GP56: 98.99413599 | GQ56: 93.52896428 | GR56: 88.75077886 | GS56: 82.75078104 | GT56: 111.5951658 | GU56: 110.3258018 | GV56: 108.9421345 | GW56: 112.9543194 | GX56: 108.9515058 | GY56: 101.2806936 | GZ56: 96.23409133 | HA56: 91.21884369 | HB56: 108.2437691 | HC56: 107.7253278 | HD56: 105.6621865 | HE56: 108.3185156 | HF56: 104.3834027 | HG56: 97.28131078 | HH56: 92.10626761 | HI56: 86.19307586 | HJ56: 108.3519396 | HK56: 108.1772115 | HL56: 105.3482968 | HM56: 106.2114206 | HN56: 101.7773215 | HO56: 95.4215915 | HP56: 91.0251922 | HQ56: 85.02519629
A57: 250 | B57: 1600 | C57: 2000 | D57: 2400 | E57: 2600 | F57: 2800 | G57: 3000 | H57: 3200 | I57: 3450 | J57: 0.25 | K57: 2.75 | L57: 4.5 | M57: 0.25 | N57: 4.75 | O57: 7 | P57: 0.25 | Q57: 6.75 | R57: 10 | S57: 0.25 | T57: 8 | U57: 12 | V57: 0.25 | W57: 9 | X57: 14 | Y57: 0.25 | Z57: 10 | AA57: 16 | AB57: 0.25 | AC57: 11.5 | AD57: 18 | AE57: 0.25 | AF57: 14 | AG57: 21 | AH57: 93.28397503 | AI57: 96.11241345 | AJ57: 101.6527657 | AK57: 95.41178572 | AL57: 87.10045051 | AM57: 81.78454138 | AN57: 77.4283977 | AO57: 73.42839988 | AP57: 90.4375762 | AQ57: 93.41106071 | AR57: 96.99170831 | AS57: 90.82163068 | AT57: 83.12859405 | AU57: 78.05431677 | AV57: 73.69817439 | AW57: 69.69817527 | AX57: 89.92614999 | AY57: 90.96751772 | AZ57: 92.29237517 | BA57: 87.28152947 | BB57: 80.55631827 | BC57: 76.07724445 | BD57: 71.506302 | BE57: 66.75972024 | BF57: 97.5992641 | BG57: 99.99579989 | BH57: 104.3050222 | BI57: 104.2022144 | BJ57: 94.0074983 | BK57: 88.34954435 | BL57: 83.67147837 | BM57: 79.67147864 | BN57: 93.78536851 | BO57: 97.07533311 | BP57: 99.71518925 | BQ57: 98.42736865 | BR57: 89.0563368 | BS57: 83.9784506 | BT57: 79.30038462 | BU57: 75.30038326 | BV57: 94.19716961 | BW57: 95.6305344 | BX57: 96.56826777 | BY57: 95.1885708 | BZ57: 87.05599074 | CA57: 82.31252414 | CB57: 77.89599997 | CC57: 73.16162474 | CD57: 101.0950221 | CE57: 103.1658115 | CF57: 106.4570294 | CG57: 111.342329 | CH57: 99.6208825 | CI57: 93.68346001 | CJ57: 88.74235921 | CK57: 84.74235376 | CL57: 96.83651678 | CM57: 100.4274042 | CN57: 102.8324432 | CO57: 105.4668104 | CP57: 94.48124249 | CQ57: 89.32592962 | CR57: 84.38482882 | CS57: 80.38482338 | CT57: 97.64778001 | CU57: 99.4419378 | CV57: 100.0901304 | CW57: 101.7062874 | CX57: 92.39006407 | CY57: 87.43571674 | CZ57: 83.12334628 | DA57: 78.41066723 | DB57: 102.5657664 | DC57: 104.6235975 | DD57: 107.6139422 | DE57: 113.6235481 | DF57: 102.4113447 | DG57: 96.07913109 | DH57: 91.01901555 | DI57: 86.96243253 | DJ57: 98.13399544 | DK57: 101.7928425 | DL57: 104.1671637 | DM57: 107.5866584 | DN57: 97.08768692 | DO57: 91.59931767 | DP57: 86.5872478 | DQ57: 82.53066658 | DR57: 99.22867237 | DS57: 100.9838709 | DT57: 101.4981242 | DU57: 103.5866584 | DV57: 94.83217027 | DW57: 89.59077994 | DX57: 85.31713963 | DY57: 80.57444338 | DZ57: 103.8690741 | EA57: 106.036181 | EB57: 108.8924352 | EC57: 114.9188956 | ED57: 105.3110931 | EE57: 98.35245901 | EF57: 93.17874942 | EG57: 89.01524786 | EH57: 99.58766159 | EI57: 103.0795903 | EJ57: 105.6653816 | EK57: 109.2066029 | EL57: 100.131817 | EM57: 93.94128352 | EN57: 88.89733998 | EO57: 84.73383661 | EP57: 100.5490796 | EQ57: 102.4069297 | ER57: 103.0017504 | ES57: 104.808006 | ET57: 97.40035289 | EU57: 91.70825318 | EV57: 87.35902752 | EW57: 82.6637322 | EX57: 105.0804467 | EY57: 107.3492839 | EZ57: 110.0829618 | FA57: 116.1238464 | FB57: 108.0074443 | FC57: 100.4668964 | FD57: 95.18742809 | FE57: 90.92439728 | FF57: 100.9589161 | FG57: 104.3082286 | FH57: 107.0536566 | FI57: 110.7505825 | FJ57: 103.0141772 | FK57: 96.15174572 | FL57: 91.06590031 | FM57: 86.80286768 | FN57: 101.7228069 | FO57: 103.7470068 | FP57: 104.4766438 | FQ57: 106.0561381 | FR57: 99.85507789 | FS57: 93.73511153 | FT57: 89.29187323 | FU57: 84.66022809 | FV57: 106.2121072 | FW57: 108.5761059 | FX57: 111.1967675 | FY57: 116.8803094 | FZ57: 110.5273178 | GA57: 102.4433216 | GB57: 97.064923 | GC57: 92.70877932 | GD57: 102.0241161 | GE57: 105.3537786 | GF57: 108.1656773 | GG57: 111.6759648 | GH57: 105.3895191 | GI57: 97.98652986 | GJ57: 92.87693472 | GK57: 88.52079248 | GL57: 102.7815643 | GM57: 104.9921923 | GN57: 105.8966729 | GO57: 107.405478 | GP57: 102.2089367 | GQ57: 95.67030755 | GR57: 91.12874424 | GS57: 86.55780178 | GT57: 107.5295284 | GU57: 110.0044432 | GV57: 112.4950352 | GW57: 117.7612195 | GX57: 113.4619197 | GY57: 104.7453619 | GZ57: 99.25166024 | HA57: 94.78699606 | HB57: 103.0816151 | HC57: 106.4445297 | HD57: 109.3435318 | HE57: 112.4546472 | HF57: 107.8469382 | HG57: 99.90812986 | HH57: 94.80375014 | HI57: 90.33908436 | HJ57: 104.1087125 | HK57: 106.440375 | HL57: 107.4407454 | HM57: 108.7947945 | HN57: 104.8307978 | HO57: 97.83278353 | HP57: 93.20887516 | HQ57: 88.69073282
D59: Size | E59: RPM | F59: AMCA Test No.
C60: 1 | D60: 63
C61: 2 | D61: 90
C62: 3 | D62: 125 | E62: 2500 | F62: AMCA Test - 03/06/2026 - 44759-S1
C63: 4 | D63: 160
C64: 5 | D64: 200
C65: 6 | D65: 250
